{"text_format":"1","workbook":"xlsx","n_sheets":13,"sheets":["Prompt","C100","C101","C200","C300","C323","C400","C500","C700","C800","C900","C1000","Enviar"],"not_rendered":{"charts":0,"images":6,"macros":1,"external_links":0,"defined_names":2,"comments":2,"pivot_tables":0},"unopened":[],"bounds":{"document_bytes":16777216,"sheet_cells":100000,"rows_first":2000,"rows_last":500,"rows_between":2000,"halvings":0,"cell_chars":16384,"cell_head_chars":4096},"cells_cut":0,"cells_raw":0,"read":"whole","date_system":"1900"}

{"sheet":"Prompt","index":0,"n_rows":79,"n_cols":4,"rows_kept":79,"cut":false,"hidden":true,"merged":[[1,3,2,6],[4,1,6,8],[43,1,44,8],[78,1,79,8],[9,1,10,8]]}
[]
[null,null,null,"¡ATENCIÓN!"]
[]
[]
[null,"Para hacer uso de las funcionalidades de esta Cédula Electrónica debe habilitar macros"]
[]
[]
[]
[]
[null,"Si utiliza Excel 2013 siga el siguiente procedimiento:"]
[]
[]
[]
[]
[]
[]
[]
[]
[]
[]
[]
[]
[]
[]
[]
[]
[]
[]
[]
[]
[]
[]
[]
[]
[]
[]
[]
[]
[]
[]
[]
[]
[]
[null,"Si utiliza Excel 2007 siga el siguiente procedimiento:"]
[]
[]
[]
[]
[]
[]
[]
[]
[]
[]
[]
[]
[]
[]
[]
[]
[]
[]
[]
[]
[]
[]
[]
[]
[]
[]
[]
[]
[]
[]
[]
[]
[]
[]
[null,"Si utiliza Excel 2000, 2002, 2003 siga el siguiente procedimiento:"]

{"sheet":"C100","index":1,"n_rows":656,"n_cols":131,"rows_kept":656,"cut":false,"hidden":false,"merged":[[187,9,190,9],[426,10,426,14],[427,10,427,14],[188,3,189,8],[195,4,195,8],[187,10,190,11],[64,12,64,13],[65,12,65,13],[66,12,66,13],[67,12,67,13],[68,12,68,13],[69,12,69,13],[79,12,79,13],[80,12,80,13],[81,12,81,13],[82,12,82,13],[83,12,83,13],[126,9,126,14],[208,7,208,11],[100,9,100,14],[83,7,83,11],[69,7,69,11],[290,8,290,13],[272,8,272,12],[299,10,299,11],[299,12,299,14],[300,10,300,11],[300,12,300,14],[301,10,301,11],[301,12,301,14],[296,10,298,11],[296,12,298,14],[296,6,297,9],[454,9,454,12],[447,22,447,25],[41,26,41,27],[40,26,40,27],[33,2,33,32],[9,2,9,32],[38,20,40,22],[14,9,14,30],[189,28,189,29],[190,28,190,29],[194,28,194,29],[255,8,255,12],[192,28,192,29],[193,28,193,29],[42,29,42,30],[43,29,43,30],[45,29,45,30],[44,29,44,30],[54,11,54,12],[55,11,55,12],[401,9,401,13],[398,26,398,30],[430,25,430,28],[100,29,100,31],[1,28,1,31],[2,28,3,31],[24,28,24,30],[20,28,20,30],[51,13,53,14],[51,9,52,10],[53,9,53,10],[38,25,38,30],[39,28,39,30],[16,24,16,30],[40,29,40,30],[53,11,53,12],[12,9,12,10],[12,19,12,21],[16,9,16,20],[45,26,45,27],[39,13,39,15],[43,13,43,15],[51,5,53,7],[51,11,52,12],[41,29,41,30],[39,25,39,27],[56,13,56,14],[57,13,57,14],[98,27,99,28],[54,9,54,10],[55,9,55,10],[56,9,56,10],[57,9,57,10],[56,11,56,12],[57,11,57,12],[92,22,92,26],[65,25,65,29],[78,12,78,13],[80,26,80,31],[63,12,63,13],[98,29,99,31],[42,26,42,27],[43,26,43,27],[44,26,44,27],[55,13,55,14],[54,13,54,14],[647,21,647,30],[628,21,628,30],[629,21,629,30],[634,21,634,30],[630,21,630,30],[631,21,631,30],[632,21,632,30],[633,21,633,30],[461,26,461,30],[437,21,438,24],[437,26,438,28],[437,29,438,31],[101,29,101,31],[100,27,100,28],[101,27,101,28],[186,28,188,29],[191,28,191,29],[262,23,262,28],[250,23,250,28],[282,23,282,28]]}
[]
[null,null,null,null,null,null,null,null,"CENSO EDUCATIVO 2026",null,null,null,null,null,null,null,null,null,null,null,null,null,null,null,null,null,null,null,"CÉDULA"]
[null,null,null,null,null,null,null,null,"EDUCACIÓN BÁSICA REGULAR",null,null,null,null,null,null,null,null,null,null,null,null,null,null,null,null,null,null,null,"3AS"]
[null,null,null,null,null,null,null,null,"SECUNDARIA"]
[null,null,"Versión :",null,null,"GA-1.0-CAPACITACIÓN"]
[null,null,"INSTRUCCIONES DEL FORMATO ELECTRÓNICO "]
[]
[]
[]
[null,null,"IDENTIFICACIÓN DEL SERVICIO EDUCATIVO"]
[]
[]
[null,null,"1. CÓDIGO MODULAR  :",null,null,null,null,null,null,null,null,null,null,"3. CÓDIGO DE LOCAL EDUCATIVO :",null,null,null,null,null,null,null,null,null,null,null,"TIPO DE LOCAL :",null,null,null,{"$f":"IF(AC13=\"\",\"\",IF(AC13=0,\"PRINCIPAL\",IF(AC13>0,\"ADICIONAL\",\"\")))","v":""}]
[]
[null,null,"2. NOMBRE DEL SERVICIO EDUCATIVO:",null,null,null,null,null,null,""]
[]
[null,null,"4. DISTRITO :",null,null,null,null,null,null,"",null,null,null,null,null,null,null,null,null,null,null,null,null,"LOCALIDAD :  "]
[]
[]
[null,null,"5. FORMA Y MODELO DEL SERVICIO :"]
[null,null,null,null,null,null,null,null,null,null,null,null,{"$f":"CONCATENATE(E22,E23)","v":""},null,null,null,null,null,null,null,null,"Cantidad de alumnos en la RE :",null,null,null,null,null,null,""]
[{"$f":"CONCATENATE(E22,E23)","v":""},null,null,null,"","JER - Jornada Escolar Regular",null,null,null,null,null,null,"","SRE - Secundaria con Residencia Estundiantil"]
[null,null,null,null,"","JEC - Jornada Escolar Completa",null,null,null,null,null,null,"","SA - Secundaria en Alternancia",null,null,null,null,null,null,null,"¿La RE se encuentra en el local principal de la IE?",null,null,null,null,null,null,"","Sí  ","","No"]
[null,null,null,null,"","COAR - Colegio de Alto Rendimiento",null,null,null,null,null,null,"","ST - Secundaria Tutorial"]
[null,null,null,null,"","CPED - Centro Piloto de Educación a Distancia",null,null,null,null,null,null,"","MSEIB - Intercultural Bilingüe",null,null,null,null,null,null,null,"Señalar la distancia en metros :",null,null,null,null,null,null,""]
[null,null,null,null,null,"PEAD - Programa de Educación a Distancia",null,null,null,null,null,null,"","SFT - Secundaria con Formación Técnica",null,null,null,null,null,null,null,"¿Los ambientes de la residencia estudiantil se"]
[null,null,null,null,null,"Otros - A Distancia",null,null,null,null,null,null,"",null,null,null,null,null,null,null,null,"encuentran en los terrenos propios del local educativo?",null,null,null,null,null,null,"","Sí  ","","No"]
[]
[]
["GESTIÓN"]
[{"$f":"CONCATENATE(TRIM(UPPER(K31)),TRIM(UPPER(Q31)),TRIM(UPPER(Y31)))","v":""},null,null,"Esta Institución Educativa es de Gestión : ",null,null,null,null,null,null,null," 1 - Pública de gestión directa",null,null,null,null,""," 2 - Pública de gestión privada",null,null,null,null,null,null,""," 3 - Privada"]
[]
[]
[null,null,"100. CARACTERÍSTICAS DEL SERVICIO EDUCATIVO"]
[]
[null,null,null,"A. CARACTERÍSTICA DE LA ENSEÑANZA"]
[null,null,null,"101.A  CON RESPECTO A LAS CLASES:",null,null,null,null,null,null,null,null,null,null,null,null,null,null,null,"102.A. ¿EN QUÉ HORARIO SE DESARROLLAN LAS CLASES DE LOS ESTUDIANTES?"]
[]
[null,null,null,null,"A. ¿CUÁNDO INICIARON LAS CLASES?",null,null,null,null,null,null,"Día",null,"Mes",null,null,null,null,null,null,"TURNO",null,null,null,null,"Horario de clases"]
[null,null,null,null," (Primer día en que asistieron los estudiantes)",null,null,null,null,null,null,null,"-",null,null,null,null,null,null,null,null,null,null,null,null,"Inicio",null,null,"Término"]
[null,null,null,null,null,null,null,null,null,null,null,null,null,null,null,null,null,null,null,null,null,null,null,null,{"$f":"SUM(Y42:Y46)","v":0},"Hora","Minutos",null,"Hora","Minutos"]
[null,null,null,null,null,null,null,null,null,null,null,null,null,null,null,null,null,null,null,null,1,"Mañana",null,null,{"$f":"COUNT(Z42:AD42)","v":0},null,null,null,null,null,null,{"$f":"IF(OR(Z42=\"\",AA42=\"\",AC42=\"\",AD42=\"\"),1,0)","v":1}]
[null,null,null,null,"B. ¿CUÁNDO TERMINARÁN LAS CLASES?",null,null,null,null,null,null,"Día",null,"Mes",null,null,null,null,null,null,2,"Tarde",null,null,{"$f":"COUNT(Z43:AD43)","v":0},null,null,null,null,null,null,{"$f":"IF(OR(Z43=\"\",AA43=\"\",AC43=\"\",AD43=\"\"),1,0)","v":1}]
[null,null,null,null,"(Último día en que asistirán los estudiantes)",null,null,null,null,null,null,null,"-",null,null,null,null,null,null,null,3,"Discontinuo",null,null,{"$f":"COUNT(Z44:AD44)","v":0},null,null,null,null,null,null,{"$f":"IF(OR(Z44=\"\",AA44=\"\",AC44=\"\",AD44=\"\"),1,0)","v":1}]
[null,null,null,null,null,null,null,null,null,null,null,null,null,null,null,null,null,null,null,null,4,"Continuo",null,null,{"$f":"COUNT(Z45:AD45)","v":0},null,null,null,null,null,null,{"$f":"IF(OR(Z45=\"\",AA45=\"\",AC45=\"\",AD45=\"\"),1,0)","v":1}]
[null,null,null,null,null,null,null,null,null,null,null,null,null,null,null,null,null,null,null,null,5,"Horario no estable",null,null,{"$f":"COUNT(Z46:AD46)","v":0},null,null,null,null,null,null,{"$f":"IF(OR(Z46=\"\",AA46=\"\",AC46=\"\",AD46=\"\"),1,0)","v":1}]
[]
[]
[null,null,null,"103.A. SEÑOR(A) DIRECTOR(A), INDIQUE LOS ESPACIOS DESTINADOS A LA INTERACCIÓN SOCIAL",null,null,null,null,null,null,null,null,null,null,null,null,null,null,null,"107.A. ¿SE SOLICITARON VACANTES NUEVAS DURANTE EL PROCESO DE MATRICULA 2026?"]
[null,null,null,null,"Y DETALLE EL TIEMPO DE DURACIÓN (EN MINUTOS) PARA CADA UNO DE ELLOS"]
["SI-NO",null,null,null,"Marque con una “X” las alternativas que correspondan",null,null,null,null,null,null,null,null,null,null,null,null,null,null,null,"Sí","",null,null,null,"No  ",null,null,null,"Pase a la pregunta 109.A"]
["SI",null,null,null,null,"Espacio educativo para interacción social",null,null,null,"¿Tiene?",null,"¿ Dentro Horario?",null,"Tiempo de duración\nen minutos"]
["NO",null,null,null,null,null,null,null,null,null,null,null,null,null,null,null,null,null,null,"108.A. DURANTE EL PROCESO DE MATRÍCULA DEL PERIODO 2026, LOS PADRES DE FAMILIA,"]
[null,null,null,null,null,null,null,null,null,"Sí - No",null,"Sí - No",null,null,null,null,null,null,null,null,"CUIDADORES(AS) O APODERADOS(AS) QUE SOLICITARON UNA O MÁS VACANTES EN ESTE"]
[null,null,null,null,1,"De los recreos",null,null,null,null,null,null,null,null,null,null,null,null,null,null,"SERVICIO/NIVEL EDUCATIVO, ¿LOGRARON OBTENER EL TOTAL DE VACANTES SOLICITADAS?"]
[null,null,null,null,2,"Del desayuno escolar"]
[null,null,null,null,3,"Del almuerzo escolar",null,null,null,null,null,null,null,null,null,null,null,null,null,null,"Sí","",null,null,null,"No  ",""]
[null,null,null,null,4,"De la lonchera"]
[null,null,null,null,null,null,null,null,null,{"$f":"COUNTIF(J55:J58,\"SI\")+COUNTIF(J55:J58,\"NO\")","v":0}]
[null,null,null,null,null,null,null,null,null,null,null,null,null,null,null,null,null,null,null,null,null,null,"¿Por qué no se logró asignar una o mas vacantes solicitadas?"]
[null,null,null,"104.A. DESDE QUE SE INICIARON LAS CLASES SIN CONTAR SÁBADOS NI DOMINGOS",null,null,null,null,null,null,null,null,null,null,null,null,null,null,null,null,null,null,"Marque con una “X”, una opción"]
[null,null,null,null,"SEGÚN LAS RAZONES PROGRAMADAS, ¿CUÁNTOS DÍAS NO HUBO CLASES?, POR:"]
[null,null,null,null,null,null,null,null,null,null,null,null,null,null,null,null,null,null,null,null,null,null,"","No hay capacidad en la IE para recibir mas estudiantes"]
[null,null,null,null,null,"Razones Programadas",null,null,null,null,null,{"$f":"SUM(M65:N70)","v":0},"N° de días",null,null,null,null,null,null,null,null,null,"","Sí hay capacidad, pero algunas aulas presentan condiciones de alto riesgo"]
[null,null,null,null,1,"Vacaciones del año escolar",null,null,null,null,null,null,null,null,null,null,null,null,null,null,null,null,"","Se priorizó mantener una carga docente baja para favorecer el aprendizaje"]
[null,null,null,null,2,"Feriados nacionales oficiales (Fiestas patrias y otros)",null,null,null,null,null,null,null,null,null,null,null,null,null,null,null,null,"","Otros",null,""]
[null,null,null,null,3,"Feriados regionales o locales"]
[null,null,null,null,4,"Celebraciones de la institución educativa"]
[null,null,null,null,5,"Jornada de reflexión",null,null,null,null,null,null,null,null,null,null,null,null,null,"109.A. EN EL PRESENTE AÑO, ¿ESTÁN IMPLEMENTANDO ACTIVIDADES DIRIGIDAS A FAMILIAS EN ESTE"]
[null,null,null,null,6,"Otras razones",null,null,null,null,null,null,null,null,null,null,null,null,null,null,"SERVICIO/NIVEL EDUCATIVO?"]
[]
[null,null,null,"105.A. DESDE QUE SE INICIARON LAS CLASES SIN CONTAR SÁBADOS NI DOMINGOS,",null,null,null,null,null,null,null,null,null,null,null,null,null,null,null,null,"Sí",null,null,null,null,"No  ",null,null,null,"Pase a la pregunta 111.A"]
[null,null,null,null,"¿EXISTIERON DÍAS QUE NO HUBO CLASES POR RAZONES NO PROGRAMADAS?"]
[null,null,null,null,null,null,null,null,null,null,null,null,null,null,null,null,null,null,null,null,null,null,null,"¿Qué actividades se están implementando?"]
[null,null,null,null,"Sí","",null,null,null,"No  ",null,null,null,"Pase a la pregunta 107.A",null,null,null,null,null,null,null,null,null,"Marque con una “X”, una o más opciones"]
[]
[null,null,null,null,null,null,null,"¿Cantidad de días que no hubo clases por razones no  programadas?",null,null,null,null,null,null,null,null,null,null,null,null,null,null,null,null,"Encuentros familiares"]
[null,null,null,null,null,null,null,null,null,null,null,null,null,null,null,null,null,null,null,null,null,null,null,null,"Jornadas con padres de familia"]
[null,null,null,null,null,"Razones Programadas",null,null,null,null,null,{"$f":"SUM(M80:N84)","v":0},"N° de días",null,null,null,null,null,null,null,null,null,null,null,"Reuniones"]
[null,null,null,null,1,"Problemas climáticos",null,null,null,null,null,null,"",null,null,null,null,null,null,null,null,null,null,null,"Fomento a la lectura"]
[null,null,null,null,2,"Problemas de salud masivos (Epidemias)",null,null,null,null,null,null,"",null,null,null,null,null,null,null,null,null,null,null,"Otros",null,""]
[null,null,null,null,3,"Ausencia del docente",null,null,null,null,null,null,""]
[null,null,null,null,4,"Huelgas/Paros",null,null,null,null,null,null,"",null,null,null,null,null,null,"110.A. EN LAS ACTIVIDADES QUE REALIZA CON LAS FAMILIAS, ¿QUE TEMAS SE HAN ABORDADO Y"]
[null,null,null,null,6,"Otras razones",null,"",null,null,null,null,"",null,null,null,null,null,null,null,"CUÁNTAS ACTIVIDADES SE HAN REALIZADO?"]
[null,null,null,null,null,null,null,null,null,null,null,null,null,null,null,null,null,null,null,null,"Marque con una “X” según corresponda"]
[null,null,null,"106.A. HASTA LA FECHA DE APLICACIÓN DEL CENSO EDUCATIVO 2026, ¿SE RECUPERARON"]
[null,null,null,null,"LOS DÍAS DE CLASES QUE SE SUSPENDIERON POR RAZONES NO PROGRAMADAS?",null,null,null,null,null,null,null,null,null,null,null,null,null,null,null,null,null,null,null,null,null,null,"¿Se "]
[null,null,null,null,null,null,null,null,null,null,null,null,null,null,null,null,null,null,null,null,"Razones Programadas",null,null,null,null,null,null,"realizaron?"]
["DIAS",null,null,null,"Sí","",null,null,null,"No  ","",null,null,null,null,null,null,null,null,null,1,"Competencias parentales vinculares"]
[null,null,null,null,null,null,null,null,null,null,null,null,null,null,null,null,null,null,null,null,2,"Competencias parentales protectores"]
[null,null,null,null,null,null,null,"¿Cantidad de días recuperados?",null,null,null,"",null,null,null,null,null,null,null,null,3,"Educación sexual integral"]
[null,null,null,null,null,null,null,null,null,null,null,null,null,null,null,null,null,null,null,null,4,"Fomento de la competencia lectora"]
[null,null,null,null,null,null,null,"¿Qué estrategia(s) se utilizó(aron) para recuperar los días de clases",null,null,null,null,null,null,null,null,null,null,null,null,5,"Otros",""]
[null,null,null,null,null,null,null,"perdidos por razones no programadas?",null,null,null,null,null,null,null,null,null,null,null,null,null,null,null,null,null,null,null,{"$f":"COUNTIF(AB89:AB93,\"SI\")+COUNTIF(AB89:AB93,\"NO\")","v":0}]
[null,null,null,null,null,null,null,"Marque con una “X”, una o más opciones",null,null,null,null,null,null,null,null,null,null,null,"111.A. ESTE SERVICIO/NIVEL EDUCATIVO, ¿CUENTA CON PRACTICANTES DE UNIVERSIDADES O INSTITUTOS?"]
[]
[null,null,null,null,null,null,null,"","Se implementaron horas adicionales de clases",null,null,null,null,null,null,null,null,null,null,null,"Sí","",null,null,null,"No  "]
[null,null,null,null,null,null,null,"","Se realizaron clases los días feriados"]
[null,null,null,null,null,null,null,"","Se desarrollaron clases durante las vacaciones escolares ",null,null,null,null,null,null,null,null,null,null,null,null,null,null,null,null,null,null,"Cantidad de \npracticantes",null,"¿Cuántos pertenecen a la carrera de educación?"]
[null,null,null,null,null,null,null,"","Se dictaron clases los días sábados/domingos",null,null,null,null,null,null,null,null,null,null,null,null,null,null,"Entidad de Procedencia"]
[null,null,null,null,null,null,null,"","Otros","",null,null,null,null,null,null,null,null,null,null,null,null,null,"1. Universidad",null,null,null,"",null,""]
[null,null,null,null,null,null,null,null,null,null,null,null,null,null,null,null,null,null,null,null,null,null,null,"2. Instituto",null,null,null,"",null,""]
[null,null,null,null,null,null,null,null,null,null,null,null,null,null,null,null,null,null,null,null,null,null,null,null,null,null,null,{"$f":"SUM(AB101:AC102)","v":0},null,{"$f":"SUM(AD101:AF102)","v":0}]
[]
[]
[]
[]
[]
[]
[]
[]
[]
[]
[]
["MESES",null,null,"112.A. ESTE SERVICIO/NIVEL EDUCATIVO, ¿REALIZA COORDINACIONES Y/O ACCIONES DE ARTICULACIÓN",null,null,null,null,null,null,null,null,null,null,null,null,null,null,null,"114.A. DURANTE EL PRESENTE AÑO, ¿EL SERVICIO/NIVEL EDUCATIVO RECIBIÓ SOPORTE DEL"]
["01: Enero",null,null,null,"CON EL ESTABLECIMIENTO DE SALUD?",null,null,null,null,null,null,null,null,null,null,null,null,null,null,null,"COMITÉ DISTRITAL DE SALUD PARA LA IMPLEMENTACIÓN DE LAS PRESTACIONES DE SALUD"]
["02: Febrero",null,null,null,null,null,null,null,null,null,null,null,null,null,null,null,null,null,null,null,"ESCOLAR  PROGRAMADAS  EN  SU PLAN ANUAL DE TRABAJO (PAT)?"]
["03: Marzo",null,null,null,"Sí","",null,null,null,"No  "]
["04: Abril",null,null,null,null,null,null,null,null,null,null,null,null,null,null,null,null,null,null,null,"Sí",null,null,null,null,"No  "]
["05: Mayo",null,null,null,null,null,"¿Qué tipo de coordinaciones y/o acciones realiza?"]
["06: Junio",null,null,null,null,null,"Marque con una “X”, una o más opciones",null,null,null,null,null,null,null,null,null,null,null,null,"115.A. DURANTE EL AÑO 2025 Y HASTA LA FECHA DE LA APLICACIÓN DEL CENSO EDUCATIVO 2026,"]
["07: Julio",null,null,null,null,null,null,null,null,null,null,null,null,null,null,null,null,null,null,null,"¿SE HAN REALIZADO ACCIONES PARA ATENDER SITUACIONES DE INTERRUPCIÓN DE ESTUDIOS"]
["08: Agosto",null,null,null,null,null,null,"Salud física de estudiantes",null,null,null,null,null,null,null,null,null,null,null,null,"DE LOS ESTUDIANTES?"]
["09: Septiembre",null,null,null,null,null,null,"Salud física de docentes"]
["10: Octubre",null,null,null,null,null,null,"Salud mental del estudiante",null,null,null,null,null,null,null,null,null,null,null,null,"Sí",null,null,null,null,"No  "]
["11: Noviembre",null,null,null,null,null,null,"Salud mental del docente"]
["12: Diciembre",null,null,null,null,null,null,"Otros      ",null,null,null,null,null,null,null,null,null,null,null,{"$f":"IF(OR(UPPER('C100'!K31)=\"X\",UPPER('C100'!Q31)=\"X\"),\"\",IF(UPPER('C100'!Y31)=\"X\",\"X\",\"\"))","v":""},"SOLO GESTIÓN PRIVADA"]
["01: Enero"]
["02: Febrero",null,null,null,null,null,null,null,null,null,null,null,null,null,null,null,null,null,null,"116.A. ¿CUENTA CON ESTUDIANTES BENEFICIADOS CON BECAS DE ESTUDIOS, AL AMPARO DE LA"]
["03: Marzo",null,null,null,null,null,null,null,null,null,null,null,null,null,null,null,null,null,null,null,"LEY Nº 23585, “ESTUDIANTES DE PLANTELES Y UNIVERSIDADES PARTICULARES QUE PIERDAN"]
[null,null,null,"113.A. ESTE SERVICIO/NIVEL EDUCATIVO Y EL ESTABLECIMIENTO DE SALUD, ¿ESTABLECIERON",null,null,null,null,null,null,null,null,null,null,null,null,null,null,null,null,"A SUS PADRES O TUTORES TIENEN DERECHO A BECA”?"]
[null,null,null,null,"UN CRONOGRAMA PARA LAS PRESTACIONES Y ACCIONES DE SALUD, QUE SE ENCUENTRAN"]
[null,null,null,null,"INCLUIDAS EN EL PLAN ANUAL DE TRABAJO?",null,null,null,null,null,null,null,null,null,null,null,null,null,null,null,"Sí","",null,null,null,"No  "]
[]
[null,null,null,null,"Sí",null,null,null,null,"No  ",null,null,null,null,null,null,null,null,null,null,null,null,null,"Año 2025: Cantidad de beneficiarios"]
[]
[]
[]
[]
[]
[]
[]
[]
[]
[]
[]
[]
[]
[]
[]
[]
[]
[]
[]
[]
[]
[]
[]
[]
[]
[]
[]
[]
[]
[]
[]
[]
[]
[]
[]
[]
[]
[]
[]
[]
[]
[]
[]
[]
[]
[]
[]
["SI-NO",null,null,"B. TUTORÍA , ORIENTACIÓN EDUCATIVA Y CONVIVENCIA ESCOLAR"]
["SI",null,null,"101.B. INDIQUE, ¿CON CUÁLES DE LOS SIGUIENTES ESPACIOS DE PARTICIPACIÓN ",null,null,null,null,null,null,null,null,null,null,null,null,null,null,null,"104.B. SEÑOR(A) DIRECTOR(A), DE LAS SIGUIENTES ACTIVIDADES, ¿CUÁLES SE HAN INCORPORADO"]
["NO",null,null,null,"CUENTA ESTE SERVICIO/NIVEL EDUCATIVO Y CON QUÉ FRECUENCIA SE REÚNEN?",null,null,null,null,null,null,null,null,null,null,null,null,null,null,null,"EN EL PLAN DE TUTORÍA, ORIENTACIÓN EDUCATIVA Y CONVIVENCIA ESCOLAR (TOECE)?"]
[null,null,null,null,"Seleccione y complete la o las alternativas que correspondan"]
[null,null,null,null,null,null,null,null,null,null,null,null,null,null,null,null,null,null,null,null,null,null,null,null,null,null,null,null,"¿Se implementó\nla actividad?"]
[null,null,null,null,null,null,null,null,null,"¿Cuénta con este espacio?","¿Está confor mado mediante (RD)?",null,null,null,null,null,null,null,null,null,null,"Actividad"]
[null,null,null,"Espacio de Participación"]
[null,null,null,null,null,null,null,null,null,null,null,null,null,null,null,null,null,null,null,null,"Taller con docentes y otros miembros de la comunidad educativa …"]
[null,null,null,null,null,null,null,null,null,null,null,null,null,null,null,null,null,null,null,null,"Taller con docentes para implementar la educación sexual integral"]
[1,null,null,"Comité de Gestión de Cond. Operat.",null,null,null,null,null,null,null,null,null,null,null,null,null,null,null,null,"Reuniones de trabajo entre tutores y otros docentes"]
[2,null,null,"Comité de Gestión del Bienestar",null,null,null,null,null,null,null,null,null,null,null,null,null,null,null,null,"Actividad para prevenir alguna situación de riesgo"]
[3,null,null,"Comité de Gestión Pedagógica ",null,null,null,null,null,null,null,null,null,null,null,null,null,null,null,null,"Actividad para promover la participación estudiantil"]
[4,null,null,"Consejo Educativo Institucional",null,null,null,null,null,null,null,null,null,null,null,null,null,null,null,null,"Actividades para valorar la diversidad"]
[5,null,null,"Otro",null,null,null,null,null,null,null,null,null,null,null,null,null,null,null,null,null,null,null,null,null,null,null,null,"",{"$f":"COUNTIF(AC190:AD195,\"SI\")+COUNTIF(AC190:AD195,\"NO\")","v":0}]
[null,null,null,null,null,null,null,null,null,{"$f":"COUNTIF(J192:J196,\"SI\")+COUNTIF(J192:J196,\"NO\")","v":0}]
["1: Semanal",null,null,"102.B. SOLO SI MARCO QUE CUENTA CON “COMITE DE GESTIÓN DEL BIENESTAR”,",null,null,null,null,null,null,null,null,null,null,null,null,null,null,null,"105.B. EL SERVICIO/NIVEL EDUCATIVO, ¿INCLUYE EN EL PLAN TOECE, ACTIVIDADES VINCULADAS"]
["2: Quincenal",null,null,null,"¿QUÉ ACTORES LO CONFORMAN?",null,null,null,null,null,null,null,null,null,null,null,null,null,null,null,"A LA CONVIVENCIA ESCOLAR Y PREVENCIÓN/ATENCIÓN DE LA VIOLENCIA ESCOLAR?"]
["3: Mensual",null,null,null,"Marque con una “X”, una o más opciones"]
["4: Bimensual",null,null,null,null,null,null,null,null,null,null,null,null,null,null,null,null,null,null,null,"Sí",null,null,null,null,"No  ",null,null,"Pase a la pregunta 107.B"]
["5: Trimestral",null,null,null,null,"Director/a de la IE"]
["6: Semestral",null,null,null,null,"Coordinador/a de tutoría"]
["7: No se reunen",null,null,null,null,"El/la responsable de convivencia",null,null,null,null,null,null,null,null,null,null,null,null,null,"106.B. EN EL TRANSCURSO DEL PRESENTE AÑO, ¿HA IMPLEMENTADO ACTIVIDADES RELACIONADAS"]
[null,null,null,null,null,"Un/a representante de los padres y madres de familia, tutores legales o apoderados/as.",null,null,null,null,null,null,null,null,null,null,null,null,null,null,"A LA PROMOCIÓN DE LA CONVIVENCIA ESCOLAR, LA PREVENCIÓN Y LA ATENCIÓN DE LA"]
[null,null,null,null,null,"El/la responsable de inclusión",null,null,null,null,null,null,null,null,null,null,null,null,null,null,"VIOLENCIA ESCOLAR DEL PLAN TOECE?"]
[null,null,null,null,null,"Un/a representante de las y los estudiantes"]
[null,null,null,null,null,"Un/a psicólogo, cuando exista el cargo en la IE",null,null,null,null,null,null,null,null,null,null,null,null,1,null,"Sí",null,null,null,null,"No  "]
[null,null,null,null,null,"Otros",null,null,null,null,null,null,null,null,null,null,null,null,2]
[null,null,null,null,null,null,null,null,null,null,null,null,null,null,null,null,null,null,3]
[null,null,null,"103.B. EN EL PRESENTE AÑO, ESTE SERVICIO/NIVEL EDUCATIVO, ¿CUENTA CON EL PLAN",null,null,null,null,null,null,null,null,null,null,null,null,null,null,4,null,null,null,null,"Precisar el número de actividades"]
[null,null,null,null,"DE TUTORÍA, ORIENTACIÓN EDUCATIVA Y CONVIVENCIA ESCOLAR (PLAN TOECE)?",null,null,null,null,null,null,null,null,null,null,null,null,null,5]
[null,null,null,null,null,null,null,null,null,null,null,null,null,null,null,null,null,null,6]
[null,null,null,null,"Sí",null,null,null,null,"No  ",null,null,null,null,null,null,null,null,7]
[null,null,null,null,null,null,null,null,null,null,null,null,null,null,null,null,null,null,8]
[null,null,null,null,null,null,null,"¿Está incorporado en el Plan Anual de Trabajo (PAT) de la IE?",null,null,null,null,null,null,null,null,null,null,9]
[null,null,null,null,null,null,null,null,null,null,null,null,null,null,null,null,null,null,10]
[null,null,null,null,null,null,null,null,null,"Sí  ",null,null,null,null,"No  "]
[null,null,null,""]
[null,null,null,"",null,null,null,"¿El PAT de la IE que incluye al Plan TOECE está reconocido con RD?"]
[{"$f":"CONCATENATE(U186,V195)","v":""}]
[{"$f":"CONCATENATE(W186,X195)","v":""},null,null,null,null,null,null,null,null,"Sí  ",null,null,null,null,"No  "]
[]
[]
[]
["SI"]
["NO"]
[]
[]
[1]
[2]
[3]
[4]
[5]
[6]
[7]
[8]
[]
[]
[null,null,null,"107.B. SEÑOR(A) DIRECTOR(A), DURANTE EL PRESENTE AÑO, ¿HA REALIZADO ACTIVIDADES",null,null,null,null,null,null,null,null,null,null,null,null,null,null,null,"111.B. DURANTE EL AÑO 2025, ¿QUÉ TEMAS HAN SIDO ABORDADOS EN LA ASISTENCIA"]
[null,null,null,null,"PARA LA PREVENCIÓN DE LA VIOLENCIA CONTRA LAS Y LOS ESTUDIANTES?",null,null,null,null,null,null,null,null,null,null,null,null,null,null,null,"TÉCNICA A CARGO DEL ESPECIALISTA DE CONVIVENCIA ESCOLAR?"]
[null,null,null,null,null,null,null,null,null,null,null,null,null,null,null,null,null,null,null,null,"Marque con una \"X\", una o más opciones"]
[null,null,null,null,"Sí","",null,null,null,"No  "]
[null,null,null,null,null,null,null,null,null,null,null,null,null,null,null,null,null,null,null,null,null,"Disciplina con enfoque de derechos (sin maltrato ni humillación) y medidas correctivas en el aula"]
[null,null,null,null,null,null,null,null,null,null,null,null,null,null,null,null,null,null,null,null,null,"Normas de convivencia concertadas en la escuela"]
[null,null,null,null,null,"¿Qué actividades ha realizado en este servicio/nivel educativo",null,null,null,null,null,null,null,null,null,null,null,null,null,null,null,"Participación estudian l para la prevención de la violencia"]
[null,null,null,null,null,"para la prevención de la violencia contra las y los estudiantes?",null,null,null,null,null,null,null,null,null,null,null,null,null,null,null,"Educación Sexual Integral para la prevención de la violencia"]
[null,null,null,null,null,"Marque con una “X”, una o más opciones",null,null,null,null,null,null,null,null,null,null,null,null,null,null,null,"Tipos de violencia, señales de alerta y cultura de reporte"]
[null,null,null,null,null,"","Gestión de talleres o reuniones con estudiantes.",null,null,null,null,null,null,null,null,null,null,null,null,null,null,"Protocolos de atención a la violencia hacia niñas, niños y adolescentes"]
[null,null,null,null,null,"","Capacitación a docentes para prevenir y/o atender.",null,null,null,null,null,null,null,null,null,null,null,null,null,null,"Capacitación del uso del portal SíseVe"]
[null,null,null,null,null,"","Casos de riesgo de violencia en la escuela",null,null,null,null,null,null,null,null,null,null,null,null,null,null,"Otros",null,""]
[null,null,null,null,null,"","Envío de orientaciones a apoderados/as."]
[null,null,null,null,null,"","Gestión de talleres o reuniones con apoderados/as."]
[null,null,null,null,null,"","Gestión de estrategias en conjunto con otras organizaciones",null,null,null,null,null,null,null,null,null,null,null,null,"112.B. EN EL PRESENTE AÑO, ¿QUE ESTRATEGIAS DE TUTORIA Y ORIENTACION EDUCATIVA"]
[null,null,null,null,null,"","Monitoreo de situación emocional y familiar de estudiantes.",null,null,null,null,null,null,null,null,null,null,null,null,null,"SE VIENE IMPLEMENTANDO EN ESTE SERVICIO/NIVEL EDUCATIVO DE MANERA PERMANENTE?"]
[null,null,null,null,null,"","Otro",null,"",null,null,null,null,null,null,null,null,null,null,null,"Marque con una \"X\", una o más opciones"]
[]
[null,null,null,"108.B. SEÑOR(A) DIRECTOR(A), DURANTE EL PRESENTE AÑO, ¿HA REALIZADO ACTIVIDADES",null,null,null,null,null,null,null,null,null,null,null,null,null,null,null,null,null,"Tutoría Individual"]
[null,null,null,null,"PARA PROMOVER UNA CONVIVENCIA ESCOLAR DEMOCRÁTICA?",null,null,null,null,null,null,null,null,null,null,null,null,null,null,null,null,"Tutoría grupal"]
[null,null,null,null,null,null,null,null,null,null,null,null,null,null,null,null,null,null,null,null,null,"Participación estudiantil"]
[null,null,null,null,"Sí","",null,null,null,"No  ",null,null,null,null,null,null,null,null,null,null,null,"Trabajo con las familias y la comunidad"]
[null,null,null,null,null,null,null,null,null,null,null,null,null,null,null,null,null,null,null,null,null,"Orientación Educativa permanente"]
[null,null,null,null,null,null,null,null,null,null,null,null,null,null,null,null,null,null,null,null,null,"Otro"]
[null,null,null,null,null,"¿Qué actividades ha realizado en este servicio/nivel educativo",null,null,null,null,null,null,null,null,null,null,null,null,null,null,null,"Ninguno"]
[null,null,null,null,null,"para promover la convivencia entre estudiantes?"]
[]
[null,null,null,null,null,"Marque con una “X”, una o más opciones",null,null,null,null,null,null,null,null,null,null,null,null,null,"113.B. ACTUALMENTE, ¿LAS DOS HORAS PEDAGÓGICAS DE LA TUTORÍA GRUPAL SE DESARROLLAN"]
[null,null,null,null,null,null,null,null,null,null,null,null,null,null,null,null,null,null,null,null,"DE MANERA SECUENCIAL?"]
[null,null,null,null,null,"","Implementa acciones que fomenten el respeto, el diálogo y búsqueda de acuerdos …"]
[null,null,null,null,null,"","Fomenta la construcción de relaciones interpersonales y afectivas en igualdad de género.",null,null,null,null,null,null,null,null,null,null,null,null,null,"Sí",null,null,null,null,"No  "]
[null,null,null,null,null,"","Implementa acciones para la prevención de la violencia y el manejo de conflictos."]
[null,null,null,null,null,"","Promueve la práctica de acciones para la superación de todo tipo de discriminación.",null,null,null,null,null,null,null,null,null,null,null,null,"114.B. SEÑOR(A) DIRECTOR(A), ¿ACTUALMENTE LOS DOCENTES REALIZAN TUTORÍA INDIVIDUAL A"]
[null,null,null,null,null,"","Otro",null,"",null,null,null,null,null,null,null,null,null,null,null,"ESTUDIANTES QUE LO REQUIERAN O SOLICITAN?"]
[]
[null,null,null,"109.B. ESTE SERVICIO/NIVEL EDUCATIVO, ¿CUENTA CON UN MAPA O DIRECTORIO DE ALIADOS",null,null,null,null,null,null,null,null,null,null,null,null,null,null,null,null,"Sí",null,null,null,null,"No  "]
[null,null,null,null,"ESTRATÉGICOS PARA LA PREVENCIÓN Y ATENCIÓN DE CASOS DE VIOLENCIA ESCOLAR?"]
[null,null,null,null,null,null,null,null,null,null,null,null,null,null,null,null,null,null,null,"115.B. ACTUALMENTE, ¿LOS DOCENTES EMPLEAN LAS HORAS DE TUTORÍA Y ORIENTACIÓN EDUCATIVA?"]
[null,null,null,null,"Sí","",null,null,null,"No  ",null,null,null,null,null,null,null,null,null,null,"Marque con una \"X\", una o más opciones"]
[]
[null,null,null,null,null,null,null,null,null,null,null,null,null,null,null,null,null,null,null,null,null,"Tutoría grupal"]
[null,null,null,null,null,"Indique, ¿Quiénes lo conforman, con quiénes viene trabajando",null,null,null,null,null,null,null,null,null,null,null,null,null,null,null,"Refuerzo escolar"]
[null,null,null,null,null,"actualmente y si ha realizado alguna actividad coordinada?",null,null,null,null,null,null,null,null,null,null,null,null,null,null,null,"Comunicación y/o matemática"]
[null,null,null,null,null,null,null,null,null,null,null,null,null,null,null,null,null,null,null,null,null,"Otro"]
[null,null,null,null,null,"Marque con una “X”, una o más opciones",null,null,null,null,null,null,null,null,null,null,null,null,null,null,null,"Ninguna"]
[null,null,null,null,null,"","DEMUNA"]
[null,null,null,null,null,"","Defensoría del pueblo"]
[null,null,null,null,null,"","Centro de emergencia Mujer",null,null,null,null,null,null,null,null,null,null,null,null,"116.B. ESTE SERVICIO/NIVEL EDUCATIVO, ¿CUENTA CON NORMAS DE CONVIVENCIA ESCOLAR"]
[null,null,null,null,null,"","Centro o posta de salud",null,null,null,null,null,null,null,null,null,null,null,null,null,"ACTUALIZADAS PARA EL PRESENTE AÑO?"]
[null,null,null,null,null,"","Iglesia"]
[null,null,null,null,null,"","Comisaría",null,null,null,null,null,null,null,null,null,null,null,null,null,"Sí",null,null,null,null,"No  ",null,null,"Pase a la pregunta 118.B"]
[null,null,null,null,null,"","Otro",null,""]
[null,null,null,null,null,null,null,null,null,null,null,null,null,null,null,null,null,null,null,null,null,null,null,"¿Están incorporadas en el reglamento interno de la IE?"]
[null,null,null,"110.B. DURANTE EL AÑO 2025, EL SERVICIO/NIVEL EDUCATIVO, ¿HA  RECIBIDO ASISTENCIA"]
[null,null,null,null,"TÉCNICA DEL ESPECIALISTA DE CONVIVENCIA ESCOLAR DE LAS SIGUIENTES ENTIDADES?",null,null,null,null,null,null,null,null,null,null,null,null,null,null,null,null,null,null,null,null,"Sí",null,null,null,"No  "]
[null,null,null,null,"Marque con una “X” y complete según corresponda"]
[null,null,null,null,null,null,null,null,null,null,null,null,null,null,null,null,null,null,null,null,null,null,null,"¿El Reglamento Interno que incluye las normas de convivencia"]
[null,null,null,null,null,null,"Especialista de convivencia escolar del:",null,null,null,"¿Recibió asistencia técnica?",null,"¿Cantidad de asistencias técnicas recibidas?",null,null,null,null,null,null,null,null,null,null,"escolar, está aprobado mediante RD?"]
[null,null,null,null,null,null,null,null,null,null,null,null,null,null,null,null,null,null,null,null,null,null,null,null,null,"Sí",null,null,null,"No  "]
[null,null,null,null,null,null,null,null,null,{"$f":"COUNTIF(K300:L303,\"SI\")+COUNTIF(K300:L303,\"NO\")","v":0}]
[null,null,null,null,null,1,"MINEDU"]
[null,null,null,null,null,2,"DRE/GRE"]
[null,null,null,null,null,3,"UGEL"]
[null,null,null,null,null,"Si marca en todas NO pasar a la pregunta 112.B.",null,null,null,null,null,{"$f":"COUNTIF(K300:K302,\"NO\")","v":0},{"$f":"IF(L303=3,\"X\",\"\")","v":""}]
[]
[]
[]
[]
[null,null,null,"117.B. LAS NORMAS DE CONVIVENCIA ESCOLAR, ¿HAN SIDO CONSTRUIDAS CON LA PARTICIPACIÓN DE",null,null,null,null,null,null,null,null,null,null,null,null,null,null,null,"125.B. ESTE SERVICIO/NIVEL EDUCATIVO, ¿CUENTA CON UN HORARIO PARA LAS ACCIONES"]
[null,null,null,null,"REPRESENTANTES DE LAS/LOS ESTUDIANTES?",null,null,null,null,null,null,null,null,null,null,null,null,null,null,null,"DE REFUERZO ESCOLAR EN LAS ÁREAS DE MATEMÁTICA Y COMUNICACIÓN?"]
[]
[null,null,null,null,"Sí",null,null,null,null,"No  ",null,null,null,null,null,null,null,null,null,null,"Sí",null,null,null,null,"No  "]
[]
[]
[null,null,null,"118.B. ESTE SERVICIO/NIVEL EDUCATIVO, ¿CUENTA CON AL MENOS UNA/UN RESPONSABLE DE",null,null,null,null,null,null,null,null,null,null,null,null,null,null,null,"126.B. ACTUALMENTE, ¿DE QUÉ MANERA SE PROMUEVE LA PARTICIPACIÓN ESTUDIANTIL? "]
[null,null,null,null,"CONVIVENCIA ESCOLAR ASIGNADO PARA EL PRESENTE AÑO?",null,null,null,null,null,null,null,null,null,null,null,null,null,null,null,"Marque con una \"X\", una o más opciones"]
[]
[null,null,null,null,"Sí",null,null,null,null,"No  ","",null,null,null,null,null,null,null,null,null,null,"Comités de aula",null,null,null,null,null,null,null,"Pase a la pregunta 131.B."]
[null,null,null,null,null,null,null,null,null,null,null,null,null,null,null,null,null,null,null,null,null,"Asambleas de aula",null,null,null,null,null,null,null,"Pase a la pregunta 131.B."]
[null,null,null,null,null,null,null,null,null,null,null,null,null,null,null,null,null,null,null,null,null,"Municipios escolares",null,null,null,null,null,null,null,"Pase a la pregunta 127.B."]
[null,null,null,"119.B. ESTE SERVICIO/NIVEL EDUCATIVO, ¿SE ENCUENTRA AFILIADO AL SÍSEVE?",null,null,null,null,null,null,null,null,null,null,null,null,null,null,null,null,null,"Estrategia Somos Pares en el marco de la RM N° 583-2023",null,null,null,null,null,null,null,"Pase a la pregunta 130.B."]
[null,null,null,null,"Sistema Especializado en Reporte de casos sobre Violencia Escolar)",null,null,null,null,null,null,null,null,null,null,null,null,null,null,null,null,"Brigadista escolar de la brigada de educación ambiental",null,null,null,null,null,null,null,"Pase a la pregunta 131.B."]
[null,null,null,null,null,null,null,null,null,null,null,null,null,null,null,null,null,null,null,null,null,"Generación Clima",null,null,null,null,null,null,null,"Pase a la pregunta 131.B."]
[null,null,null,null,"Sí","",null,null,null,null,null,null,null,null,null,null,null,null,null,null,{"$f":"CONCATENATE(U317,U318,U321,U322)","v":""}]
[]
[null,null,null,null,"No  ",null,null,null,"¿Cuál es la razón por la que no está afiliado?",null,null,null,null,null,null,null,null,null,null,"127.B. ¿A TRAVÉS DE QUÉ DOCUMENTO SE RECONOCE AL MUNICIPIO ESCOLAR VIGENTE?"]
[null,null,null,null,null,null,null,null,null,null,null,null,null,null,null,null,null,null,null,null,"Marque con una “X”, una o más opciones"]
[null,null,null,null,null,null,null,"Marque con una \"X\", una opción"]
[null,null,null,null,null,null,null,null,"Por falta de internet",null,null,null,null,null,null,null,null,null,null,null,null,"Resolución Directoral"]
[null,null,null,null,null,null,null,null,"Por falta de capacitación y/o asistencia técnica en el uso del portal SíseVe"]
[null,null,null,null,null,null,null,null,"Conoce el portal SíseVe, pero no le parece importante afiliarse",null,null,null,null,null,null,null,null,null,null,null,null,"Oficio"]
[null,null,null,null,null,null,null,null,"Le parece importante, pero no lo ve necesario para su IE"]
[]
[null,null,null,"120.B. ESTE SERVICIO/NIVEL EDUCATIVO, ¿CUENTA CON LIBRO DE REGISTRO DE INCIDENCIAS, SOBRE",null,null,null,null,null,null,null,null,null,null,null,null,null,null,null,"128.B. EN EL ÚLTIMO PROCESO ELECTORAL PARA ELEGIR REPRESENTANTES DEL MUNICIPIO"]
[null,null,null,null,"VIOLENCIA Y ACOSO ESCOLAR EN EL MARCO DE LA LEY N° 29719?",null,null,null,null,null,null,null,null,null,null,null,null,null,null,null,"ESCOLAR,  ¿LA  LISTA  GANADORA  ESTUVO  ENCABEZADA POR UN ESTUDIANTE HOMBRE O"]
[null,null,null,null,null,null,null,null,null,null,null,null,null,null,null,null,null,null,null,null,"POR UNA ESTUDIANTE MUJER?"]
[null,null,null,null,"Sí",null,null,null,null,"No  ",null,null,"Pase a la pregunta 122.B"]
[null,null,null,null,null,null,null,null,null,null,null,null,null,null,null,null,null,null,null,null,null,"Por un estudiante hombre"]
[]
[null,null,null,"121.B. EN EL AÑO 2025, ¿SE HIZO USO DEL LIBRO DE REGISTRO DE INCIDENCIAS?",null,null,null,null,null,null,null,null,null,null,null,null,null,null,null,null,null,"Por una estudiante mujer"]
[]
[null,null,null,null,"Sí",null,null,null,null,"No  "]
[null,null,null,null,null,null,null,null,null,null,null,null,null,null,null,null,null,null,null,"129.B. EL MUNICIPIO ESCOLAR VIGENTE, ¿VIENE IMPLEMENTANDO SU PLAN DE TRABAJO?"]
["01"]
["02",null,null,"122.B. SEÑOR(A) DIRECTOR(A), ¿EMPLEA USTED HERRAMIENTAS DE CONSULTA PARA VERIFICAR",null,null,null,null,null,null,null,null,null,null,null,null,null,null,null,null,"Sí"]
["03",null,null,null,"LA SITUACIÓN DEL PERSONAL DE ESTE SERVICIO/NIVEL EDUCATIVO, TAL COMO EL REGISTRO"]
["04",null,null,null,"NACIONAL DE SANCIONES CONTRA SERVIDORES CIVILES – RNSSC?",null,null,null,null,null,null,null,null,null,null,null,null,null,null,null,null,null,null,"¿Este Plan de Trabajo del Municipio Escolar se incorporó en el PAT 2026?"]
["05"]
["06",null,null,null,"Sí",null,null,null,null,"No  ",null,null,null,null,null,null,null,null,null,null,null,null,null,"Sí",null,null,null,"No  "]
["07"]
["08",null,null,"123.B. SEÑOR(A) DIRECTOR (A), ¿CONOCE LOS NUEVOS PROTOCOLOS PARA LA ATENCIÓN DE LOS CASOS",null,null,null,null,null,null,null,null,null,null,null,null,null,null,null,null,"No  "]
["09",null,null,null,"DE VIOLENCIA EN EL SERVICIO/NIVEL EDUCATIVO, QUE SE ACTUALIZARON EN EL AÑO 2025 MEDIANTE"]
["10",null,null,null,"LA RM 383-2025-MINEDU?",null,null,null,null,null,null,null,null,null,null,null,null,null,null,null,null,null,null,"¿Qué razones limitan la implementación del"]
["11",null,null,null,null,null,null,null,null,null,null,null,null,null,null,null,null,null,null,null,null,null,null,"Plan de trabajo del Municipio Escolar?"]
["12",null,null,null,"Sí",null,null,null,null,"No  "]
["13",null,null,null,null,null,null,null,null,null,null,null,null,null,null,null,null,null,null,null,null,null,null,"Marque hasta dos opciones priorizadas"]
[null,null,null,null,null,null,"¿Ha sido capacitado por algún integrante de la DRE/GRE o UGEL en la aplicación"]
[null,null,null,null,null,null,"de estos nuevos protocolos para la atención de los casos de violencia escolar?",null,null,null,null,null,null,null,null,null,null,null,null,null,null,null,null,null,"La falta de compromiso de los representantes del Municipio Escolar"]
[null,null,null,null,null,null,null,null,null,null,null,null,null,null,null,null,null,null,null,null,null,null,null,null,"La sobrecarga laboral del docente asesor del Municipio Escolar"]
[null,null,null,null,null,null,"Sí",null,null,null,null,"No  ",null,null,null,null,null,null,null,null,null,null,null,null,"La ausencia de oportunidades para que los representantes del Municipio …"]
[null,null,null,null,null,null,null,null,null,null,null,null,null,null,null,null,null,null,null,null,null,null,null,null,"La inadecuada elección de los representantes del Municipio Escolar"]
[null,null,null,null,null,null,null,null,null,null,null,null,null,null,null,null,null,null,null,null,null,null,null,null,"por parte de los estudiantes"]
[null,null,null,"124.B. SEÑOR(A) DIRECTOR(A), EN ESTE SERVICIO/NIVEL EDUCATIVO, ¿SE TIENEN IMPLEMENTADAS"]
[null,null,null,null,"MEDIDAS DE SEGURIDAD PARA EL TRATAMIENTO DE LOS DATOS PERSONALES QUE ADMINISTRAN?"]
[]
[null,null,null,null,"Sí",null,null,null,null,"No  "]
[]
[]
[]
[]
[]
[]
[]
[]
[]
[]
[]
[]
[]
[]
[]
[]
[]
[]
[]
[]
[]
[]
[null,null,null,"130.B. ESTE SERVICIO/NIVEL EDUCATIVO, ¿TOMÓ CONOCIMIENTO DE LA ESTRATEGIA NACIONAL",null,null,null,null,null,null,null,null,null,null,null,null,null,null,null,"131.B. SEÑOR(A) DIRECTOR(A), ¿CONOCE LA ESTRATEGIA EDUCACIÓN “TE  ESCUCHA”?"]
[null,null,null,null,"DE PARTICIPACIÓN ESTUDIANTIL “SOMOS PARES”"]
[null,null,null,null,"Marque con una “X”, una o más opciones",null,null,null,null,null,null,null,null,null,null,null,null,null,null,null,"Sí",null,null,null,null,"No  "]
[]
[null,null,null,null,"Sí","",null,null,null,"No  ",null,null,null,null,null,null,null,null,null,null,null,null,null,"¿Qué conoce de la estrategia?"]
[null,null,null,null,null,null,null,null,null,null,null,null,null,null,null,null,null,null,null,null,null,null,null,"Marque con una \"X\", una o más opciones"]
[null,null,null,null,null,null,null,"¿Cómo tomo conocimiento?"]
[null,null,null,null,null,null,null,"Marque con una \"X\", una o más opciones",null,null,null,null,null,null,null,null,null,null,null,null,null,null,null,null,"Plataforma"]
[null,null,null,null,null,null,null,"","Oficio Múltiple remitido por MINEDU.",null,null,null,null,null,null,null,null,null,null,null,null,null,null,null,"Atención de soporte socioemocional para estudiantes"]
[null,null,null,null,null,null,null,"","Oficio Múltiple remitido por DRE/UGEL. ",null,null,null,null,null,null,null,null,null,null,null,null,null,null,null,"Atención de soporte socioemocional para docentes"]
[null,null,null,null,null,null,null,"","Comunicación del Director.",null,null,null,null,null,null,null,null,null,null,null,null,null,null,null,"Atención de soporte socioemocional para familias"]
[null,null,null,null,null,null,null,"","Comunicación de un/a colega.",null,null,null,null,null,null,null,null,null,null,null,null,null,null,null,"Otros"]
[null,null,null,null,null,null,null,"","Campaña web"]
[null,null,null,null,null,null,null,"","Redes sociales"]
[null,null,null,null,null,null,null,"","Otro",""]
[]
[null,null,null,null,null,null,null,"¿Cuál de las siguientes acciones ha implementado durante el presente año?"]
[null,null,null,null,null,null,null,"Marque con una \"X\", una o más opciones"]
[null,null,null,null,null,null,null,"","Sí La Haces"]
[null,null,null,null,null,null,null,"","Ideas en Acción"]
[null,null,null,null,null,null,null,"","Organización y Representación Estudiantil Municipios Escolares"]
[]
[]
[]
[]
[]
[]
[null,null,null,"C. ACOMPAÑAMIENTO Y SOPORTE PEDAGÓGICO"]
[null,null,null,"101.C. DURANTE EL AÑO 2025 Y HASTA LA FECHA DE APLICACIÓN DEL CENSO  EDUCATIVO 2026,",null,null,null,null,null,null,null,null,null,null,null,null,null,null,null,"106.C. ¿DURANTE EL ÚLTIMO AÑO, HA PARTICIPADO DE ALGÚN ESPACIO DE ARTICULACIÓN"]
[null,null,null,null,"¿HA RECIBIDO ACOMPAÑAMIENTO DIRIGIDO AL DIRECTIVO, ENTENDIDO COMO ASESORÍA,",null,null,null,null,null,null,null,null,null,null,null,null,null,null,null,"PARA LA PROMOCIÓN DEL PROYECTO DE INVESTIGACIÓN, INNOVACIÓN Y/O BUENAS"]
[null,null,null,null,"SEGUIMIENTO U ORIENTACIÓN PERSONALIZADA PARA LA MEJORA DE LA GESTIÓN ESCOLAR?",null,null,null,null,null,null,null,null,null,null,null,null,null,null,null,"PRÁCTICAS EDUCATIVAS DESARROLLADO?"]
[]
[null,null,null,null,"Sí","",null,null,null,"No  ",null,null,"Pase a la pregunta 102.C",null,null,null,null,null,null,null,"Sí",null,null,null,null,"No  ",""]
[]
[null,null,null,null,null,null,null,"¿Que institución(es) le brindaron el acompañamiento?"]
[null,null,null,null,null,null,null,"Marque con una \"X\", una o más opciones",null,null,null,null,null,null,null,null,null,null,null,null,null,"Indique, ¿en cuáles ha participado?"]
[null,null,null,null,null,null,null,null,null,null,null,null,null,null,null,null,null,null,null,null,null,"Marque con una \"X\", una o más opciones"]
[null,null,null,null,null,null,null,"","DRE/GRE"]
[null,null,null,null,null,null,null,"","UGEL",null,null,null,null,null,null,null,null,null,null,null,null,null,"Concurso regional o local"]
[null,null,null,null,null,null,null,"","MINEDU",null,"",null,null,null,null,null,null,null,null,null,null,null,"Congreso, conferencias o seminarios"]
[null,null,null,null,null,null,null,"","Otros",null,"",null,null,null,null,null,null,null,null,null,null,null,"Encuentros o talleres regionales/locales"]
[null,null,null,null,null,null,null,null,null,null,null,null,null,null,null,null,null,null,null,null,null,null,"Sistematización y/o publicación del proyecto"]
[null,null,null,null,null,null,null,null,null,null,null,null,null,null,null,null,null,null,null,null,null,null,"Difusión a través de redes sociales u otros medios"]
[null,null,null,null,null,null,null,"¿En qué modalidad se brindó el acompañamiento?",null,null,null,null,null,null,null,null,null,null,null,null,null,null,"Otras actividades"]
[null,null,null,null,null,null,null,"Marque con una “X”, una sola opción"]
[]
[null,null,null,null,null,null,null,"","Presencial",null,null,null,null,null,null,null,null,null,null,"107.C. SELECCIONE LA OPCIÓN SI/NO, SI EN LOS ÚLTIMOS DOCE (12) MESES, ¿HA CONTADO"]
[null,null,null,null,null,null,null,"","Virtual",null,null,null,null,null,null,null,null,null,null,null,"CON ALIADOS ESTRATÉGICOS QUE LE HAYAN BENEFICIADO CON ALGÚN INCENTIVO ECONÓMICO"]
[null,null,null,null,null,null,null,"","Mixto",null,null,null,null,null,null,null,null,null,null,null,"PARA LA IMPLEMENTACIÓN Y/O SOSTENIBILIDAD DE UNA INNOVACIÓN O BUENA PRÁCTICA?"]
[]
[null,null,null,null,null,null,null,null,null,null,null,null,null,null,null,null,null,null,null,null,null,"Aliados Estratégicos",null,null,null,null,"Innovación Educativa",null,null,"Buena práctica"]
[null,null,null,"102.C. ESTE SERVICIO/NIVEL EDUCATIVO, ¿CUENTA CON EL EQUIPAMIENTO PARA EL AULA",null,null,null,null,null,null,null,null,null,null,null,null,null,null,null,null,null,null,null,null,null,{"$f":"AB449+AE449","v":0}]
[null,null,null,null,"FUNCIONAL DE INGLÉS?",null,null,null,null,null,null,null,null,null,null,null,null,null,null,null,1,"Gobierno regional"]
[null,null,null,null,null,null,null,null,null,null,null,null,null,null,null,null,null,null,null,null,2,"DRE"]
[null,null,null,null,"Sí",null,null,null,null,"No  ",null,null,null,null,null,null,null,null,null,null,3,"UGEL"]
[null,null,null,null,null,null,null,null,null,null,null,null,null,null,null,null,null,null,null,null,4,"Gobierno local"]
[null,null,null,null,null,null,null,null,null,null,null,null,null,null,null,null,null,null,null,null,5,"Aliados privados"]
[null,null,null,"103.C. EN ESTE SERVICIO/NIVEL EDUCATIVO, ¿SE HA GESTIONADO ALGÚN TIPO DE ",null,null,null,null,null,null,null,null,null,null,null,null,null,null,null,null,6,"Ministerio de Educación"]
[null,null,null,null,"ACCIÓN FORMATIVA PARA ATENDER LAS NECESIDADES DEL PERSONAL DOCENTE?",null,null,null,null,null,null,null,null,null,null,null,null,null,null,null,7,"Padres y madres de familia"]
[null,null,null,null,null,null,null,null,null,null,null,null,null,null,null,null,null,null,null,null,8,"Recursos propios de la IE"]
[null,null,null,null,"Sí","",null,null,null,"No  ",null,null,null,null,null,null,null,null,null,null,9,"Otro"]
[null,null,null,null,null,null,null,null,null,null,null,null,null,null,null,null,null,null,null,null,null,null,null,null,null,null,null,{"$f":"COUNTIF(AB440:AB448,\"SI\")+COUNTIF(AB440:AB448,\"NO\")","v":0},null,null,{"$f":"COUNTIF(AE440:AE448,\"SI\")+COUNTIF(AE440:AE448,\"NO\")","v":0}]
[null,null,null,null,null,null,null,"¿Qué tipo(s) de acción(es) formativa(s) se gestionaron?"]
[null,null,null,null,null,null,null,"Marque con una \"X\", una o más opciones",null,null,null,null,null,null,null,null,null,null,null,"108.C. SEÑOR(A) DIRECTOR(A), ESTE SERVICIO/NIVEL EDUCATIVO, ¿RECIBE ASISTENCIA TÉCNICA"]
[null,null,null,null,null,null,null,null,null,null,null,null,null,null,null,null,null,null,null,null,"SOBRE COMPETENCIAS CIUDADANAS?"]
[null,null,null,null,null,null,null,"","Cursos virtuales"]
[null,null,null,null,null,null,null,"","Programas formativos ",null,null,null,null,null,null,null,null,null,null,null,"Sí","",null,null,null,"No  "]
[null,null,null,null,null,null,null,"","Otros",""]
[null,null,null,null,null,null,null,null,null,null,null,null,null,null,null,null,null,null,null,null,null,null,null,"¿De parte de quién recibe asistencia técnica?"]
[null,null,null,null,null,null,null,null,null,null,null,null,null,null,null,null,null,null,null,null,null,null,null,"Marque con una \"X\", una opción"]
[null,null,null,"104.C. EN LOS ÚLTIMOS TRES (03) AÑOS, ¿SE HA IMPLEMENTADO EN ESTE SERVICIO/NIVEL"]
[null,null,null,null,"EDUCATIVO ALGÚN PROYECTO DE INNOVACIÓN EDUCATIVA O BUENA PRÁCTICA PEDAGÓGICA?",null,null,null,null,null,null,null,null,null,null,null,null,null,null,null,null,null,null,"","Especialista de ciudadanía y/o área de DPCC de la UGEL"]
[null,null,null,null,null,null,null,null,null,null,null,null,null,null,null,null,null,null,null,null,null,null,null,"","Especialista de ciudadanía y/o área de DPCC de la DRE"]
[null,null,null,null,"Sí","",null,null,null,"No  ",null,null,"Pase a la pregunta 106.C",null,null,null,null,null,null,null,null,null,null,"","Organización aliada "]
[null,null,null,null,null,null,null,null,null,null,null,null,null,null,null,null,null,null,null,null,null,null,null,"","Otro actor",null,""]
[null,null,null,null,null,null,null,"Indique, ¿cuáles se implementaron?"]
[null,null,null,null,"Marque con una \"X\", una o más opciones"]
[null,null,null,null,null,null,null,null,null,null,null,null,null,null,null,null,null,null,null,"109.C. EN EL AÑO 2025, EN ESTE SERVICIO/NIVEL EDUCATIVO, ¿HAN DESARROLLADO"]
[null,null,null,null,"","Proyecto de Innovación educativa",null,null,null,null,null,null,null,null,null,null,null,null,null,null,"ACTIVIDADES DE INDAGACIÓN EXPERIMENTAL EN EL ÁREA DE CIENCIA Y TECNOLOGÍA?"]
[null,null,null,null,"","Proyecto de Investigación educativa"]
[null,null,null,null,"","Buena práctica pedagógica",null,null,null,null,null,null,null,null,null,null,null,null,null,null,"Sí",null,null,null,null,"No  "]
[null,null,null,null,"","Buena práctica de gestión escolar"]
[]
[null,null,null,"105.C ¿QUÉ TEMÁTICA(S) SE ABORDÓ EN EL PROYECTO DESARROLLADO?"]
[null,null,null,null,"Marque con una \"X\", una o más opciones"]
[]
[null,null,null,null,"","Comunicación"]
[null,null,null,null,"","Matemática"]
[null,null,null,null,"","Personal social"]
[null,null,null,null,"","Ciencias sociales"]
[null,null,null,null,"","Educación física"]
[null,null,null,null,"","Psicomotriz"]
[null,null,null,null,"","Tutoría y orientación educativa"]
[null,null,null,null,"","Tecnologías de la información y comunicación"]
[null,null,null,null,"","Gestión escolar"]
[null,null,null,null,"","Salud escolar"]
[null,null,null,null,"","Bienestar socioemocional"]
[null,null,null,null,"","Diversidad de saberes y prácticas culturales"]
[null,null,null,null,"","EIB y Lenguas originarias"]
[null,null,null,null,"","Educación para el trabajo"]
[]
[]
[]
[]
[]
[]
[]
[]
[]
[]
[]
[]
[]
[]
[]
[]
[]
[]
[]
[]
[]
[]
[]
[]
[]
[]
[]
[]
[]
[]
[]
[]
[]
[]
[]
[]
[]
[]
[]
[]
[]
[]
[]
[]
[]
[]
[]
[]
[]
[]
[]
[]
[]
[]
[]
[]
[]
[]
[]
[]
[]
[]
[]
[]
[]
[]
[]
[]
[]
[]
[]
[]
[]
[]
[]
[]
[]
[]
[]
[]
[]
[]
[]
[]
[]
[]
[]
[]
[]
[]
[]
[]
[]
[]
[]
[]
[]
[]
[]
[]
[]
[]
[]
[]
[]
[]
[]
[]
[]
[]
[]
[]
[]
[]
[]
[null,null,null,null,null,null,null,null,null,null,null,null,null,null,null,null,null,null,null,null,null,null,null,null,null,null,null,null,null,null,null,null,null,"","","","","","","","","","","","","","","","","","","","","","","","","","","","","","","","","","","","","","","","","","","","","","","","","","","","","","","","","","","","","","","","","","","","","","","","","","","","","","","","","","","","","","","","","","","","","","","","","",""]
[null,null,null,null,null,null,null,null,null,null,null,null,null,null,null,null,null,null,null,null,null,null,null,null,null,null,null,null,null,null,null,null,null,"","","","","","","","","","","","","","","","","","","","","","","","","","","","","","","","","","","","","","","","","","","","","","","","","","","","","","","","","","","","","","","","","","","","","","","","","","","","","","","","","","","","","","","","","","","","","","","","","",""]
[null,null,null,null,null,null,null,null,null,null,null,null,null,null,null,null,null,null,null,null,null,null,null,null,null,null,null,null,null,null,null,null,null,"","","","","","","","","","","","","","","","","","","","","","","","","","","","","","","","","","","","","","","","","","","","","","","","","","","","","","","","","","","","","","","","","","","","","","","","","","","","","","","","","","","","","","","","","","","","","","","","","",""]
[]
[]
[]
[]
[]
[]
[]
[]
[]
[]
[]
[]
[]
[]
[]
[]
[]
[]
[null,null,null,"SOLO PARA IIEE JEC(Jornada Escolar Completa)",null,null,null,null,null,null,null,null,null,null,null,null,null,null,null,"SOLO PARA IIEE SFT(Secundaria de Formación Técnica)"]
[]
[null,null,null,"110.C. SEÑOR(A) DIRECTOR(A), EN EL AÑO 2025, LOS COORDINADORES PEDAGÓGICOS, ¿DESARROLLARON",null,null,null,null,null,null,null,null,null,null,null,null,null,null,null,"112.C. ¿CUÁLES SON LAS ESPECIALIDADES TÉCNICAS QUE BRINDA ESTE SERVICIO/NIVEL EDUCATIVO?"]
[null,null,null,null,"ACOMPAÑAMIENTO PEDAGÓGICO EN LA MODALIDAD INTERNA AL EQUIPO DE DOCENTES A SU CARGO?",null,null,null,null,null,null,null,null,null,null,null,null,null,null,null,"Escribir el nombre de la especialidad técnica"]
[]
[null,null,null,null,"Sí",null,null,null,null,"No  ",null,null,null,null,null,null,null,null,null,null,1,null,null,null,null,null,null,null,null,null,null,{"$f":"IF(V629=\"\",1,0)","v":1}]
[null,null,null,null,null,null,null,null,null,null,null,null,null,null,null,null,null,null,null,null,2,null,null,null,null,null,null,null,null,null,null,{"$f":"IF(V630=\"\",1,0)","v":1}]
[null,null,null,null,null,null,null,"¿Con qué frecuencia?",null,null,null,null,null,null,null,null,null,null,null,null,3,null,null,null,null,null,null,null,null,null,null,1]
[null,null,null,null,null,null,null,"Marque con una \"X\", una opción",null,null,null,null,null,null,null,null,null,null,null,null,4,null,null,null,null,null,null,null,null,null,null,1]
[null,null,null,null,null,null,null,null,null,null,null,null,null,null,null,null,null,null,null,null,5,null,null,null,null,null,null,null,null,null,null,1]
[null,null,null,null,null,null,null,null,"Todas las semanas",null,null,null,null,null,null,null,null,null,null,null,6,null,null,null,null,null,null,null,null,null,null,1]
[null,null,null,null,null,null,null,null,"Una vez al mes",null,null,null,null,null,null,null,null,null,null,null,7,null,null,null,null,null,null,null,null,null,null,1]
[null,null,null,null,null,null,null,null,"Una vez cada dos meses",null,null,null,null,null,null,null,null,null,null,null,null,null,null,null,null,null,null,null,null,null,null,{"$f":"SUM(AF629:AF635)","v":7}]
[null,null,null,null,null,null,null,null,"Una vez cada semestre"]
[null,null,null,null,null,null,null,null,"Tres veces al año"]
[]
[null,null,null,"111.C. EN EL AÑO 2025, LOS COORDINADORES DE TUTORÍA, ¿DESARROLLAN ACOMPAÑAMIENTO",null,null,null,null,null,null,null,null,null,null,null,null,null,null,null,"113.C. ¿ESTE SERVICIO/NIVEL EDUCATIVO CUENTA CON JEFE DE TALLER?"]
[null,null,null,null,"PEDAGÓGICO EN LA MODALIDAD INTERNA AL EQUIPO DE DOCENTES A SU CARGO?"]
[null,null,null,null,null,null,null,null,null,null,null,null,null,null,null,null,null,null,null,null,"Sí",null,null,null,null,"No  "]
[null,null,null,null,"Sí",null,null,null,null,"No  ",""]
[]
[null,null,null,null,null,null,null,"¿Con qué frecuencia?"]
[null,null,null,null,null,null,null,"Marque con una \"X\", una opción",null,null,null,null,null,null,null,null,null,null,null,null,null,"¿A qué especialidad técnica pertenece el jefe de Taller?"]
[]
[null,null,null,null,null,null,null,null,"Todas las semanas"]
[null,null,null,null,null,null,null,null,"Una vez al mes"]
[null,null,null,null,null,null,null,null,"Una vez cada dos meses"]
[null,null,null,null,null,null,null,null,"Una vez cada semestre"]
[null,null,null,null,null,null,null,null,"Tres veces al año"]
[]
[null,null,null,null,null,null,null,null,null,null,null,null,null,null,null,null,null,null,null,null,null,null,null,""]
[null,null,null,null,null,null,null,null,null,null,null,null,null,null,null,null,null,null,null,null,null,null,null,""]
[null,null,null,null,null,null,null,null,null,null,null,null,null,null,null,null,null,null,null,null,null,null,null,""]

{"sheet":"C101","index":2,"n_rows":213,"n_cols":27,"rows_kept":213,"cut":false,"hidden":false,"merged":[[194,10,195,11],[194,12,194,26],[194,3,196,8],[195,19,195,21],[195,22,195,23],[195,24,195,26],[196,13,196,14],[195,12,195,14],[195,15,195,18],[196,24,196,25],[196,20,196,21],[196,17,196,18],[197,20,197,21],[196,15,196,16],[198,3,198,8],[197,24,197,25],[198,24,198,25],[198,13,198,14],[198,15,198,16],[198,17,198,18],[198,20,198,21],[197,3,197,9],[197,13,197,14],[197,15,197,16],[197,17,197,18],[204,3,206,9],[204,13,205,13],[204,14,204,26],[205,14,206,17],[205,21,206,23],[205,24,206,26],[204,12,205,12],[205,18,206,20],[208,14,208,17],[208,21,208,23],[208,24,208,26],[207,14,207,17],[207,21,207,23],[207,18,207,20],[208,18,208,20],[207,24,207,26],[186,19,186,24],[53,23,53,26],[166,19,166,23],[39,3,39,11],[2,6,2,23],[60,8,60,11],[116,7,116,10],[76,7,76,10],[1,6,1,23],[11,11,13,12],[11,10,13,10],[35,23,35,26],[33,3,33,11]]}
[{"$f":"IF(OR(UPPER('C100'!K31)<>\"\",UPPER('C100'!Q31)<>\"\"),\"X\",\"\")","v":""}]
[{"$f":"IF(UPPER('C100'!Y31)<>\"\",\"X\",\"\")","v":""},null,null,null,null,null,"CENSO EDUCATIVO 2026"]
[null,null,null,null,null,null,"MATRÍCULA, DOCENTES Y MATERIALES EDUCATIVOS"]
[]
[]
[]
[null,null,null,"D. SERVICIOS CON PERTINENCIA CULTURAL (GESTIÓN PÚBLICA Y PRIVADA)"]
["0100: Castellano",null,null,"101.D. DE ACUERDO CON LAS PRACTICAS COTIDIANAS Y COSTUMBRES, ¿USTED CONSIDERA",null,null,null,null,null,null,null,null,null,null,null,"102.D. EN ESTE SERVICIO/NIVEL EDUCATIVO, ¿LOS DOCENTES CONSIDERAN LOS SABERES"]
["0200: Achuar",null,null,null,"QUE SU SERVICIO/NIVEL EDUCATIVO CUENTA CON ESTUDIANTES PERTENECIENTES A LOS",null,null,null,null,null,null,null,null,null,null,null,"Y PRÁCTICAS CULTURALES DEL PUEBLO O PUEBLOS ORIGINARIOS DE SUS ESTUDIANTES"]
["0300: Aimara",null,null,null,"SIGUIENTES GRUPOS ÉTNICOS?",null,null,null,null,null,null,null,null,null,null,null,"EN SUS ACTIVIDADES PEDAGÓGICAS?."]
["0400: Amahuaca"]
["0500: Arabela",null,null,null,null,null,null,null,null,null,"¿Tiene estudiantes?","Solo si respondió “Sí” % estimado del total de estudiantes"]
["0600: Asháninka",null,null,null,null,null,"GRUPO ÉTNICO",null,null,null,null,null,null,null,null,null,"Sí",null,null,null,null,"No  "]
["0610: Asheninka",null,null,null,null,null,null,null,null,{"$f":"COUNTIF(K15:K22,\"SI\")+COUNTIF(K15:K22,\"NO\")","v":0}]
["0700: Awajún",null,null,null,"1. Quechua",null,null,null,null,null,null,null,"%"]
["0800: Bora",null,null,null,"2. Aimara",null,null,null,null,null,null,null,"%"]
["0900: Kapanawa",null,null,null,"3. Indígena u originario de la Amazonía",null,null,null,null,null,null,null,"%"]
["1000: Cashinahua",null,null,null,"4. Perteneciente o parte de otro pueblo indígena",null,null,null,null,null,null,null,"%"]
["1100: Kawki",null,null,null,"5. Negro moreno, zambo, mulato o afroperuano",null,null,null,null,null,null,null,"%"]
["1200: Chamikuro",null,null,null,"6. Blanco",null,null,null,null,null,null,null,"%"]
["1300: Ese eja",null,null,null,"7. Mestizo",null,null,null,null,null,null,null,"%"]
["1400: Harakbut",null,null,null,"8. Otros",null,null,null,null,null,null,null,"%"]
["1500: Iñapari",null,null,null,null,null,null,null,null,null,null,{"$f":"SUM(L15:L22)","v":0}]
["1600: Ikuitu"]
["1700: Iskonawa",null,null,"E. CARACTERÍSTICAS DE LA ENSEÑANZA EN CONTEXTOS INTERCULTURALES BILINGÜES (GESTIÓN PÚBLICA Y PRIVADA)",null,null,null,null,null,null,null,null,null,null,null,null,null,null,null,null,null,""]
["1800: Jaqaru",null,null,null,null,null,null,null,null,null,null,null,null,null,null,null,null,null,null,null,null,""]
["1900: Kakataibo",null,null,"101.E. ESTE SERVICIO/NIVEL EDUCATIVO, ¿ESTÁ RECONOCIDO COMO EIB?",null,null,null,null,null,null,null,null,null,null,null,"105.E. USTED, SEÑOR(A) DIRECTOR(A), ¿CONOCE SI EN LA COMUNIDAD DONDE SE ENCUENTRA EL"]
["2000: Kakinte (caquinte)",null,null,null,null,null,null,null,null,null,null,null,null,null,null,null,"SERVICIO/NIVEL EDUCATIVO, LOS PADRES DE FAMILIA, OTROS ADULTOS Y/O ANCIANOS"]
["2110: Kandozi (Chapra)",null,null,null,"Sí",null,"u","EIB de Fortalecimiento",null,null,null,null,null,null,null,null,"Y ANCIANAS HABLAN UNA LENGUA ORIGINARIA?"]
["2120: Kandozi (Kandozi)",null,null,null,null,null,null,"EIB de Revitalización"]
["2200: Kukama-Kukamiria"]
["2300: Madija (culina)",null,null,null,"No  ",null,null,null,"Pase a la pregunta 105.E.",null,null,null,null,null,null,null,"Sí",null,null,null,null,"No  "]
["2400: Maijiki"]
["2500: Matsés",null,null,"SOLO SI ES EIB DE FORTALECIMIENTO, RESPONDA:"]
["2600: Matsigenka",null,null,"102.E. ESTE SERVICIO/NIVEL EDUCATIVO, ¿OFRECE ENSEÑANZA DEL CASTELLANO COMO"]
["2700: Munichi",null,null,null,"SEGUNDA LENGUA?",null,null,null,null,null,null,null,null,null,null,null,null,null,null,"¿Qué lengua originaria hablan?"]
["2800: Murui-muinanɨ",null,null,null,null,null,null,null,null,null,null,null,null,null,null,null,null,null,null,null,null,null,null,null,"Anote el código según la"]
["2900: Matsigenka-montetokunirira",null,null,null,"Sí",null,null,null,"No  ",null,null,null,null,null,null,null,null,null,null,null,null,null,null,null,"tabla de Lenguas Originarias"]
["3000: Nomatsigenga",null,null,null,null,null,null,null,null,null,null,null,null,null,null,null,null,null,null,null,null,null,null,null,"de la página 16."]
["3100: Ocaina",null,null,"SOLO SI ES EIB DE REVITALIZACIÓN, RESPONDA:"]
["3200: Omagua",null,null,"103.E. ESTE SERVICIO/NIVEL EDUCATIVO, ¿OFRECE ENSEÑANZA DE LA LENGUA ORIGINARIA"]
["3310: Quechua amazónico (Kichwa)",null,null,null,"COMO SEGUNDA LENGUA?"]
["3321: Quechua central (Ancash)"]
["3322: Quechua central (Huánuco)",null,null,null,"Sí",null,null,null,"No  ",null,null,null,null,null,null,"106.E. LOS ESTUDIANTES DE ESTE SERVICIO/NIVEL EDUCATIVO, ¿HABLAN UNA LENGUA ORIGINARIA?"]
["3323: Quechua central (Wanka)"]
["3324: Quechua central (Pasco)",null,null,"104.E. LOS DOCENTES DE ESTE SERVICIO/NIVEL EDUCATIVO, ¿HAN COMPLETADO LAS FICHAS"]
["3331: Quechua norteño (Cajamarca)",null,null,null,"DE DIAGNÓSTICO SOCIOLINGÜÍSTICO Y PSICOLINGÜÍSTICO QUE CARACTERIZA EL NIVEL DE",null,null,null,null,null,null,null,null,null,null,null,"Sí",null,null,null,null,"No  "]
["3332: Quechua norteño (Inkawasi kañaris)",null,null,null,"DOMINIO DE LAS LENGUAS (LENGUA ORIGINARIA Y CASTELLANO) DE LOS ESTUDIANTES"]
["3341: Quechua sureño (Chanka)",null,null,null,"Y LA COMUNIDAD?"]
["3342: Quechua sureño (Collao)"]
["3400: Resígaro",null,null,null,"Sí",null,null,null,"No  "]
["3500: Secoya",null,null,null,null,null,null,null,null,null,null,null,null,null,null,null,null,null,null,"Todos","",null,null,"¿Qué lengua  originaria? "]
["3600: Sharanahua",null,null,null,null,null,null,"Mencione, ¿cómo fueron completadas las fichas?",null,null,null,null,null,null,null,null,null,null,null,"La mayoría",null,null,"u"]
["3700: Shawi",null,null,null,null,null,null,"Marque con una “X”, una opción",null,null,null,null,null,null,null,null,null,null,null,"Pocos"]
["3800: Shipibo-Konibo",null,null,null,null,null,null,null,null,null,null,null,null,null,null,null,null,null,null,null,null,{"$f":"CONCATENATE(V52,V53,V54)","v":""}]
["3900: Shiwilu",null,null,null,null,null,null,"Con ayuda del especialista EIB de la UGEL.",null,null,null,null,null,null,null,null,null,null,null,null,null,null,null,null,"Anote el código según la"]
["4000: Taushiro",null,null,null,null,null,null,"Con el asesoramiento del coordinador de mi Red educativa.",null,null,null,null,null,null,null,null,null,null,null,null,null,null,null,null,"tabla de Lenguas Originarias"]
["4100: Ticuna",null,null,null,null,null,null,"Con el asesoramiento de otro docente que trabaja en mi IE.",null,null,null,null,null,null,null,null,null,null,null,null,null,"",null,null,"de la página 16."]
["4200: Urarina",null,null,null,null,null,null,"Con el apoyo de un docente de mayor experiencia de mi IE."]
["4300: Wampis",null,null,null,null,null,null,"De manera autónoma."]
["4400: Yagua",null,null,null,null,null,null,"Otros",""]
["4500: Yaminahua"]
["4600: Yanesha",null,null,null,null,null,null,null,null,null,null,null,null,null,null,null,null,null,null,null,null,""]
["4700: Yine",null,null,"F. SERVICIO DE APOYO EDUCATIVO (SAE) (GESTIÓN PÚBLICA Y PRIVADA)"]
["4800: Nahua",null,null,"101.F. DURANTE  EL  PRESENTE  AÑO  Y HASTA LA FECHA DE APLICACIÓN DEL  CENSO EDUCATIVO  2025,",null,null,null,null,null,null,null,null,null,null,null,"105.F. USTED SEÑOR(A) DIRECTOR(A), ¿HA RECIBIDO ASESORÍA (PEDAGÓGICA, TÉCNICA,"]
["4900: Lengua de señas peruana ",null,null,null,"¿ALGUNOS  DE  LOS  DOCENTES  HAN RECIBIDO O RECIBEN CAPACITACIÓN Y/O ACOMPAÑAMIENTO",null,null,null,null,null,null,null,null,null,null,null,"EMOCIONAL, EN GESTIÓN DE CASOS O SIMILAR) DEL SAEI (SERVICIO DE APOYO"]
[null,null,null,null,"Y/O ASESORIAS ESPECIALIZADAS EN EL MARCO DE LA EDUCACIÓN INCLUSIVA  POR  PARTE  DEL ",null,null,null,null,null,null,null,null,null,null,null,"EDUCATIVO INTERNO) EN EL MARCO DE UNA EDUCACIÓN INCLUSIVA?"]
["5100: Alemán",null,null,null,"SAE EXTERNO  DE LA  UGEL/DRE/GRE, O  ALGUNA  OTRA  INSTITUCIÓN  EN  EL  MARCO  DE  UNA "]
["5200: Ingles",null,null,null,"EDUCACIÓN INCLUSIVA?",null,null,null,null,null,null,null,null,null,null,null,"Sí",null,null,null,null,"No  "]
["5300: Italiano",null,null,null,"Marque con una \"X\", una o más opciones"]
["5400: Japones",null,null,null,null,null,null,null,null,null,null,null,null,null,null,"106.F. ESTE  SERVICIO/NIVEL EDUCATIVO, ¿HA RECIBIDO LA VISITA DE ALGÚN PROFESIONAL"]
["5500: Portugués",null,null,null,null,"Educación inclusiva para atender a la diversidad",null,null,null,null,null,null,null,null,null,null,"SAE EXTERNO DE LA UGEL?"]
["5600: Ruso",null,null,null,null,"Identificación de barreras educativas"]
["5700: Francés",null,null,null,null,"Implementación de Apoyos Educativos",null,null,null,null,null,null,null,null,null,null,"Sí",null,null,null,null,"No  "]
["5800: Otra",null,null,null,null,"Diseño Universal para el Aprendizaje"]
[null,null,null,null,null,"Plan Educativo Personalizado"]
[null,null,null,null,null,"Otros"]
[null,null,null,null,null,"No han recibido"]
[]
[]
[]
[]
[]
[]
[]
[]
[null,null,null,null,null,null,null,null,null,null,null,null,null,null,null,"107.F. DURANTE EL PRESENTE AÑO Y A LA FECHA DE APLICACIÓN DEL CENSO EDUCATIVO 2026,"]
[null,null,null,null,null,null,null,null,null,null,null,null,null,null,null,null,"RESPECTO A  LA IMPLEMENTACIÓN  DEL SAE EXTERNO DE LA UGEL, ¿ESTE SERVICIO/NIVEL"]
[null,null,null,null,null,null,null,null,null,null,null,null,null,null,null,null,"EDUCATIVO, HA RECIBIDO ALGUNAS DE LAS SIGUIENTES ACCIONES?"]
[null,null,null,"102.F. DURANTE EL PRESENTE AÑO Y HASTA LA FECHA DE APLICACIÓN DEL CENSO EDUCATIVO 2026,",null,null,null,null,null,null,null,null,null,null,null,null,"Marque con una \"X\", una o más opciones"]
[null,null,null,null,"ESTE SERVICIO/NIVEL EDUCATIVO, ¿HA INCORPORADO CAMBIOS EN LOS INSTRUMENTOS DE"]
[null,null,null,null,"GESTIÓN  PARA  IMPLEMENTAR LA EDUCACIÓN INCLUSIVA SEGÚN LAS NORMATIVAS VIGENTES?",null,null,null,null,null,null,null,null,null,null,null,null,"Sensibilización sobre educación inclusiva para la comunidad educativa."]
[null,null,null,null,null,null,null,null,null,null,null,null,null,null,null,null,null,"Asistencia técnica en educación inclusiva al SAEI de su IE"]
[null,null,null,null,"Sí","",null,null,"No  ",null,null,null,null,null,null,null,null,"Acompañamiento en educación inclusiva al SAEI de su IE"]
[null,null,null,null,null,null,null,null,null,null,null,null,null,null,null,null,null,"Asesorías especializadas en educación inclusiva"]
[null,null,null,null,null,null,null,null,null,null,null,null,null,null,null,null,null,"Capacitación en educación inclusiva"]
[null,null,null,null,null,null,null,null,null,null,null,null,null,null,null,null,null,"Soporte sobre la gestión de apoyos educativos"]
["SI",null,null,"103.F. DURANTE EL PRESENTE AÑO Y HASTA LA FECHA DE APLICACIÓN DEL CENSO EDUCATIVO 2025,",null,null,null,null,null,null,null,null,null,null,null,null,null,"Articulación con redes de apoyo promovidas por el SAEE de UGEL"]
["NO",null,null,null,"ESTE SERVICIO/NIVEL EDUCATIVO, ¿HA CONFORMADO EL SERVICIO DE APOYO EDUCATIVO"]
[null,null,null,null,"INTERNO (SAEI)?",null,null,null,null,null,null,null,null,null,null,"108.F. ESTE SERVICIO/NIVEL EDUCATIVO, ¿TIENE ESTUDIANTES MATRICULADOS EN CONDICIÓN"]
[null,null,null,null,null,null,null,null,null,null,null,null,null,null,null,null,"CONDICIÓN DE DISCAPACIDAD?"]
[null,null,null,null,"Sí",null,null,null,"No  "]
[null,null,null,null,null,null,null,null,null,null,null,null,null,null,null,null,"Sí",null,null,null,null,"No  "]
[null,null,null,null,null,null,null," ¿Cuántas personas lo integran?"]
[]
[null,null,null,"104.F. DURANTE EL PRESENTE AÑO Y HASTA LA FECHA DE APLICACIÓN DEL CENSO EDUCATIVO 2026,",null,null,null,null,null,null,null,null,null,null,null,null,null,"¿Los/as estudiantes con discapacidad cuentan con planes "]
[null,null,null,null,"RESPECTO A LA IMPLEMENTACIÓN DEL SAE INTERNO, ESTE SERVICIO/NIVEL EDUCATIVO,",null,null,null,null,null,null,null,null,null,null,null,null,"educativos personalizados (PEP)?"]
[null,null,null,null,"¿HA  REALIZADO  ALGUNAS  DE LAS SIGUIENTES ACCIONES?"]
[null,null,null,null,"Marque con una \"X\", una o más opciones",null,null,null,null,null,null,null,null,null,null,null,null,"Sí",null,null,"No  ",null,null,null,"No   aplica  "]
[]
[null,null,null,null,null,"Sensibilización sobre educación inclusiva para la comunidad educativa."]
[null,null,null,null,null,"Capacitación en educación inclusiva para docentes, directivos y otros agentes educativos.",null,null,null,null,null,null,null,null,null,"109.F. ¿HA RECIBIDO ASISTENCIA Y ORIENTACIÓN PARA LA ATENCIÓN EDUCATIVA"]
[null,null,null,null,null,"Acompañamiento a los docentes (visitas, grupos de interaprendizaje y asesorías)",null,null,null,null,null,null,null,null,null,null,"DE ESTUDIANTES CON DISCAPACIDAD DE PARTE DEL EQUIPO DE SERVICIO DE APOYO"]
[null,null,null,null,null,"Asesorías al equipo directivo y otros agentes educativos.",null,null,null,null,null,null,null,null,null,null,"EDUCATIVO VIRTUAL (SAEV) ?"]
[null,null,null,null,null,"Orientación a las familias."]
[null,null,null,null,null,"Coordinación y articulación con otros servicios de apoyo, comités de gestión escolar."]
[null,null,null,null,null,"Otro",null,null,null,null,null,null,null,null,null,null,"Sí",null,null,null,null,"No  "]
[]
[]
[null,null,null,"G. SUPERVISIÓN DE LA PRESTACIÓN DEL SERVICIO EDUCATIVO DE GESTIÓN PRIVADA"]
[null,null,null,"101.G. DURANTE AL MENOS UNO DE LOS ÚLTIMOS 3 (TRES) AÑOS, ESTE SERVICIO/NIVEL EDUCATIVO",null,null,null,null,null,null,null,null,null,null,null,"103.G.  FORMA DE CONSTITUCIÓN (Sólo para personas jurídicas)"]
[null,null,null,null,"HA SIDO SUPERVISADO ORIENTATIVAMENTE EN CONDICIONES BÁSICAS POR LA UGEL?",null,null,null,null,null,null,null,null,null,null,null,"Marque con un aspa ‘’x’’ y registra la información solicitada según corresponda"]
[]
[null,null,null,null,"Sí",null,null,null,"No  ",null,null,null,null,null,null,null,null,null,"  Sociedad"]
[]
[]
[null,null,null,null,null,"¿Qué aspectos fueron supervisados?",null,null,null,null,null,null,null,null,null,null,null,null,"  Asociación"]
[null,null,null,null,null,"Marque con una \"X\", una o más opciones"]
[]
[null,null,null,null,null,null,"Gestión institucional"]
[null,null,null,null,null,null,"Gestión pedagógica"]
[null,null,null,null,null,null,"Infraestructura educativa"]
[]
[]
[]
[]
[null,null,null,"102.G. COMPLETE LOS SIGUIENTES DATOS SOBRE LA PROMOTORÍA DE ESTE SERVICIO/NIVEL",null,null,null,null,null,null,null,null,null,null,null,"104.G. ¿CUÁNTO ES EL COSTO DE LA PENSIÓN DE ENSEÑANZA (EN MONEDA NACIONAL)?"]
[null,null,null,null,"EDUCATIVO DE GESTIÓN PRIVADA",null,null,null,null,null,null,null,null,null,null,null," Escala:"]
[null,null,null,null,"Marque con un aspa ‘’X’’ y registra la información solicitada según corresponda"]
[null,null,null,null,null,null,null,null,null,null,null,null,null,null,null,null,null,null,"Única",null,"Pensión"]
[null,null,null,null,"Tipo de persona:"]
[null,null,null,null,null,null,null,null,null,null,null,null,null,null,null,null,null,null,null,null,"Escala mínima"]
[null,null,null,null,null,"  Natural",null,null,null,null,"  Jurídica",null,null,null,null,null,null,null,"Varias"]
[null,null,null,null,null,null,null,null,null,null,null,null,null,null,null,null,null,null,null,null,"Escala máxima"]
[]
[]
[]
[]
[]
[]
[]
[]
[null,null,null,"H. ARTICULACIÓN CON LA EDUCACIÓN COMUNITARIA (GESTIÓN PÚBLICA Y PRIVADA)"]
[null,null,null," 101.H. EN  EL  AÑO  2024, ¿SE  HAN  PUESTO  A  DISPOSICIÓN  LAS  INSTALACIONES  DE  ESTE "]
[null,null,null,null,"SERVICIO/NIVEL EDUCATIVO  PARA  EL  DESARROLLO  DE  ACTIVIDADES DE EDUCACIÓN",null,null,null,null,null,null,null,null,null,null,null,"¿Qué temas o contenidos se han abordado en las actividades de educación comunitaria"]
[null,null,null,null,"COMUNITARIA?",null,null,null,null,null,null,null,null,null,null,null,"realizadas en las instalaciones de su institución educativa?"]
[null,null,null,null,null,null,null,null,null,null,null,null,null,null,null,null,"Marque con una \"X\", una o más opciones"]
[]
[null,null,null,null,null,null,null,null,"Sí",null,null,null,null,null,null,null,null,"Ciudadanía y convivencia"]
[null,null,null,null,null,null,null,null,null,null,null,null,null,null,null,null,null,"Pueblos indígenas, diversidad cultural y arte"]
[null,null,null,null,null,null,null,null,null,null,null,null,null,"|",null,null,null,"Gestión pública y gobernabilidad"]
[null,null,null,null,null,null,null,null,null,null,null,null,null,null,null,null,null,"Generación de conocimientos y tecnología"]
[null,null,null,null,null,null,null,null,"No","",null,null,null,null,null,null,null,"Desarrollo de capacidades y liderazgo"]
[null,null,null,null,null,null,null,null,null,null,null,null,null,null,null,null,null,"Trabajo y producción"]
[null,null,null,null,null,null,null,null,null,null,null,null,null,null,null,null,null,"Ambiente y territorio"]
[null,null,null,null,null,null,null,null,null,null,null,null,null,null,null,null,null,"Salud, seguridad alimentaria y deporte"]
[null,null,null,null,null,null,null,null,null,null,null,null,null,null,null,null,null,"Otros"]
[]
[]
[null,null,null,"I. IDENTIFICACIÓN DE RESIDENCIAS ESTUDIANTILES (No incluye COAR) Y SECUNDARIA TUTORIAL, EN ÁMBITOS RURALES"]
[null,null,null,null,"Complete esta sección solamente si el nivel educativo se ofrece en ámbitos rurales"]
[null,null,null,"101.I.  TODOS LOS PADRES DE FAMILIA O APODERADOS QUE SOLICITARON UNA VACANTE AL SERVICIO",null,null,null,null,null,null,null,null,null,null,null,"103.I. LUGAR DÓNDE SE UBICAN, RESIDEN O ALOJAN LOS ESTUDIANTES "]
[null,null,null,null,"EDUCATIVO DE SECUNDARIA CON RESIDENCIA ESTUDIANTIL, ¿LOGRARON OBTENERLA?",null,null,null,null,null,null,null,null,null,null,null,null,null,null,null,null,""]
["Residencias",null,null,null,null,null,null,null,null,null,null,null,null,null,null,null,"Seleccione Sí o No según corresponda en cada alternativa"]
[{"$f":"IF(UPPER('C100'!M22)<>\"\",\"X\",\"\")","v":""},null,null,null,"Sí","",null,null,"No  ",null,null,null,null,null,null,null,"del lugar donde se alojan los residentes"]
["Tutorial"]
[{"$f":"IF(UPPER('C100'!M24)<>\"\",\"X\",\"\")","v":""}]
[null,null,null,null,null,null,null,null,null,null,null,null,null,null,null,null,null,"LUGAR",null,null,null,null,null,null,null,{"$f":"COUNTIF(AA179:AA187,\"SI\")+COUNTIF(AA179:AA187,\"NO\")","v":0}," SI - NO"]
[null,null,null,null,null,null,null,null,null,null,null,null,null,null,null,null,"a.","Residencia o algún ambiente de la IE."]
[null,null,null,null,null,null,null,null,null,null,null,null,null,null,null,null,"b.","Algún ambiente de institución religiosa"]
[null,null,null,null,null,null,null,null,null,null,null,null,null,null,null,null,"c.","Algún ambiente del local"]
[null,null,null,null,null,null,null,null,null,null,null,null,null,null,null,null,"d.","Algún ambiente del salón comunal"]
[null,null,null,null,null,null,null,null,null,null,null,null,null,null,null,null,"e.","Algún ambiente de otras instituciones? (Municipio, otra IIEE., ONG, etc.)"]
[null,null,null,null,null,null,null,null,null,null,null,null,null,null,null,null,"f.","Algún albergue, casa hogar, puericultorio"]
[null,null,null,"102.I. EN EL PRESENTE AÑO, ¿EXISTEN CASOS DE ESTUDIANTES MATRICULADOS QUE VIVEN O PERNOCTAN",null,null,null,null,null,null,null,null,null,null,null,null,"g.","Viviendas particulares"]
[null,null,null,null,"EN UN AMBIENTE DE LA LOCALIDAD Y ACCEDEN AL SERVICIO EDUCATIVO DE SECUNDARIA",null,null,null,null,null,null,null,null,null,null,null,"h.","Pensión o similar (servicio de alojamiento pagado)"]
[null,null,null,null,"CON RESIDENCIA ESTUDIANTIL?",null,null,null,null,null,null,null,null,null,null,null,"i.","Otro"]
[]
[null,null,null,null,"Sí","",null,null,"No  ",null,null," Pase a la pregunta 104.I"]
[]
[]
[null,null,null,"104.I. NÚMERO DE ESTUDIANTES MATRICULADOS SEGÚN MODELO DE SERVICIO DE SECUNDARIA CON RESIDENCIA ESTUDIANTIL O"]
[null,null,null,null,"SECUNDARIA TUTORIAL VINCULADO A ESTE SERVICIO/NIVEL EDUCATIVO."]
[]
[null,null,null,"MODELO DE SERVICIO EDUCATIVO",null,null,null,null,null,null,"TOTAL",null,"GRADO DE ESTUDIO Y SEXO"]
[null,null,null,null,null,null,null,null,null,null,null,null,"1º",null,null,"2º",null,null,null,"3º",null,null,"4º",null,"5º"]
[null,null,null,null,null,null,null,null,null,{"$f":"SUM(K198:L199)","v":0},"H","M","H","M",null,"H",null,"M",null,"H","M",null,"H","M","H",null,"M"]
["01",null,null,"Estudiantes que viven en una residencia estudiantil",null,null,null,null,null,null,{"$f":"M198+P198+T198+W198+Y198","v":0},{"$f":"N198+R198+U198+X198+AA198","v":0}]
["02",null,null,"Estudiantes atendidos bajo el modelo de Serv. S.Tutorial",null,null,null,null,null,null,{"$f":"M199+P199+T199+W199+Y199","v":0},{"$f":"N199+R199+U199+X199+AA199","v":0}]
[null,null,null,null,null,null,null,null,null,null,null,null,null,null,null,null,null,null,null,null,null,""]
[]
[null,null,null,"105.I. NÚMERO TOTAL DE PERSONAL SEGÚN MODELO DE SERVICIO EDUCATIVO DE SECUNDARIA CON RESIDENCIA ESTUDIANTIL O"]
[null,null,null,null,"SECUNDARIA TUTORIAL VINCULADO A ESTE SERVICIO/NIVEL EDUCATIVO."]
[]
[null,null,null,"MODELO DE SERVICIO EDUCATIVO",null,null,null,null,null,null,null,null,"TOTAL",null,"TIPO DE PERSONAL"]
[null,null,null,null,null,null,null,null,null,null,null,null,null,null,"Coordinador(a)",null,null,null,"Gestores (as) Educativos",null,null,"Promotores(as) de Bienestar o Comunitarios",null,null,"Personal de Servicio"]
[null,null,null,null,null,null,null,null,null,null,null,null,{"$f":"M208+M209","v":0}]
["01",null,null,"Actores socioeducativos de la secundaria con residencia estudiantil.",null,null,null,null,null,null,null,null,{"$f":"O208+S208+V208+Y208","v":0}]
["02",null,null,"Actores socioeducativos de la secundaria Tutorial",null,null,null,null,null,null,null,null,{"$f":"O209+S209+V209+Y209","v":0}]
[null,null,null,null,null,null,null,null,null,null,null,null,null,null,null,null,null,null,null,null,null,""]
[null,null,null,null,null,null,null,null,null,null,null,null,null,null,null,null,null,null,null,null,null,""]
[null,null,null,null,null,null,null,null,null,null,null,null,null,null,null,null,null,null,null,null,null,""]
[null,null,null,null,null,null,null,null,null,null,null,null,null,null,null,null,null,null,null,null,null,""]

{"sheet":"C200","index":3,"n_rows":144,"n_cols":21,"rows_kept":144,"cut":false,"hidden":false,"merged":[[15,2,15,3],[6,2,6,17],[1,4,1,16],[2,4,2,16],[11,16,11,17],[11,14,11,15],[10,6,11,7],[11,8,11,9],[11,12,11,13],[11,10,11,11],[43,16,43,17],[41,6,43,7],[43,8,43,9],[33,3,33,16],[43,10,43,11],[43,12,43,13],[43,14,43,15],[118,19,118,20],[117,19,117,20],[113,3,113,18],[103,15,103,16],[106,2,106,4],[107,2,107,4],[108,2,108,4],[109,2,109,4],[102,2,104,4],[102,5,103,6],[103,7,103,8],[103,9,103,10],[103,11,103,12],[103,13,103,14],[120,13,120,14],[119,11,119,20],[120,15,120,16],[120,17,120,18],[135,3,135,8],[127,3,127,8],[120,19,120,20],[124,3,124,8],[119,9,120,10],[123,3,123,8],[119,2,120,8],[120,11,120,12],[88,14,88,15],[88,16,88,17],[88,12,88,13],[60,16,60,17],[60,12,60,13],[87,2,89,4],[87,6,88,7],[88,8,88,9],[88,10,88,11],[59,6,60,7],[60,8,60,9],[60,10,60,11],[75,4,75,5],[142,3,142,8],[125,3,125,8],[126,3,126,8],[131,3,131,8],[132,3,132,8],[136,3,136,8],[141,3,141,8],[137,3,137,8],[139,3,139,8],[140,3,140,8],[128,3,128,8],[129,3,129,8],[138,3,138,8],[130,3,130,8],[133,3,133,8],[134,3,134,8],[27,2,27,3],[60,14,60,15],[23,2,24,3],[23,4,24,4],[23,7,23,11],[23,5,24,5],[23,6,24,6]]}
[]
[null,null,null,null,"CENSO EDUCATIVO 2026"]
[null,null,null,null,"MATRÍCULA, DOCENTES Y MATERIALES EDUCATIVOS"]
[]
[]
[]
[null,null,"200. MATRÍCULA Y SECCIONES\nDocumento fuente : Nómina de matrícula"]
[]
[null,null,201,"MATRÍCULA TOTAL POR GRADO DE ESTUDIO, SEGÚN TURNO DE ENSEÑANZA"]
[]
[null,null,null,null,null,null,"TOTAL",null,"GRADO DE ESTUDIO"]
[null,null,"VARIABLE",null,"TURNO",null,null,null,"1º",null,"2º",null,"3º",null,"4º",null,"5º"]
[null,null,null,null,null,null,"H","M","H","M","H","M","H","M","H","M","H","M"]
["00",null,null,null,"TOTAL",null,{"$f":"SUM(G15:G19)","v":0},{"$f":"SUM(H15:H19)","v":0},{"$f":"SUM(I15:I19)","v":0},0,0,0,0,0,0,0,0,0]
["01",null,null,null,"Mañana",null,{"$f":"I15+K15+M15+O15+Q15","v":0},0]
["02",null,"MATRÍCULA",null,"Tarde",null,0,0]
["03",null,null,null,"Discontinuo",null,0,0]
["04",null,null,null,"Continuo",null,0,0]
["05",null,null,null,"Horario no estable",null,0,0]
[]
[]
[null,null,202,"SECCIONES POR GRADO DE ESTUDIO,  SEGÚN TURNO DE ENSEÑANZA"]
[]
[null,null,"VARIABLE",null,"TURNO",null,"TOTAL","GRADO DE ESTUDIO"]
[null,null,null,null,null,null,null,"1º","2º","3º","4º","5º"]
["00",null,null,null,"TOTAL",null,{"$f":"+H26+I26+J26+K26+L26","v":0},{"$f":"SUM(H27:H31)","v":0},{"$f":"SUM(I27:I31)","v":0},{"$f":"SUM(J27:J31)","v":0},{"$f":"SUM(K27:K31)","v":0},{"$f":"SUM(L27:L31)","v":0}]
["01",null,null,null,"Mañana ",null,0]
["02",null,"SECCIONES",null,"Tarde",null,0]
["03",null,null,null,"Discontinuo",null,0]
["04",null,null,null,"Continuo",null,0]
["05",null,null,null,"Horario no estable",null,0]
[]
[]
[null,null,203,"EN EL MARCO DEL REGLAMENTO DE LA LEY N° 29600, LEY QUE FOMENTA LA REINSERCIÓN ESCOLAR POR EMBARAZO, ¿DURANTE EL AÑO 2025 SE HAN PRESENTADO ESTUDIANTES EN SITUACIÓN DE EMBARAZO, MATERNIDAD Y/O PATERNIDAD EN SU SERVICIO/NIVEL EDUCATIVO?"]
[]
[]
[null,null,null,null,"Sí  ",null,null,null,null,"No",null,null,null,"Pase a la tabla 204"]
[]
[null,null,null,null,null,"Especificar la cantidad de estudiantes"]
[]
[]
[null,null,null,null,null,null,"TOTAL",null,"¿CUÁNTOS HAN CULMINADO EL AÑO ESCOLAR"]
[null,null,null,null,null,null,null,null,"GRADO DE ESTUDIO"]
[null,null,null,"CONDICIÓN DE LOS ESTUDIANTES",null,null,null,null,"1º",null,"2º",null,"3º",null,"4º",null,"5º"]
[null,null,null,null,null,null,"H","M","H","M","H","M","H","M","H","M","H","M"]
["00",null,"TOTAL",null,null,null,{"$f":"SUM(F47:F49)","v":0},{"$f":"SUM(G49:G49)","v":0},0,0,0,0,0,0,0,0,0,0]
["01",null,"En situación de embarazo",null,null,null,{"$f":"I47+K47+M47+O47+Q47","v":0},{"$f":"J47+L47+N47+P47+R47","v":0}]
["02",null,"Madres / Padres",null,null,null,{"$f":"I48+K48+M48+O48+Q48","v":0},{"$f":"J48+L48+N48+P48+R48","v":0}]
[]
[]
[null,null,204,"MATRÍCULA POR GRADO DE ESTUDIO Y SEXO, SEGÚN TIPO DE DISCAPACIDAD"]
[]
[null,null,null,"204.1. ¿TIENE ESTUDIANTES QUE PRESENTEN ALGÚN TIPO DE DISCAPACIDAD?"]
[]
[null,null,null,null,"Sí  ",null,null,null,null,"No"]
[]
[null,null,null,null,null,"Especificar la cantidad de estudiantes"]
[]
[]
["SI",null,null,null,null,null,"TOTAL",null,"GRADO DE ESTUDIO"]
["NO",null,null,"TIPO DE DISCAPACIDAD",null,null,null,null,"1º",null,"2º",null,"3º",null,"4º",null,"5º"]
[null,null,null,null,null,null,"H","M","H","M","H","M","H","M","H","M","H","M"]
["00",null,"TOTAL",null,null,null,{"$f":"SUM(G64:G76)","v":0},0,0,0,0,0,0,0,0,0,0,0]
["01",null,"Discapacidad Intelectual - Leve",null,null,null,{"$f":"I64+K64+M64+O64+Q64","v":0},{"$f":"J64+L64+N64+P64+R64","v":0}]
["02",null,"Discapacidad Intelectual - Moderada",null,null,null,0,0]
["03",null,"Discapacidad Intelectual - Severa",null,null,null,{"$f":"I66+K66+M66+O66+Q66","v":0},{"$f":"J66+L66+N66+P66+R66","v":0}]
["04",null,"Discapacidad Auditiva - Hipoacusia",null,null,null,{"$f":"I67+K67+M67+O67+Q67","v":0},{"$f":"J67+L67+N67+P67+R67","v":0}]
["05",null,"Discapacidad Auditiva - Sordera",null,null,null,0,0]
["06",null,"Discapacidad Visual - Baja Visión",null,null,null,0,0]
["07",null,"Discapacidad Visual - Ceguera",null,null,null,0,0]
["08",null,"Discapacidad Física o Motora",null,null,null,0,0]
["09",null,"TEA - Requiere de apoyo (Nivel 1)",null,null,null,0,0]
["10",null,"TEA - Requiere de apoyo notable  (Nivel 2)",null,null,null,0,0]
["11",null,"TEA - Requiere de apoyo muy notable  (Nivel 3)",null,null,null,{"$f":"I74+K74+M74+O74+Q74","v":0},{"$f":"J74+L74+N74+P74+R74","v":0}]
["12",null,"Sordoceguera",null,null,null,0,0]
["13",null,"Otra discapacidad",null,null,null,0,0]
[null,null,null,null,null,null,{"$f":"IF((G76+H76)>0,\"SI\",\"NO\")","v":"NO"}]
[]
[null,null,205,"MATRÍCULA POR GRADO DE ESTUDIO Y SEXO, SEGÚN OTRAS CONDICIONES DETECTADAS"]
[]
[null,null,null,"205.1. ¿TIENE ESTUDIANTES QUE PRESENTEN ALGUNA OTRA CONDICIÓN DETECTADA?"]
[]
[null,null,null,null,"Sí  ","",null,null,null,"No"]
[]
[null,null,null,null,null,"Especificar la cantidad de estudiantes"]
[]
[]
[null,null,"OTRAS CONDICIONES DETECTADAS",null,null,null,"TOTAL",null,"GRADO DE ESTUDIO"]
[null,null,null,null,null,null,null,null,"1º",null,"2º",null,"3º",null,"4º",null,"5º"]
[null,null,null,null,null,null,"H","M","H","M","H","M","H","M","H","M","H","M"]
["00",null,"TOTAL",null,null,null,{"$f":"SUM(G92:G96)","v":0},0,0,0,0,0,0,0,0,0,0,0]
["01",null,"Estudiantes - Menos de 15 días de hospitalización",null,null,null,{"$f":"I92+K92+M92+O92+Q92","v":0},{"$f":"J92+L92+N92+P92+R92","v":0}]
["02",null,"Estudiantes - De 15 a 30 días de hospitalización",null,null,null,0,0]
["03",null,"Estudiantes - Más de 30 días de hospitalización",null,null,null,0,0]
["04",null,"Talento",null,null,null,{"$f":"I95+K95+M95+O95+Q95","v":0},{"$f":"J95+L95+N95+P95+R95","v":0}]
["05",null,"Superdotación",null,null,null,0,0]
[]
[]
[]
[]
[null,null,206,"MATRÍCULA TOTAL POR GRADO DE ESTUDIO Y SEXO, SEGÚN NÚMERO DE HORAS SEMANALES DEDICADAS A EDUCACIÓN PARA EL TRABAJO"]
[]
[null,null,"HORAS DEDICADAS A EDUCACIÓN\nPARA EL TRABAJO",null,null,"TOTAL",null,"GRADO DE ESTUDIO"]
[null,null,null,null,null,null,null,"1º",null,"2º",null,"3º",null,"4º",null,"5º"]
[null,null,null,null,null,"H","M","H","M","H","M","H","M","H","M","H","M"]
["00",null,"TOTAL",null,null,{"$f":"SUM(F107:F110)","v":0},{"$f":"SUM(G107:G110)","v":0},{"$f":"SUM(H107:H110)","v":0},0,0,0,0,0,0,0,0,0]
["01",null,"Dos horas semanales",null,null,{"$f":"H107+J107+L107+N107+P107","v":0},{"$f":"I107+K107+M107+O107+Q107","v":0}]
["02",null,"Tres horas semanales",null,null,0,0]
["03",null,"Cuatro a siete horas semanales",null,null,0,0]
["04",null,"Ocho horas semanales o más",null,null,{"$f":"H110+J110+L110+N110+P110","v":0},{"$f":"I110+K110+M110+O110+Q110","v":0}]
[null,null,"Nota.-","Los totales de esta tabla deben ser iguales o menores a los de la tabla 201."]
[]
[]
[null,null,207,"MATRÍCULA CON OCHO HORAS SEMANALES O MÁS DEDICADAS A EDUCACIÓN PARA EL TRABAJO POR GRADO DE ESTUDIO Y SEXO,  SEGÚN ESPECIALIDADES EN LOS TALLERES DE EDUCACIÓN PARA EL TRABAJO."]
[]
[null,null,"¿REPORTÓ AL MENOS UN ESTUDIANTE CON OCHO HORAS SEMANALES O MÁS DEDICADAS A EDUCACIÓN PARA EL TRABAJO EN LA TABLA 206. ?"]
[]
[{"$f":"IF(SUM(F110:G110)>0,\"X\",\"\")","v":""},null,null,null,null,"Sí",null,null,null,"No",null,null,null,"Pase a la tabla 300"]
[]
[null,null,"ESCRIBA EL CÓDIGO Y DESCRIPCIÓN DE LAS ESPECIALIDADES EN LOS TALLERES DE EDUCACIÓN PARA EL TRABAJO",null,null,null,null,null,null,"TOTAL",null,"GRADO DE ESTUDIO"]
[null,null,null,null,null,null,null,null,null,null,null,"1º",null,"2º",null,"3º",null,"4º",null,"5º"]
[null,null,"Código",{"$f":"IF(F110+G110>0,1,0)","v":0},null,"Descripción",null,null,null,"H","M","H","M","H","M","H","M","H","M","H","M"]
[null,null,"000","TOTAL",null,null,null,null,null,{"$f":"SUM(J124:J143)","v":0},0,0,0,0,0,0,0,0,0,0,0]
[{"$f":"COUNTIF($D$124:$D$143,D124)","v":0},null,{"$f":"LEFT(D124,3)","v":""},null,null,null,null,null,null,{"$f":"L124+N124+P124+R124+T124","v":0},{"$f":"M124+O124+Q124+S124+U124","v":0}]
[{"$f":"COUNTIF($D$124:$D$143,D125)","v":0},null,{"$f":"LEFT(D125,3)","v":""},null,null,null,null,null,null,0,0]
[0,null,{"$f":"LEFT(D126,3)","v":""},null,null,null,null,null,null,0,0]
[0,null,"",null,null,null,null,null,null,0,0]
[0,null,"",null,null,null,null,null,null,0,0]
[0,null,"",null,null,null,null,null,null,0,0]
[0,null,"",null,null,null,null,null,null,0,0]
[0,null,"",null,null,null,null,null,null,0,0]
[0,null,"",null,null,null,null,null,null,0,0]
[0,null,"",null,null,null,null,null,null,0,0]
[0,null,"",null,null,null,null,null,null,0,0]
[0,null,"",null,null,null,null,null,null,0,0]
[0,null,"",null,null,null,null,null,null,0,0]
[0,null,"",null,null,null,null,null,null,0,0]
[0,null,"",null,null,null,null,null,null,0,0]
[0,null,"",null,null,null,null,null,null,0,0]
[0,null,"",null,null,null,null,null,null,0,0]
[0,null,"",null,null,null,null,null,null,0,0]
[0,null,"",null,null,null,null,null,null,{"$f":"L142+N142+P142+R142+T142","v":0},{"$f":"M142+O142+Q142+S142+U142","v":0}]
[0,null,"",null,null,null,null,null,null,{"$f":"L143+N143+P143+R143+T143","v":0},{"$f":"M143+O143+Q143+S143+U143","v":0}]
[null,null,"* Nota :","Los totales de esta tabla deben ser iguales a los subtotales del item \"Ocho horas semanales o más de Educación para el Trabajo\" reportado en la Tabla 206."]

{"sheet":"C300","index":4,"n_rows":520,"n_cols":111,"rows_kept":520,"cut":false,"hidden":false,"merged":[[16,51,18,51],[16,57,18,57],[16,63,18,63],[16,69,18,69],[16,75,18,75],[16,52,17,56],[16,58,17,62],[16,64,17,68],[16,70,17,74],[15,15,15,16],[1,14,1,23],[2,14,2,23],[16,32,18,32],[16,28,18,28],[16,31,18,31],[16,20,18,20],[16,22,18,22],[16,21,17,21],[16,23,18,23],[16,24,18,24],[16,25,18,25],[16,26,18,26],[16,27,18,27],[6,11,6,25],[16,46,17,50],[16,11,18,11],[16,15,16,16],[16,17,18,17],[16,18,18,18],[16,19,18,19],[16,12,18,12],[16,13,18,13],[16,14,18,14],[16,29,18,29],[16,30,18,30],[16,33,18,33],[16,34,17,38],[16,40,17,44],[16,39,18,39],[16,45,18,45],[16,76,17,80],[16,110,18,110],[16,106,17,106],[16,109,17,109],[16,108,17,108],[16,107,17,107],[16,81,18,81],[16,87,18,87],[16,93,18,93],[16,99,18,99],[16,105,18,105],[16,82,17,86],[16,88,17,92],[16,94,17,98],[16,100,17,104]]}
[]
[null,null,null,null,null,null,null,null,null,null,null,null,null,null,"CENSO EDUCATIVO 2026"]
[null,null,null,null,null,null,null,null,null,null,null,null,null,null,"MATRÍCULA, DOCENTES Y MATERIALES EDUCATIVOS"]
[]
["PERSONAL",{"$f":"P10+V10+Y10","v":0}]
[]
["DOCENTES",{"$f":"COUNTIF(R20:R319,\"01: Docente\")","v":0},null,null,null,null,null,null,null,null,null,"300. PERSONAL DOCENTE, AUXILIARES DE EDUCACIÓN Y ADMINISTRATIVOS"]
["AUXILIARES",{"$f":"COUNTIF(R20:R319,\"03: Aux. de Educación\")","v":0},null,null,null,null,null,null,null,null,null,"Anote los totales del personal que labora en su Institución Educativa:"]
["ADMINISTRATIVOS",{"$f":"COUNTIF(R20:R319,\"02: Administrativo\")","v":0}]
["DOCENTE DE AULA",{"$f":"COUNTIF(AG20:AG319,\"05: (111)-Docente por horas\")","v":0},null,null,null,null,null,null,null,null,null,null,null,"Total Docentes : ",null,null,null,"Docentes por horas :",null,null,"Auxiliares de Educación : ",null,null,"Administrativos : "]
["DOCENTES CON SECCIÓN",{"$f":"COUNTIF(AH20:AH319,\"SI\")","v":0},null,null,null,null,null,null,null,null,null,null,"El “Total Docentes”, considera a todos los que cumplen funciones docentes en la I.E.: Directivos con o sin aula a cargo, docentes de aula por horas, jefes o jerárquicos, especiales (ed. Básica, computación, etc.). En el caso de Auxiliares de Educación y Personal que cumple funciones administrativas, anote el total en los recuadros correspondientes"]
[null,{"$f":"B7+B8+B9","v":0},null,null,null,null,null,null,null,null,null,"En esta tabla, REGISTRE a todo el personal docente, auxiliares de educación y personal administrativo que se encuentre laborando en el servicio/nivel educativo durante el periodo de reporte del censo educativo."]
["DOCENTES DE INGLES",{"$f":"COUNTIF(AU20:AY319,\"X\")","v":0},null,null,null,null,null,null,null,null,null,"(EXCLUYA al personal que se encuentre haciendo uso de licencia y a los que han sido destacados a otra IIEE/DRE/GRE/UGEL)"]
["DOCENTES DE ARTE Y CULTURA",{"$f":"COUNTIF(BA20:BE319,\"X\")","v":0},null,null,null,null,null,null,null,10]
["LENGUA ORIGINARIA",{"$f":"SUM(J20:J319)","v":0}]
["GESTIÓN",{"$f":"IF(OR(UPPER('C100'!K31)=\"X\",UPPER('C100'!Q31)=\"X\"),1,IF(UPPER('C100'!Y31)=\"X\",3,\"\"))","v":""},null,null,null,null,null,null,null,null,null,null,301.10000000000002,301.2,301.3,302,null,303,304,305,306,307,308,309,310,311,312,313,314,315,316,317,318,319,"320. Grados Atendidos por cada área curricular a cargo (Marque con una “X”, según corresponda)",null,null,null,null,null,null,null,null,null,null,null,null,null,null,null,null,null,null,null,null,null,null,null,null,null,null,null,null,null,null,null,null,null,null,null,null,null,null,null,null,null,null,null,null,null,null,null,null,null,null,null,null,null,null,null,null,null,null,null,null,null,null,null,null,null,null,null,null,null,null,null,321.10000000000002,321.2,321.3,322,323]
[null,null,null,null,null,null,null,null,null,null,null,"Nº","Apellido Paterno","Apellido Materno","Nombres","Documento de Identidad",null,"Tipo de\nPersonal","Edad","Sexo","Lengua\nmaterna","¿Domina una\nlengua\noriginaria?","Lengua originaria\nque domina","Fuente de\nfinanciamiento","Condición\nLaboral","Modalidad de Contrato","Máximo nivel\neducativo alcanzado","Especialidad Pedagógica\nque ha estudiado","Tipo de institución donde obtuvo su formación pedagógica","Estudios de Postgrado\nen Pedagogía","Años de\nexperiencia\nlaboral en\neste servicio/nivel\neducativo","Función o cargo","Situación en cargo\ndirectivo","¿Tiene secciones a cargo?","01\nMatemática",null,null,null,null,"Cantidad de horas","02\nComunicación",null,null,null,null,"Cantidad de horas","03\nIngles como lengua extranjera",null,null,null,null,"Cantidad de horas","04\nArte y cultura",null,null,null,null,"Cantidad de horas","05\nCiencias Sociales",null,null,null,null,"Cantidad de horas","06\nDesarrollo personal, ciudadanía y cívica",null,null,null,null,"Cantidad de horas","07\nEducación Física",null,null,null,null,"Cantidad de horas","08\nCiencia y\nTecnología",null,null,null,null,"Cantidad de horas","09\nCastellano como\nsegunda lengua",null,null,null,null,"Cantidad de horas","10\nEducación para el trabajo",null,null,null,null,"Cantidad de horas","11\nEducación religiosa",null,null,null,null,"Cantidad de horas","12\nTutoría y Orientación Educativa",null,null,null,null,"Cantidad de horas","¿Atiende a estudiantes con NEE asociadas a discapacidad?","¿Presenta alguna discapacidad?","Solo si respondió Sí en la pregunta 321.2 ¿Cúal es el tipo de discapacidad?","Desde el año 2025 a la fecha, ¿ha recibido capacitación en la implementación del Currículo Nacional?","Solo si respondió SI en pregunta 322, ¿esta capacitación fue brindada por (MINEDU/DRE/GRE/UGEL) o Entidades Privadas?"]
[null,null,"Exp1","Exp2","Exp3","Exp4","Exp5","Exp6","Exp7","Exp8",null,null,null,null,null,302.10000000000002,302.2]
["302.1 Tipo de documento de Identidad","314. Tipo de institución","Corr","Escala","Gest","Secc","Tipo pers","Duplex","Fmt","Leng",null,null,null,null,null,"Tipo","Número",null,null,null,null,"SI / NO",null,null,null,null,null,null,null,null,null,null,null,null,"1º","2º","3º","4º","5º",null,"1º","2º","3º","4º","5º",null,"1º","2º","3º","4º","5º",null,"1º","2º","3º","4º","5º",null,"1º","2º","3º","4º","5º",null,"1º","2º","3º","4º","5º",null,"1º","2º","3º","4º","5º",null,"1º","2º","3º","4º","5º",null,"1º","2º","3º","4º","5º",null,"1º","2º","3º","4º","5º",null,"1º","2º","3º","4º","5º",null,"1º","2º","3º","4º","5º",null,"SI / NO","SI / NO","SI / NO","SI / NO"]
["01: DNI.","01: IESP (Público)",1,{"$f":"IF(AND(LEFT(R20,2)=\"01\",LEFT(Y20,2)=\"01\",LEFT(X20,2)=\"01\",E20=1),1,0)","v":0},{"$f":"$B$16","v":""},{"$f":"COUNTIF(AI20:DA20,\"X\")","v":0},{"$f":"IF(R20<>\"\",VALUE(LEFT(R20,2)),0)","v":0},{"$f":"IF(Q20<>\"\",COUNTIF($Q$20:$Q$319,Q20),0)","v":0},{"$f":"IF(L20<>\"\",1,0)","v":0},{"$f":"IF(AND(R20=\"01: Docente\",V20=\"SI\"),1,0)","v":0},null,{"$f":"IF($C20<=$B$5,C20,\"\")","v":""}]
["02: Carnet Ext.","02: IESP (Privado)",2,0,{"$f":"$B$16","v":""},0,{"$f":"IF(R21<>\"\",VALUE(LEFT(R21,2)),0)","v":0},{"$f":"IF(Q21<>\"\",COUNTIF($Q$20:$Q$319,Q21),0)","v":0},0,{"$f":"IF(AND(R21=\"01: Docente\",V21=\"SI\"),1,0)","v":0},null,{"$f":"IF($C21<=$B$5,C21,\"\")","v":""}]
["03: Pasaporte","03: Universidad Privada",3,0,"",0,0,0,0,0,null,""]
[null,"04: Universidad Pública",4,0,"",0,0,0,0,0,null,""]
["303. Tipo de Personal",null,5,0,"",0,0,0,0,0,null,""]
["01: Docente",null,6,0,"",0,0,0,0,0,null,""]
["02: Administrativo",null,7,0,"",0,0,0,0,0,null,""]
["03: Aux. de Educación",null,8,0,"",0,0,0,0,0,null,""]
[null,"315. Estudios de Postgrado en Pedagogía",9,0,"",0,0,0,0,0,null,""]
["305. Sexo","Estudios de Maestría y doctorado",10,0,"",0,0,0,0,0,null,""]
["Hombre","01: Maestria concluida con grado",11,0,"",0,0,0,0,0,null,""]
["Mujer","02: Maestria concluida sin grado",12,0,"",0,0,0,0,0,null,""]
[null,"03: Maestria en proceso / No concluidos",13,0,"",0,0,0,0,0,null,""]
["306. Tabla de Lenguas","04: Doctorado concluido con grado",14,0,"",0,0,0,0,0,null,""]
["0100: Castellano","05: Doctorado concluido sin grado",15,0,"",0,0,0,0,0,null,""]
["0200: Achuar","06: Doctorado en proceso / No concluidos",16,0,"",0,0,0,0,0,null,""]
["0300: Aimara","07: Sin Postgrado",17,0,"",0,0,0,0,0,null,""]
["0400: Amahuaca",null,18,0,"",0,0,0,0,0,null,""]
["0500: Arabela",null,19,0,"",0,0,0,0,0,null,""]
["0600: Asháninka","SI / NO",20,0,"",0,0,0,0,0,null,""]
["0610: Asheninka","SI",21,0,"",0,0,0,0,0,null,""]
["0700: Awajún","NO",22,0,"",0,0,0,0,0,null,""]
["0800: Bora",null,23,0,"",0,0,0,0,0,null,""]
["0900: Kapanawa","316. Años de Experiencia Laboral",24,0,"",0,0,0,0,0,null,""]
["1000: Cashinahua","Registre el total de años que tiene como experiencia",25,0,"",0,0,0,0,0,null,""]
["1100: Kawki","en el Tipo de Personal que se está registrando (Tabla 301.)",26,0,"",0,0,0,0,0,null,""]
["1200: Chamikuro",null,27,0,"",0,0,0,0,0,null,""]
["1300: Ese eja","317. Años de experiencia laboral en este servicio/ nivel educativo",28,0,"",0,0,0,0,0,null,""]
["1400: Harakbut","Anote el N° de años de experiencia prestando servicios",29,0,"",0,0,0,0,0,null,""]
["1500: Iñapari","en este servicio/nivel educativo por el tipo de personal",30,0,"",0,0,0,0,0,null,""]
["1600: Ikuitu","que se está registrando (Tabla 301.)",31,0,"",0,0,0,0,0,null,""]
["1700: Iskonawa",null,32,0,"",0,0,0,0,0,null,""]
["1800: Jaqaru",null,33,0,"",0,0,0,0,0,null,""]
["1900: Kakataibo",null,34,0,"",0,0,0,0,0,null,""]
["2000: Kakinte (caquinte)",null,35,0,"",0,0,0,0,0,null,""]
["2110: Kandozi (Chapra)",null,36,0,"",0,0,0,0,0,null,""]
["2120: Kandozi (Kandozi)",null,37,0,"",0,0,0,0,0,null,""]
["2200: Kukama-Kukamiria",null,38,0,"",0,0,0,0,0,null,""]
["2300: Madija (culina)",null,39,0,"",0,0,0,0,0,null,""]
["2400: Maijiki",null,40,0,"",0,0,0,0,0,null,""]
["2500: Matsés",null,41,0,"",0,0,0,0,0,null,""]
["2600: Matsigenka","318. Función o Cargo",42,0,"",0,0,0,0,0,null,""]
["2700: Munichi","(Desempeñado a la fecha de reporte)",43,0,"",0,0,0,0,0,null,""]
["2800: Murui-muinanɨ","Docentes",44,0,"",0,0,0,0,0,null,""]
["2900: Matsigenka-montetokunirira","01: (102)-Director",45,0,"",0,0,0,0,0,null,""]
["3000: Nomatsigenga","02: (103)-Sub Director",46,0,"",0,0,0,0,0,null,""]
["3100: Ocaina","03: (106)-Coordinador, Asesor",47,0,"",0,0,0,0,0,null,""]
["3200: Omagua","04: (111)-Docente por horas",48,0,"",0,0,0,0,0,null,""]
["3310: Quechua amazónico (Kichwa)","05: (117)-Docente de Educación Física",49,0,"",0,0,0,0,0,null,""]
["3321: Quechua central (Ancash)","06: (118)-Docente de Computación",50,0,"",0,0,0,0,0,null,""]
["3322: Quechua central (Huánuco)","07: (119)-Profesor de Innovación Pedagógica",51,0,"",0,0,0,0,0,null,""]
["3323: Quechua central (Wanka)","08: (139)-Otro Docente",52,0,"",0,0,0,0,0,null,""]
["3324: Quechua central (Pasco)","09: (104)-Director Académico",53,0,"",0,0,0,0,0,null,""]
["3331: Quechua norteño (Cajamarca)","10: (105)-Director de Bienestar y Desarrollo",54,0,"",0,0,0,0,0,null,""]
["3332: Quechua norteño (Inkawasi kañaris)","11: (107)-Coordinador Psicopedagógico",55,0,"",0,0,0,0,0,null,""]
["3341: Quechua sureño (Chanka)","12: (133)-Asistente de Dirección General",56,0,"",0,0,0,0,0,null,""]
["3342: Quechua sureño (Collao)","13: (134)-Asistente de Dirección Académica",57,0,"",0,0,0,0,0,null,""]
["3400: Resígaro","14: (135)-Asistente de Dirección de Bienestar Estudiantil",58,0,"",0,0,0,0,0,null,""]
["3500: Secoya","15: (120)-Docente COAR*",59,0,"",0,0,0,0,0,null,""]
["3600: Sharanahua","16: (144)-Docente Tutor",60,0,"",0,0,0,0,0,null,""]
["3700: Shawi","17: (121)-Docente Acompañante Especializado",61,0,"",0,0,0,0,0,null,""]
["3800: Shipibo-Konibo","18: (122)-Docente Coordinador de Monografía",62,0,"",0,0,0,0,0,null,""]
["3900: Shiwilu","19: (140)-Docente monitor",63,0,"",0,0,0,0,0,null,""]
["4000: Taushiro","20: (145)-Coordinador Pedagógico – JEC",64,0,"",0,0,0,0,0,null,""]
["4100: Ticuna","21: (146)-Coordinador Tutoría – JEC",65,{"$f":"IF(AND(LEFT(R84,2)=\"01\",LEFT(Y84,2)=\"01\",LEFT(X84,2)=\"01\",E84=1),1,0)","v":0},"",{"$f":"COUNTIF(AI84:DA84,\"X\")","v":0},0,0,{"$f":"IF(L84<>\"\",1,0)","v":0},0,null,""]
["4200: Urarina","22: (147)-Jefe de Taller - SFT",66,0,{"$f":"$B$16","v":""},0,{"$f":"IF(R85<>\"\",VALUE(LEFT(R85,2)),0)","v":0},{"$f":"IF(Q85<>\"\",COUNTIF($Q$20:$Q$319,Q85),0)","v":0},0,{"$f":"IF(AND(R85=\"01: Docente\",V85=\"SI\"),1,0)","v":0},null,{"$f":"IF($C85<=$B$5,C85,\"\")","v":""}]
["4300: Wampis","Administrativos",67,0,"",0,0,0,0,0,null,""]
["4400: Yagua","23: (501)-Psicólogo",68,0,"",0,0,0,0,0,null,""]
["4500: Yaminahua","24: (502)-Trabajo Social / Servicio Social",69,0,"",0,0,0,0,0,null,""]
["4600: Yanesha","25: (503)-Personal de Salud",70,0,"",0,0,0,0,0,null,""]
["4700: Yine","26: (504)-Administrador / Contador",71,0,"",0,0,0,0,0,null,""]
["4800: Nahua","27: (506)-Auxiliar de Biblioteca",72,0,"",0,0,0,0,0,null,""]
["4900: Lengua de señas peruana ","28: (507)-Auxiliar de Laboratorio",73,0,"",0,0,0,0,0,null,""]
["5100: Alemán","29: (508)-Secretaria u Oficinista",74,0,"",0,0,0,0,0,null,""]
["5200: Ingles","30: (511)-Asistente Administrativo",75,0,"",0,0,0,0,0,null,""]
["5300: Italiano","31: (537)-Guía intérprete de sordoceguera",76,0,"",0,0,0,0,0,null,""]
["5400: Japones","32: (538)-Intérprete de Lengua de Señas Peruana",77,0,"",0,0,0,0,0,null,""]
["5500: Portugués","33: (539)-Modelo Lingüistico",78,0,"",0,0,0,0,0,null,""]
["5600: Ruso","34: (512)-Personal de Servicio - Mantenimiento",79,0,"",0,0,0,0,0,null,""]
["5700: Francés","35: (513)-Personal de Servicio - Cocina",80,0,"",0,0,0,0,0,null,""]
["5800: Otra","36: (514)-Personal de Servicio - Limpieza",81,0,"",0,0,0,0,0,null,""]
[null,"37: (515)-Personal de Servicio - Portero",82,0,"",0,0,0,0,0,null,""]
[null,"38: (516)-Personal de Servicio - Vigilante",83,0,"",0,0,0,0,0,null,""]
["308. Lengua Originaria","39: (517)-Otro personal de servicio",84,0,"",0,0,0,0,0,null,""]
["De: 0200 a 4800","40: (505)-Otro personal profesional",85,0,"",0,0,0,0,0,null,""]
[null,"41: (518)-Otro personal no profesional",86,0,"",0,0,0,0,0,null,""]
["309. Fuente de Financiamiento","42: (524)-Coordinador de bienestar estudiantil",87,0,"",0,0,0,0,0,null,""]
["01: Sector Educación","43: (527)-Responsable de convivencia",88,0,"",0,0,0,0,0,null,""]
["02: Otro sector-ffaa salud","44: (522)-Bibliotecólogo",89,0,"",0,0,0,0,0,null,""]
["03: Municipalidad","45: (523)-Técnico en Biblioteca/ Archivista",90,0,"",0,0,0,0,0,null,""]
["04: Gobierno Regional","46: (521)-Monitores de salud",91,0,"",0,0,0,0,0,null,""]
["05: APAFA","47: (519)-Auxiliar Académico",92,0,"",0,0,0,0,0,null,""]
["06: Otra fuente Privada","48: (520)-Auxiliar de Convivencia",93,0,"",0,0,0,0,0,null,""]
[null,"49: (528)-Soporte Técnico-Informático",94,0,"",0,0,0,0,0,null,""]
["310. Condición Laboral","50: (525)-Coordinador administrativo de residencia",95,0,"",0,0,0,0,0,null,""]
["01: Nombrado","51: (526)-Coordinador de bienestar y residencia",96,0,"",0,0,0,0,0,null,""]
["02: Contratado","52: (529)-Gestores educativos",97,0,"",0,0,0,0,0,null,""]
["03: No aplica","53: (530)-Promotor de bienestar",98,0,"",0,0,0,0,0,null,""]
[null,"54: (531)-Coordinador de CRFA",99,0,"",0,0,0,0,0,null,""]
["311. Modalidad de Contrato",null,100,0,"",0,0,0,0,0,null,""]
["Contrato Público",null,101,0,"",0,0,0,0,0,null,""]
["01: A plazo fijo D. Leg. 728","99: (999)-Auxiliar de Educación",102,0,"",0,0,0,0,0,null,""]
["02: Locación de Serv. / Honorarios",null,103,0,"",0,0,0,0,0,null,""]
["03: CAS - D. Leg. 1057","319. Situación en el Cargo Directivo",104,0,"",0,0,0,0,0,null,""]
["04: Contrato D. Leg. 276","01: Designado",105,0,"",0,0,0,0,0,null,""]
["05: Contrato Ley 30328","02: Encargado",106,0,"",0,0,0,0,0,null,""]
["06: Otra modalidad",null,107,0,"",0,0,0,0,0,null,""]
["Contrato Privado",null,108,0,"",0,0,0,0,0,null,""]
["07: A plazo indefinido (Permanente)",null,109,0,"",0,0,0,0,0,null,""]
["08: Plazo fijo (Tiempo determinado)",null,110,0,"",0,0,0,0,0,null,""]
["09: A tiempo parcial (por horas)",null,111,0,"",0,0,0,0,0,null,""]
["10: Locación de Serv. / Honorarios",null,112,0,"",0,0,0,0,0,null,""]
["11: Otra modalidad",null,113,0,"",0,0,0,0,0,null,""]
[null,null,114,0,"",0,0,0,0,0,null,""]
["312. Máximo Nivel Educativo Alcanzado",null,115,0,"",0,0,0,0,0,null,""]
["01: EP.Concluidos con título",null,116,0,"",0,0,0,0,0,null,""]
["02: EP.Concluidos sin título",null,117,0,"",0,0,0,0,0,null,""]
["03: EP.No concluidos",null,118,0,"",0,0,0,0,0,null,""]
["04: NP.Concluidos con título",null,119,0,"",0,0,0,0,0,null,""]
["05: NP.Concluidos sin título",null,120,0,"",0,0,0,0,0,null,""]
["06: NP.No concluidos",null,121,0,"",0,0,0,0,0,null,""]
["07: Secundaria",null,122,0,"",0,0,0,0,0,null,""]
["08: Primaria",null,123,0,"",0,0,0,0,0,null,""]
[null,null,124,0,"",0,0,0,0,0,null,""]
["313. Especialidad del Título",null,125,0,"",0,0,0,0,0,null,""]
["01: Educación Inicial",null,126,0,"",0,0,0,0,0,null,""]
["02: Educación Primaria",null,127,0,"",0,0,0,0,0,null,""]
["03: E.I. Intercultural Bilingüe",null,128,0,"",0,0,0,0,0,null,""]
["04: E.P. Intercultural Bilingüe",null,129,{"$f":"IF(AND(LEFT(R148,2)=\"01\",LEFT(Y148,2)=\"01\",LEFT(X148,2)=\"01\",E148=1),1,0)","v":0},"",{"$f":"COUNTIF(AI148:DA148,\"X\")","v":0},0,0,{"$f":"IF(L148<>\"\",1,0)","v":0},0,null,""]
["05: Educación Básica Alternativa",null,130,0,{"$f":"$B$16","v":""},0,{"$f":"IF(R149<>\"\",VALUE(LEFT(R149,2)),0)","v":0},{"$f":"IF(Q149<>\"\",COUNTIF($Q$20:$Q$319,Q149),0)","v":0},0,{"$f":"IF(AND(R149=\"01: Docente\",V149=\"SI\"),1,0)","v":0},null,{"$f":"IF($C149<=$B$5,C149,\"\")","v":""}]
["06: Educación Especial",null,131,0,"",0,0,0,0,0,null,""]
["07: Educación Física",null,132,0,"",0,0,0,0,0,null,""]
["08: Educación Artística",null,133,0,"",0,0,0,0,0,null,""]
["09: E.S. Lengua y Literatura",null,134,0,"",0,0,0,0,0,null,""]
["10: E.S. Comunicación","322.2. Tipo de discapacidad",135,0,"",0,0,0,0,0,null,""]
["11: E.S. Matemática y Física","01: Auditiva",136,0,"",0,0,0,0,0,null,""]
["12: E.S. Matemática","02: Visual",137,0,"",0,0,0,0,0,null,""]
["13: E.S. CC.SS. y Filosofía","03: Física o Motora",138,0,"",0,0,0,0,0,null,""]
["14: E.S. Ciencias Sociales","04: Otras",139,0,"",0,0,0,0,0,null,""]
["15: E.S. Ciencias Naturales",null,140,0,"",0,0,0,0,0,null,""]
["16: E.S. Ciencia Tecnología y Ambiente",null,141,0,"",0,0,0,0,0,null,""]
["17: E.S. Alimentación y Nutrición",null,142,0,"",0,0,0,0,0,null,""]
["18: E.S. Biología y Química",null,143,0,"",0,0,0,0,0,null,""]
["19: E.S. Historia y Geografía",null,144,0,"",0,0,0,0,0,null,""]
["20: E.S. CC.HH. Sociales",null,145,0,"",0,0,0,0,0,null,""]
["21: E.S. Idioma Inglés",null,146,0,"",0,0,0,0,0,null,""]
["22: E.S. Educación Religiosa",null,147,0,"",0,0,0,0,0,null,""]
["23: E.S. Educación Familiar",null,148,0,"",0,0,0,0,0,null,""]
["24: E.T. Artes Industriales","323.3. Tipo de estudios en EIB",149,0,"",0,0,0,0,0,null,""]
["25: E.T. Artesanía","01: Doctorado",150,0,"",0,0,0,0,0,null,""]
["26: E.T. Agropecuaria","02: Maestría",151,0,"",0,0,0,0,0,null,""]
["27: E.T. Construcción en Madera","03: Segunda especialidad",152,0,"",0,0,0,0,0,null,""]
["28: E.T. Computación e Informática","04: Especialización",153,0,"",0,0,0,0,0,null,""]
["29: E.T. Carpintería / Ebanista","05: Actualización",154,0,"",0,0,0,0,0,null,""]
["30: E.T. Electricidad","06: Otro",155,0,"",0,0,0,0,0,null,""]
["31: E.T. Electrónica",null,156,0,"",0,0,0,0,0,null,""]
["32: E.T. Ebanistería","Parroquiales",157,0,"",0,0,0,0,0,null,""]
["33: E.T. Industria del Vestido","05: APAFA",158,0,"",0,0,0,0,0,null,""]
["34: E.T. Industria del Vestido, Alimentación y Alta Costura","06: Otra fuente Privada",159,0,"",0,0,0,0,0,null,""]
["35: E.T. Industria del Vestido y Alta Costura","01: Sector Educación",160,0,"",0,0,0,0,0,null,""]
["36: E.T. Industria del Vestido, Alimentación y Artes",null,161,0,"",0,0,0,0,0,null,""]
["37: E.T. Industria Alimentaria",null,162,0,"",0,0,0,0,0,null,""]
["38: E.T. Mecánica Automotriz",null,163,0,"",0,0,0,0,0,null,""]
["39: E.T. Mecánica de Producción","323.3. Tipo de estudios en EIB",164,0,"",0,0,0,0,0,null,""]
["40: E.T. Mecánica de Producción y Soldadura",null,165,0,"",0,0,0,0,0,null,""]
["41: E.T. Textilería",null,166,0,"",0,0,0,0,0,null,""]
["42: Otra Pedagógica",null,167,0,"",0,0,0,0,0,null,""]
[null,null,168,0,"",0,0,0,0,0,null,""]
[null,null,169,0,"",0,0,0,0,0,null,""]
["Area curriculares",null,170,0,"",0,0,0,0,0,null,""]
["01: Matemática",null,171,0,"",0,0,0,0,0,null,""]
["02: Comunicación",null,172,0,"",0,0,0,0,0,null,""]
["03: Ingles",null,173,0,"",0,0,0,0,0,null,""]
["04: Arte y cultura",null,174,0,"",0,0,0,0,0,null,""]
["05: Ciencias Sociales",null,175,0,"",0,0,0,0,0,null,""]
["06: Desarrollo personal ciudadania …",null,176,0,"",0,0,0,0,0,null,""]
["07: Educación Física",null,177,0,"",0,0,0,0,0,null,""]
["08: Ciencia y Tecnología",null,178,0,"",0,0,0,0,0,null,""]
["09: Castellano como segunda lengua",null,179,0,"",0,0,0,0,0,null,""]
["10: Educación para el trabajo",null,180,0,"",0,0,0,0,0,null,""]
["11: Educación religiosa",null,181,0,"",0,0,0,0,0,null,""]
["12: Tutoría y Orientación Educativa",null,182,0,"",0,0,0,0,0,null,""]
[null,null,183,0,"",0,0,0,0,0,null,""]
[null,null,184,0,"",0,0,0,0,0,null,""]
[null,null,185,0,"",0,0,0,0,0,null,""]
[null,null,186,0,"",0,0,0,0,0,null,""]
[null,null,187,0,"",0,0,0,0,0,null,""]
[null,null,188,0,"",0,0,0,0,0,null,""]
[null,null,189,0,"",0,0,0,0,0,null,""]
[null,null,190,0,"",0,0,0,0,0,null,""]
[null,null,191,0,"",0,0,0,0,0,null,""]
[null,null,192,0,"",0,0,0,0,0,null,""]
[null,null,193,{"$f":"IF(AND(LEFT(R212,2)=\"01\",LEFT(Y212,2)=\"01\",LEFT(X212,2)=\"01\",E212=1),1,0)","v":0},"",{"$f":"COUNTIF(AI212:DA212,\"X\")","v":0},0,0,{"$f":"IF(L212<>\"\",1,0)","v":0},0,null,""]
[null,null,194,0,{"$f":"$B$16","v":""},0,{"$f":"IF(R213<>\"\",VALUE(LEFT(R213,2)),0)","v":0},{"$f":"IF(Q213<>\"\",COUNTIF($Q$20:$Q$319,Q213),0)","v":0},0,{"$f":"IF(AND(R213=\"01: Docente\",V213=\"SI\"),1,0)","v":0},null,{"$f":"IF($C213<=$B$5,C213,\"\")","v":""}]
[null,null,195,0,"",0,0,0,0,0,null,""]
[null,null,196,0,"",0,0,0,0,0,null,""]
[null,null,197,0,"",0,0,0,0,0,null,""]
[null,null,198,0,"",0,0,0,0,0,null,""]
[null,null,199,0,"",0,0,0,0,0,null,""]
[null,null,200,0,"",0,{"$f":"IF(R219<>\"\",VALUE(LEFT(R219,2)),0)","v":0},0,{"$f":"IF(L219<>\"\",1,0)","v":0},0,null,""]
[null,null,201,0,"",0,{"$f":"IF(R220<>\"\",VALUE(LEFT(R220,2)),0)","v":0},0,{"$f":"IF(L220<>\"\",1,0)","v":0},0,null,""]
[null,null,202,0,"",0,0,0,0,0,null,""]
[null,null,203,0,"",0,0,0,0,0,null,""]
[null,null,204,0,"",0,0,0,0,0,null,""]
[null,null,205,0,"",0,0,0,0,0,null,""]
[null,null,206,0,"",0,0,0,0,0,null,""]
[null,null,207,0,"",0,0,0,0,0,null,""]
[null,null,208,0,"",0,0,0,0,0,null,""]
[null,null,209,0,"",0,0,0,0,0,null,""]
[null,null,210,0,"",0,0,0,0,0,null,""]
[null,null,211,0,"",0,0,0,0,0,null,""]
[null,null,212,0,"",0,0,0,0,0,null,""]
[null,null,213,0,"",0,0,0,0,0,null,""]
[null,null,214,0,"",0,0,0,0,0,null,""]
[null,null,215,0,"",0,0,0,0,0,null,""]
[null,null,216,0,"",0,0,0,0,0,null,""]
[null,null,217,0,"",0,0,0,0,0,null,""]
[null,null,218,0,"",0,0,0,0,0,null,""]
[null,null,219,0,"",0,0,0,0,0,null,""]
[null,null,220,0,"",0,0,0,0,0,null,""]
[null,null,221,0,"",0,0,0,0,0,null,""]
[null,null,222,0,"",0,0,0,0,0,null,""]
[null,null,223,0,"",0,0,0,0,0,null,""]
[null,null,224,0,"",0,0,0,0,0,null,""]
[null,null,225,0,"",0,0,0,0,0,null,""]
[null,null,226,0,"",0,0,0,0,0,null,""]
[null,null,227,0,"",0,0,0,0,0,null,""]
[null,null,228,0,"",0,0,0,0,0,null,""]
[null,null,229,0,"",0,0,0,0,0,null,""]
[null,null,230,0,"",0,0,0,0,0,null,""]
[null,null,231,0,"",0,0,0,0,0,null,""]
[null,null,232,0,"",0,0,0,0,0,null,""]
[null,null,233,0,"",0,0,0,0,0,null,""]
[null,null,234,0,"",0,0,0,0,0,null,""]
[null,null,235,0,"",0,0,0,0,0,null,""]
[null,null,236,0,"",0,0,0,0,0,null,""]
[null,null,237,0,"",0,0,0,0,0,null,""]
[null,null,238,0,"",0,0,0,0,0,null,""]
[null,null,239,0,"",0,0,0,0,0,null,""]
[null,null,240,0,"",0,0,0,0,0,null,""]
[null,null,241,0,"",0,0,0,0,0,null,""]
[null,null,242,0,"",0,0,0,0,0,null,""]
[null,null,243,0,"",0,0,0,0,0,null,""]
[null,null,244,0,"",0,0,0,0,0,null,""]
[null,null,245,0,"",0,0,0,0,0,null,""]
[null,null,246,0,"",0,0,0,0,0,null,""]
[null,null,247,0,"",0,0,0,0,0,null,""]
[null,null,248,0,"",0,0,0,0,0,null,""]
[null,null,249,0,"",0,0,0,0,0,null,""]
[null,null,250,0,"",0,0,0,0,0,null,""]
[null,null,251,0,"",0,0,0,0,0,null,""]
[null,null,252,0,"",0,0,0,0,0,null,""]
[null,null,253,0,"",0,0,0,0,0,null,""]
[null,null,254,0,"",0,0,0,0,0,null,""]
[null,null,255,0,"",0,0,0,0,0,null,""]
[null,null,256,0,"",0,0,0,0,0,null,""]
[null,null,257,{"$f":"IF(AND(LEFT(R276,2)=\"01\",LEFT(Y276,2)=\"01\",LEFT(X276,2)=\"01\",E276=1),1,0)","v":0},"",{"$f":"COUNTIF(AI276:DA276,\"X\")","v":0},0,0,0,0,null,""]
[null,null,258,0,{"$f":"$B$16","v":""},0,0,{"$f":"IF(Q277<>\"\",COUNTIF($Q$20:$Q$319,Q277),0)","v":0},0,{"$f":"IF(AND(R277=\"01: Docente\",V277=\"SI\"),1,0)","v":0},null,{"$f":"IF($C277<=$B$5,C277,\"\")","v":""}]
[null,null,259,0,"",0,0,0,0,0,null,""]
[null,null,260,0,"",0,0,0,0,0,null,""]
[null,null,261,0,"",0,0,0,0,0,null,""]
[null,null,262,0,"",0,0,0,0,0,null,""]
[null,null,263,0,"",0,0,0,0,0,null,""]
[null,null,264,0,"",0,0,0,0,0,null,""]
[null,null,265,0,"",0,{"$f":"IF(R284<>\"\",VALUE(LEFT(R284,2)),0)","v":0},0,{"$f":"IF(L284<>\"\",1,0)","v":0},0,null,""]
[null,null,266,0,"",0,0,0,0,0,null,""]
[null,null,267,0,"",0,0,0,0,0,null,""]
[null,null,268,0,"",0,0,0,0,0,null,""]
[null,null,269,0,"",0,0,0,0,0,null,""]
[null,null,270,0,"",0,0,0,0,0,null,""]
[null,null,271,0,"",0,0,0,0,0,null,""]
[null,null,272,0,"",0,0,0,0,0,null,""]
[null,null,273,0,"",0,0,0,0,0,null,""]
[null,null,274,0,"",0,0,0,0,0,null,""]
[null,null,275,0,"",0,0,0,0,0,null,""]
[null,null,276,0,"",0,0,0,0,0,null,""]
[null,null,277,0,"",0,0,0,0,0,null,""]
[null,null,278,0,"",0,0,0,0,0,null,""]
[null,null,279,0,"",0,0,0,0,0,null,""]
[null,null,280,0,"",0,0,0,0,0,null,""]
[null,null,281,0,"",0,0,0,0,0,null,""]
[null,null,282,0,"",0,0,0,0,0,null,""]
[null,null,283,0,"",0,0,0,0,0,null,""]
[null,null,284,0,"",0,0,0,0,0,null,""]
[null,null,285,0,"",0,0,0,0,0,null,""]
[null,null,286,0,"",0,0,0,0,0,null,""]
[null,null,287,0,"",0,0,0,0,0,null,""]
[null,null,288,0,"",0,0,0,0,0,null,""]
[null,null,289,0,"",0,0,0,0,0,null,""]
[null,null,290,0,"",0,0,0,0,0,null,""]
[null,null,291,0,"",0,0,0,0,0,null,""]
[null,null,292,0,"",0,0,0,0,0,null,""]
[null,null,293,0,"",0,0,0,0,0,null,""]
[null,null,294,0,"",0,0,0,0,0,null,""]
[null,null,295,0,"",0,0,0,0,0,null,""]
[null,null,296,0,"",0,0,0,0,0,null,""]
[null,null,297,0,"",0,0,0,0,0,null,""]
[null,null,298,0,"",0,0,0,0,0,null,""]
[null,null,299,0,"",0,0,0,0,0,null,""]
[null,null,300,0,"",0,{"$f":"IF(R319<>\"\",VALUE(LEFT(R319,2)),0)","v":0},0,{"$f":"IF(L319<>\"\",1,0)","v":0},0,null,""]
[]
[null,null,null,null,null,null,null,null,null,null,null,null,"---","---","---","---","---","---","---","---","---","---","---","---","---","---","---","---","---","---","---","---","---","---","---","---","---","---","---","---","---","---","---","---","---","---","---","---","---","---","---","---","---","---","---","---","---","---","---","---","---","---","---","---","---","---","---","---","---","---","---","---","---","---","---","---","---","---","---","---","---","---","---","---","---","---","---","---","---","---","---","---","---","---","---","---","---","---","---","---","---","---","---","---","---","---","---",null,"---",null,"---"]
[null,null,null,null,null,null,null,null,null,null,null,null,null,null,null,null,null,"","","","",null,"","","",null,"","",null,null,null,"","","","",null,null,null,null,null,null,null,null,null,null,null,null,null,null,null,null,null,null,null,null,null,null,null,null,null,null,null,null,null,null,null,null,null,null,null,null,null,null,"","",null,"",null,null,null,null,null,null,null,null,null,null,null,null,null,null,null,"",null,"","",null,null,"",null,"",""]
[null,null,null,null,null,null,null,null,null,null,null,null,null,null,null,null,null,"","","","",null,"","","",null,"","",null,null,null,"","","","",null,null,null,null,null,null,null,null,null,null,null,null,null,null,null,null,null,null,null,null,null,null,null,null,null,null,null,null,null,null,null,null,null,null,null,null,null,null,"","",null,"",null,null,null,null,null,null,null,null,null,null,null,null,null,null,null,"",null,"","",null,null,"",null,"",""]
[null,null,null,null,null,null,null,null,null,null,null,null,null,null,null,null,null,"","","","",null,"","","",null,"","",null,null,null,"","","","",null,null,null,null,null,null,null,null,null,null,null,null,null,null,null,null,null,null,null,null,null,null,null,null,null,null,null,null,null,null,null,null,null,null,null,null,null,null,"","",null,"",null,null,null,null,null,null,null,null,null,null,null,null,null,null,null,"",null,"","",null,null,"",null,"",""]
[null,null,null,null,null,null,null,null,null,null,null,null,null,null,null,null,null,"","","","",null,"","","",null,"","",null,null,null,"","","","",null,null,null,null,null,null,null,null,null,null,null,null,null,null,null,null,null,null,null,null,null,null,null,null,null,null,null,null,null,null,null,null,null,null,null,null,null,null,"","",null,"",null,null,null,null,null,null,null,null,null,null,null,null,null,null,null,"",null,"","",null,null,"",null,"",""]
[null,null,null,null,null,null,null,null,null,null,null,null,null,null,null,null,null,"","","","",null,"","","",null,"","",null,null,null,"","","","",null,null,null,null,null,null,null,null,null,null,null,null,null,null,null,null,null,null,null,null,null,null,null,null,null,null,null,null,null,null,null,null,null,null,null,null,null,null,"","",null,"",null,null,null,null,null,null,null,null,null,null,null,null,null,null,null,"",null,"","",null,null,"",null,"",""]
[null,null,null,null,null,null,null,null,null,null,null,null,null,null,null,null,null,"","","","",null,"","","",null,"","",null,null,null,"","","","",null,null,null,null,null,null,null,null,null,null,null,null,null,null,null,null,null,null,null,null,null,null,null,null,null,null,null,null,null,null,null,null,null,null,null,null,null,null,"","",null,"",null,null,null,null,null,null,null,null,null,null,null,null,null,null,null,"",null,"","",null,null,"",null,"",""]
[null,null,null,null,null,null,null,null,null,null,null,null,null,null,null,null,null,"","","","",null,"","","",null,"","",null,null,null,"","","","",null,null,null,null,null,null,null,null,null,null,null,null,null,null,null,null,null,null,null,null,null,null,null,null,null,null,null,null,null,null,null,null,null,null,null,null,null,null,"","",null,"",null,null,null,null,null,null,null,null,null,null,null,null,null,null,null,"",null,"","",null,null,"",null,"",""]
[null,null,null,null,null,null,null,null,null,null,null,null,null,null,null,null,null,"","","","",null,"","","",null,"","",null,null,null,"","","","",null,null,null,null,null,null,null,null,null,null,null,null,null,null,null,null,null,null,null,null,null,null,null,null,null,null,null,null,null,null,null,null,null,null,null,null,null,null,"","",null,"",null,null,null,null,null,null,null,null,null,null,null,null,null,null,null,"",null,"","",null,null,"",null,"",""]
[null,null,null,null,null,null,null,null,null,null,null,null,null,null,null,null,null,"","","","",null,"","","",null,"","",null,null,null,"","","","",null,null,null,null,null,null,null,null,null,null,null,null,null,null,null,null,null,null,null,null,null,null,null,null,null,null,null,null,null,null,null,null,null,null,null,null,null,null,"","",null,"",null,null,null,null,null,null,null,null,null,null,null,null,null,null,null,"",null,"","",null,null,"",null,"",""]
[null,null,null,null,null,null,null,null,null,null,null,null,null,null,null,null,null,"","","","",null,"","","",null,"","",null,null,null,"","","","",null,null,null,null,null,null,null,null,null,null,null,null,null,null,null,null,null,null,null,null,null,null,null,null,null,null,null,null,null,null,null,null,null,null,null,null,null,null,"","",null,"",null,null,null,null,null,null,null,null,null,null,null,null,null,null,null,"",null,"","",null,null,"",null,"",""]
[null,null,null,null,null,null,null,null,null,null,null,null,null,null,null,null,null,"","","","",null,"","","",null,"","",null,null,null,"","","","",null,null,null,null,null,null,null,null,null,null,null,null,null,null,null,null,null,null,null,null,null,null,null,null,null,null,null,null,null,null,null,null,null,null,null,null,null,null,"","",null,"",null,null,null,null,null,null,null,null,null,null,null,null,null,null,null,"",null,"","",null,null,"",null,"",""]
[null,null,null,null,null,null,null,null,null,null,null,null,null,null,null,null,null,"","","","",null,"","","",null,"","",null,null,null,"","","","",null,null,null,null,null,null,null,null,null,null,null,null,null,null,null,null,null,null,null,null,null,null,null,null,null,null,null,null,null,null,null,null,null,null,null,null,null,null,"","",null,"",null,null,null,null,null,null,null,null,null,null,null,null,null,null,null,"",null,"","",null,null,"",null,"",""]
[null,null,null,null,null,null,null,null,null,null,null,null,null,null,null,null,null,"","","","",null,"","","",null,"","",null,null,null,"","","","",null,null,null,null,null,null,null,null,null,null,null,null,null,null,null,null,null,null,null,null,null,null,null,null,null,null,null,null,null,null,null,null,null,null,null,null,null,null,"","",null,"",null,null,null,null,null,null,null,null,null,null,null,null,null,null,null,"",null,"","",null,null,"",null,"",""]
[null,null,null,null,null,null,null,null,null,null,null,null,null,null,null,null,null,"","","","",null,"","","",null,"","",null,null,null,"","","","",null,null,null,null,null,null,null,null,null,null,null,null,null,null,null,null,null,null,null,null,null,null,null,null,null,null,null,null,null,null,null,null,null,null,null,null,null,null,"","",null,"",null,null,null,null,null,null,null,null,null,null,null,null,null,null,null,"",null,"","",null,null,"",null,"",""]
[null,null,null,null,null,null,null,null,null,null,null,null,null,null,null,null,null,"","","","",null,"","","",null,"","",null,null,null,"","","","",null,null,null,null,null,null,null,null,null,null,null,null,null,null,null,null,null,null,null,null,null,null,null,null,null,null,null,null,null,null,null,null,null,null,null,null,null,null,"","",null,"",null,null,null,null,null,null,null,null,null,null,null,null,null,null,null,"",null,"","",null,null,"",null,"",""]
[null,null,null,null,null,null,null,null,null,null,null,null,null,null,null,null,null,"","","","",null,"","","",null,"","",null,null,null,"","","","",null,null,null,null,null,null,null,null,null,null,null,null,null,null,null,null,null,null,null,null,null,null,null,null,null,null,null,null,null,null,null,null,null,null,null,null,null,null,"","",null,"",null,null,null,null,null,null,null,null,null,null,null,null,null,null,null,"",null,"","",null,null,"",null,"",""]
[null,null,null,null,null,null,null,null,null,null,null,null,null,null,null,null,null,"","","","",null,"","","",null,"","",null,null,null,"","","","",null,null,null,null,null,null,null,null,null,null,null,null,null,null,null,null,null,null,null,null,null,null,null,null,null,null,null,null,null,null,null,null,null,null,null,null,null,null,"","",null,"",null,null,null,null,null,null,null,null,null,null,null,null,null,null,null,"",null,"","",null,null,"",null,"",""]
[null,null,null,null,null,null,null,null,null,null,null,null,null,null,null,null,null,"","","","",null,"","","",null,"","",null,null,null,"","","","",null,null,null,null,null,null,null,null,null,null,null,null,null,null,null,null,null,null,null,null,null,null,null,null,null,null,null,null,null,null,null,null,null,null,null,null,null,null,"","",null,"",null,null,null,null,null,null,null,null,null,null,null,null,null,null,null,"",null,"","",null,null,"",null,"",""]
[null,null,null,null,null,null,null,null,null,null,null,null,null,null,null,null,null,"","","","",null,"","","",null,"","",null,null,null,"","","","",null,null,null,null,null,null,null,null,null,null,null,null,null,null,null,null,null,null,null,null,null,null,null,null,null,null,null,null,null,null,null,null,null,null,null,null,null,null,"","",null,"",null,null,null,null,null,null,null,null,null,null,null,null,null,null,null,"",null,"","",null,null,"",null,"",""]
[null,null,null,null,null,null,null,null,null,null,null,null,null,null,null,null,null,"","","","",null,"","","",null,"","",null,null,null,"","","","",null,null,null,null,null,null,null,null,null,null,null,null,null,null,null,null,null,null,null,null,null,null,null,null,null,null,null,null,null,null,null,null,null,null,null,null,null,null,"","",null,"",null,null,null,null,null,null,null,null,null,null,null,null,null,null,null,"",null,"","",null,null,"",null,"",""]
[null,null,null,null,null,null,null,null,null,null,null,null,null,null,null,null,null,"","","","",null,"","","",null,"","",null,null,null,"","","","",null,null,null,null,null,null,null,null,null,null,null,null,null,null,null,null,null,null,null,null,null,null,null,null,null,null,null,null,null,null,null,null,null,null,null,null,null,null,"","",null,"",null,null,null,null,null,null,null,null,null,null,null,null,null,null,null,"",null,"","",null,null,"",null,"",""]
[null,null,null,null,null,null,null,null,null,null,null,null,null,null,null,null,null,"","","","",null,"","","",null,"","",null,null,null,"","","","",null,null,null,null,null,null,null,null,null,null,null,null,null,null,null,null,null,null,null,null,null,null,null,null,null,null,null,null,null,null,null,null,null,null,null,null,null,null,"","",null,"",null,null,null,null,null,null,null,null,null,null,null,null,null,null,null,"",null,"","",null,null,"",null,"",""]
[null,null,null,null,null,null,null,null,null,null,null,null,null,null,null,null,null,"","","","",null,"","","",null,"","",null,null,null,"","","","",null,null,null,null,null,null,null,null,null,null,null,null,null,null,null,null,null,null,null,null,null,null,null,null,null,null,null,null,null,null,null,null,null,null,null,null,null,null,"","",null,"",null,null,null,null,null,null,null,null,null,null,null,null,null,null,null,"",null,"","",null,null,"",null,"",""]
[null,null,null,null,null,null,null,null,null,null,null,null,null,null,null,null,null,"","","","",null,"","","",null,"","",null,null,null,"","","","",null,null,null,null,null,null,null,null,null,null,null,null,null,null,null,null,null,null,null,null,null,null,null,null,null,null,null,null,null,null,null,null,null,null,null,null,null,null,"","",null,"",null,null,null,null,null,null,null,null,null,null,null,null,null,null,null,"",null,"","",null,null,"",null,"",""]
[null,null,null,null,null,null,null,null,null,null,null,null,null,null,null,null,null,"","","","",null,"","","",null,"","",null,null,null,"","","","",null,null,null,null,null,null,null,null,null,null,null,null,null,null,null,null,null,null,null,null,null,null,null,null,null,null,null,null,null,null,null,null,null,null,null,null,null,null,"","",null,"",null,null,null,null,null,null,null,null,null,null,null,null,null,null,null,"",null,"","",null,null,"",null,"",""]
[null,null,null,null,null,null,null,null,null,null,null,null,null,null,null,null,null,"","","","",null,"","","",null,"","",null,null,null,"","","","",null,null,null,null,null,null,null,null,null,null,null,null,null,null,null,null,null,null,null,null,null,null,null,null,null,null,null,null,null,null,null,null,null,null,null,null,null,null,"","",null,"",null,null,null,null,null,null,null,null,null,null,null,null,null,null,null,"",null,"","",null,null,"",null,"",""]
[null,null,null,null,null,null,null,null,null,null,null,null,null,null,null,null,null,"","","","",null,"","","",null,"","",null,null,null,"","","","",null,null,null,null,null,null,null,null,null,null,null,null,null,null,null,null,null,null,null,null,null,null,null,null,null,null,null,null,null,null,null,null,null,null,null,null,null,null,"","",null,"",null,null,null,null,null,null,null,null,null,null,null,null,null,null,null,"",null,"","",null,null,"",null,"",""]
[null,null,null,null,null,null,null,null,null,null,null,null,null,null,null,null,null,"","","","",null,"","","",null,"","",null,null,null,"","","","",null,null,null,null,null,null,null,null,null,null,null,null,null,null,null,null,null,null,null,null,null,null,null,null,null,null,null,null,null,null,null,null,null,null,null,null,null,null,"","",null,"",null,null,null,null,null,null,null,null,null,null,null,null,null,null,null,"",null,"","",null,null,"",null,"",""]
[null,null,null,null,null,null,null,null,null,null,null,null,null,null,null,null,null,"","","","",null,"","","",null,"","",null,null,null,"","","","",null,null,null,null,null,null,null,null,null,null,null,null,null,null,null,null,null,null,null,null,null,null,null,null,null,null,null,null,null,null,null,null,null,null,null,null,null,null,"","",null,"",null,null,null,null,null,null,null,null,null,null,null,null,null,null,null,"",null,"","",null,null,"",null,"",""]
[null,null,null,null,null,null,null,null,null,null,null,null,null,null,null,null,null,"","","","",null,"","","",null,"","",null,null,null,"","","","",null,null,null,null,null,null,null,null,null,null,null,null,null,null,null,null,null,null,null,null,null,null,null,null,null,null,null,null,null,null,null,null,null,null,null,null,null,null,"","",null,"",null,null,null,null,null,null,null,null,null,null,null,null,null,null,null,"",null,"","",null,null,"",null,"",""]
[null,null,null,null,null,null,null,null,null,null,null,null,null,null,null,null,null,"","","","",null,"","","",null,"","",null,null,null,"","","","",null,null,null,null,null,null,null,null,null,null,null,null,null,null,null,null,null,null,null,null,null,null,null,null,null,null,null,null,null,null,null,null,null,null,null,null,null,null,"","",null,"",null,null,null,null,null,null,null,null,null,null,null,null,null,null,null,"",null,"","",null,null,"",null,"",""]
[null,null,null,null,null,null,null,null,null,null,null,null,null,null,null,null,null,"","","","",null,"","","",null,"","",null,null,null,"","","","",null,null,null,null,null,null,null,null,null,null,null,null,null,null,null,null,null,null,null,null,null,null,null,null,null,null,null,null,null,null,null,null,null,null,null,null,null,null,"","",null,"",null,null,null,null,null,null,null,null,null,null,null,null,null,null,null,"",null,"","",null,null,"",null,"",""]
[null,null,null,null,null,null,null,null,null,null,null,null,null,null,null,null,null,"","","","",null,"","","",null,"","",null,null,null,"","","","",null,null,null,null,null,null,null,null,null,null,null,null,null,null,null,null,null,null,null,null,null,null,null,null,null,null,null,null,null,null,null,null,null,null,null,null,null,null,"","",null,"",null,null,null,null,null,null,null,null,null,null,null,null,null,null,null,"",null,"","",null,null,"",null,"",""]
[null,null,null,null,null,null,null,null,null,null,null,null,null,null,null,null,null,"","","","",null,"","","",null,"","",null,null,null,"","","","",null,null,null,null,null,null,null,null,null,null,null,null,null,null,null,null,null,null,null,null,null,null,null,null,null,null,null,null,null,null,null,null,null,null,null,null,null,null,"","",null,"",null,null,null,null,null,null,null,null,null,null,null,null,null,null,null,"",null,"","",null,null,"",null,"",""]
[null,null,null,null,null,null,null,null,null,null,null,null,null,null,null,null,null,"","","","",null,"","","",null,"","",null,null,null,"","","","",null,null,null,null,null,null,null,null,null,null,null,null,null,null,null,null,null,null,null,null,null,null,null,null,null,null,null,null,null,null,null,null,null,null,null,null,null,null,"","",null,"",null,null,null,null,null,null,null,null,null,null,null,null,null,null,null,"",null,"","",null,null,"",null,"",""]
[null,null,null,null,null,null,null,null,null,null,null,null,null,null,null,null,null,"","","","",null,"","","",null,"","",null,null,null,"","","","",null,null,null,null,null,null,null,null,null,null,null,null,null,null,null,null,null,null,null,null,null,null,null,null,null,null,null,null,null,null,null,null,null,null,null,null,null,null,"","",null,"",null,null,null,null,null,null,null,null,null,null,null,null,null,null,null,"",null,"","",null,null,"",null,"",""]
[null,null,null,null,null,null,null,null,null,null,null,null,null,null,null,null,null,"","","","",null,"","","",null,"","",null,null,null,"","","","",null,null,null,null,null,null,null,null,null,null,null,null,null,null,null,null,null,null,null,null,null,null,null,null,null,null,null,null,null,null,null,null,null,null,null,null,null,null,"","",null,"",null,null,null,null,null,null,null,null,null,null,null,null,null,null,null,"",null,"","",null,null,"",null,"",""]
[null,null,null,null,null,null,null,null,null,null,null,null,null,null,null,null,null,"","","","",null,"","","",null,"","",null,null,null,"","","","",null,null,null,null,null,null,null,null,null,null,null,null,null,null,null,null,null,null,null,null,null,null,null,null,null,null,null,null,null,null,null,null,null,null,null,null,null,null,"","",null,"",null,null,null,null,null,null,null,null,null,null,null,null,null,null,null,"",null,"","",null,null,"",null,"",""]
[null,null,null,null,null,null,null,null,null,null,null,null,null,null,null,null,null,"","","","",null,"","","",null,"","",null,null,null,"","","","",null,null,null,null,null,null,null,null,null,null,null,null,null,null,null,null,null,null,null,null,null,null,null,null,null,null,null,null,null,null,null,null,null,null,null,null,null,null,"","",null,"",null,null,null,null,null,null,null,null,null,null,null,null,null,null,null,"",null,"","",null,null,"",null,"",""]
[null,null,null,null,null,null,null,null,null,null,null,null,null,null,null,null,null,"","","","",null,"","","",null,"","",null,null,null,"","","","",null,null,null,null,null,null,null,null,null,null,null,null,null,null,null,null,null,null,null,null,null,null,null,null,null,null,null,null,null,null,null,null,null,null,null,null,null,null,"","",null,"",null,null,null,null,null,null,null,null,null,null,null,null,null,null,null,"",null,"","",null,null,"",null,"",""]
[null,null,null,null,null,null,null,null,null,null,null,null,null,null,null,null,null,"","","","",null,"","","",null,"","",null,null,null,"","","","",null,null,null,null,null,null,null,null,null,null,null,null,null,null,null,null,null,null,null,null,null,null,null,null,null,null,null,null,null,null,null,null,null,null,null,null,null,null,"","",null,"",null,null,null,null,null,null,null,null,null,null,null,null,null,null,null,"",null,"","",null,null,"",null,"",""]
[null,null,null,null,null,null,null,null,null,null,null,null,null,null,null,null,null,"","","","",null,"","","",null,"","",null,null,null,"","","","",null,null,null,null,null,null,null,null,null,null,null,null,null,null,null,null,null,null,null,null,null,null,null,null,null,null,null,null,null,null,null,null,null,null,null,null,null,null,"","",null,"",null,null,null,null,null,null,null,null,null,null,null,null,null,null,null,"",null,"","",null,null,"",null,"",""]
[null,null,null,null,null,null,null,null,null,null,null,null,null,null,null,null,null,"","","","",null,"","","",null,"","",null,null,null,"","","","",null,null,null,null,null,null,null,null,null,null,null,null,null,null,null,null,null,null,null,null,null,null,null,null,null,null,null,null,null,null,null,null,null,null,null,null,null,null,"","",null,"",null,null,null,null,null,null,null,null,null,null,null,null,null,null,null,"",null,"","",null,null,"",null,"",""]
[null,null,null,null,null,null,null,null,null,null,null,null,null,null,null,null,null,"","","","",null,"","","",null,"","",null,null,null,"","","","",null,null,null,null,null,null,null,null,null,null,null,null,null,null,null,null,null,null,null,null,null,null,null,null,null,null,null,null,null,null,null,null,null,null,null,null,null,null,"","",null,"",null,null,null,null,null,null,null,null,null,null,null,null,null,null,null,"",null,"","",null,null,"",null,"",""]
[null,null,null,null,null,null,null,null,null,null,null,null,null,null,null,null,null,"","","","",null,"","","",null,"","",null,null,null,"","","","",null,null,null,null,null,null,null,null,null,null,null,null,null,null,null,null,null,null,null,null,null,null,null,null,null,null,null,null,null,null,null,null,null,null,null,null,null,null,"","",null,"",null,null,null,null,null,null,null,null,null,null,null,null,null,null,null,"",null,"","",null,null,"",null,"",""]
[null,null,null,null,null,null,null,null,null,null,null,null,null,null,null,null,null,"","","","",null,"","","",null,"","",null,null,null,"","","","",null,null,null,null,null,null,null,null,null,null,null,null,null,null,null,null,null,null,null,null,null,null,null,null,null,null,null,null,null,null,null,null,null,null,null,null,null,null,"","",null,"",null,null,null,null,null,null,null,null,null,null,null,null,null,null,null,"",null,"","",null,null,"",null,"",""]
[null,null,null,null,null,null,null,null,null,null,null,null,null,null,null,null,null,"","","","",null,"","","",null,"","",null,null,null,"","","","",null,null,null,null,null,null,null,null,null,null,null,null,null,null,null,null,null,null,null,null,null,null,null,null,null,null,null,null,null,null,null,null,null,null,null,null,null,null,"","",null,"",null,null,null,null,null,null,null,null,null,null,null,null,null,null,null,"",null,"","",null,null,"",null,"",""]
[null,null,null,null,null,null,null,null,null,null,null,null,null,null,null,null,null,"","","","",null,"","","",null,"","",null,null,null,"","","","",null,null,null,null,null,null,null,null,null,null,null,null,null,null,null,null,null,null,null,null,null,null,null,null,null,null,null,null,null,null,null,null,null,null,null,null,null,null,"","",null,"",null,null,null,null,null,null,null,null,null,null,null,null,null,null,null,"",null,"","",null,null,"",null,"",""]
[null,null,null,null,null,null,null,null,null,null,null,null,null,null,null,null,null,"","","","",null,"","","",null,"","",null,null,null,"","","","",null,null,null,null,null,null,null,null,null,null,null,null,null,null,null,null,null,null,null,null,null,null,null,null,null,null,null,null,null,null,null,null,null,null,null,null,null,null,"","",null,"",null,null,null,null,null,null,null,null,null,null,null,null,null,null,null,"",null,"","",null,null,"",null,"",""]
[null,null,null,null,null,null,null,null,null,null,null,null,null,null,null,null,null,"","","","",null,"","","",null,"","",null,null,null,"","","","",null,null,null,null,null,null,null,null,null,null,null,null,null,null,null,null,null,null,null,null,null,null,null,null,null,null,null,null,null,null,null,null,null,null,null,null,null,null,"","",null,"",null,null,null,null,null,null,null,null,null,null,null,null,null,null,null,"",null,"","",null,null,"",null,"",""]
[null,null,null,null,null,null,null,null,null,null,null,null,null,null,null,null,null,"","","","",null,"","","",null,"","",null,null,null,"","","","",null,null,null,null,null,null,null,null,null,null,null,null,null,null,null,null,null,null,null,null,null,null,null,null,null,null,null,null,null,null,null,null,null,null,null,null,null,null,"","",null,"",null,null,null,null,null,null,null,null,null,null,null,null,null,null,null,"",null,"","",null,null,"",null,"",""]
[null,null,null,null,null,null,null,null,null,null,null,null,null,null,null,null,null,"","","","",null,"","","",null,"","",null,null,null,"","","","",null,null,null,null,null,null,null,null,null,null,null,null,null,null,null,null,null,null,null,null,null,null,null,null,null,null,null,null,null,null,null,null,null,null,null,null,null,null,"","",null,"",null,null,null,null,null,null,null,null,null,null,null,null,null,null,null,"",null,"","",null,null,"",null,"",""]
[null,null,null,null,null,null,null,null,null,null,null,null,null,null,null,null,null,"","","","",null,"","","",null,"","",null,null,null,"","","","",null,null,null,null,null,null,null,null,null,null,null,null,null,null,null,null,null,null,null,null,null,null,null,null,null,null,null,null,null,null,null,null,null,null,null,null,null,null,"","",null,"",null,null,null,null,null,null,null,null,null,null,null,null,null,null,null,"",null,"","",null,null,"",null,"",""]
[null,null,null,null,null,null,null,null,null,null,null,null,null,null,null,null,null,"","","","",null,"","","",null,"","",null,null,null,"","","","",null,null,null,null,null,null,null,null,null,null,null,null,null,null,null,null,null,null,null,null,null,null,null,null,null,null,null,null,null,null,null,null,null,null,null,null,null,null,"","",null,"",null,null,null,null,null,null,null,null,null,null,null,null,null,null,null,"",null,"","",null,null,"",null,"",""]
[null,null,null,null,null,null,null,null,null,null,null,null,null,null,null,null,null,"","","","",null,"","","",null,"","",null,null,null,"","","","",null,null,null,null,null,null,null,null,null,null,null,null,null,null,null,null,null,null,null,null,null,null,null,null,null,null,null,null,null,null,null,null,null,null,null,null,null,null,"","",null,"",null,null,null,null,null,null,null,null,null,null,null,null,null,null,null,"",null,"","",null,null,"",null,"",""]
[null,null,null,null,null,null,null,null,null,null,null,null,null,null,null,null,null,"","","","",null,"","","",null,"","",null,null,null,"","","","",null,null,null,null,null,null,null,null,null,null,null,null,null,null,null,null,null,null,null,null,null,null,null,null,null,null,null,null,null,null,null,null,null,null,null,null,null,null,"","",null,"",null,null,null,null,null,null,null,null,null,null,null,null,null,null,null,"",null,"","",null,null,"",null,"",""]
[null,null,null,null,null,null,null,null,null,null,null,null,null,null,null,null,null,"","","","",null,"","","",null,"","",null,null,null,"","","","",null,null,null,null,null,null,null,null,null,null,null,null,null,null,null,null,null,null,null,null,null,null,null,null,null,null,null,null,null,null,null,null,null,null,null,null,null,null,"","",null,"",null,null,null,null,null,null,null,null,null,null,null,null,null,null,null,"",null,"","",null,null,"",null,"",""]
[null,null,null,null,null,null,null,null,null,null,null,null,null,null,null,null,null,"","","","",null,"","","",null,"","",null,null,null,"","","","",null,null,null,null,null,null,null,null,null,null,null,null,null,null,null,null,null,null,null,null,null,null,null,null,null,null,null,null,null,null,null,null,null,null,null,null,null,null,"","",null,"",null,null,null,null,null,null,null,null,null,null,null,null,null,null,null,"",null,"","",null,null,"",null,"",""]
[null,null,null,null,null,null,null,null,null,null,null,null,null,null,null,null,null,"","","","",null,"","","",null,"","",null,null,null,"","","","",null,null,null,null,null,null,null,null,null,null,null,null,null,null,null,null,null,null,null,null,null,null,null,null,null,null,null,null,null,null,null,null,null,null,null,null,null,null,"","",null,"",null,null,null,null,null,null,null,null,null,null,null,null,null,null,null,"",null,"","",null,null,"",null,"",""]
[null,null,null,null,null,null,null,null,null,null,null,null,null,null,null,null,null,"","","","",null,"","","",null,"","",null,null,null,"","","","",null,null,null,null,null,null,null,null,null,null,null,null,null,null,null,null,null,null,null,null,null,null,null,null,null,null,null,null,null,null,null,null,null,null,null,null,null,null,"","",null,"",null,null,null,null,null,null,null,null,null,null,null,null,null,null,null,"",null,"","",null,null,"",null,"",""]
[null,null,null,null,null,null,null,null,null,null,null,null,null,null,null,null,null,"","","","",null,"","","",null,"","",null,null,null,"","","","",null,null,null,null,null,null,null,null,null,null,null,null,null,null,null,null,null,null,null,null,null,null,null,null,null,null,null,null,null,null,null,null,null,null,null,null,null,null,"","",null,"",null,null,null,null,null,null,null,null,null,null,null,null,null,null,null,"",null,"","",null,null,"",null,"",""]
[null,null,null,null,null,null,null,null,null,null,null,null,null,null,null,null,null,"","","","",null,"","","",null,"","",null,null,null,"","","","",null,null,null,null,null,null,null,null,null,null,null,null,null,null,null,null,null,null,null,null,null,null,null,null,null,null,null,null,null,null,null,null,null,null,null,null,null,null,"","",null,"",null,null,null,null,null,null,null,null,null,null,null,null,null,null,null,"",null,"","",null,null,"",null,"",""]
[null,null,null,null,null,null,null,null,null,null,null,null,null,null,null,null,null,"","","","",null,"","","",null,"","",null,null,null,"","","","",null,null,null,null,null,null,null,null,null,null,null,null,null,null,null,null,null,null,null,null,null,null,null,null,null,null,null,null,null,null,null,null,null,null,null,null,null,null,"","",null,"",null,null,null,null,null,null,null,null,null,null,null,null,null,null,null,"",null,"","",null,null,"",null,"",""]
[null,null,null,null,null,null,null,null,null,null,null,null,null,null,null,null,null,"","","","",null,"","","",null,"","",null,null,null,"","","","",null,null,null,null,null,null,null,null,null,null,null,null,null,null,null,null,null,null,null,null,null,null,null,null,null,null,null,null,null,null,null,null,null,null,null,null,null,null,"","",null,"",null,null,null,null,null,null,null,null,null,null,null,null,null,null,null,"",null,"","",null,null,"",null,"",""]
[null,null,null,null,null,null,null,null,null,null,null,null,null,null,null,null,null,"","","","",null,"","","",null,"","",null,null,null,"","","","",null,null,null,null,null,null,null,null,null,null,null,null,null,null,null,null,null,null,null,null,null,null,null,null,null,null,null,null,null,null,null,null,null,null,null,null,null,null,"","",null,"",null,null,null,null,null,null,null,null,null,null,null,null,null,null,null,"",null,"","",null,null,"",null,"",""]
[null,null,null,null,null,null,null,null,null,null,null,null,null,null,null,null,null,"","","","",null,"","","",null,"","",null,null,null,"","","","",null,null,null,null,null,null,null,null,null,null,null,null,null,null,null,null,null,null,null,null,null,null,null,null,null,null,null,null,null,null,null,null,null,null,null,null,null,null,"","",null,"",null,null,null,null,null,null,null,null,null,null,null,null,null,null,null,"",null,"","",null,null,"",null,"",""]
[null,null,null,null,null,null,null,null,null,null,null,null,null,null,null,null,null,"","","","",null,"","","",null,"","",null,null,null,"","","","",null,null,null,null,null,null,null,null,null,null,null,null,null,null,null,null,null,null,null,null,null,null,null,null,null,null,null,null,null,null,null,null,null,null,null,null,null,null,"","",null,"",null,null,null,null,null,null,null,null,null,null,null,null,null,null,null,"",null,"","",null,null,"",null,"",""]
[null,null,null,null,null,null,null,null,null,null,null,null,null,null,null,null,null,"","","","",null,"","","",null,"","",null,null,null,"","","","",null,null,null,null,null,null,null,null,null,null,null,null,null,null,null,null,null,null,null,null,null,null,null,null,null,null,null,null,null,null,null,null,null,null,null,null,null,null,"","",null,"",null,null,null,null,null,null,null,null,null,null,null,null,null,null,null,"",null,"","",null,null,"",null,"",""]
[null,null,null,null,null,null,null,null,null,null,null,null,null,null,null,null,null,"","","","",null,"","","",null,"","",null,null,null,"","","","",null,null,null,null,null,null,null,null,null,null,null,null,null,null,null,null,null,null,null,null,null,null,null,null,null,null,null,null,null,null,null,null,null,null,null,null,null,null,"","",null,"",null,null,null,null,null,null,null,null,null,null,null,null,null,null,null,"",null,"","",null,null,"",null,"",""]
[null,null,null,null,null,null,null,null,null,null,null,null,null,null,null,null,null,"","","","",null,"","","",null,"","",null,null,null,"","","","",null,null,null,null,null,null,null,null,null,null,null,null,null,null,null,null,null,null,null,null,null,null,null,null,null,null,null,null,null,null,null,null,null,null,null,null,null,null,"","",null,"",null,null,null,null,null,null,null,null,null,null,null,null,null,null,null,"",null,"","",null,null,"",null,"",""]
[null,null,null,null,null,null,null,null,null,null,null,null,null,null,null,null,null,"","","","",null,"","","",null,"","",null,null,null,"","","","",null,null,null,null,null,null,null,null,null,null,null,null,null,null,null,null,null,null,null,null,null,null,null,null,null,null,null,null,null,null,null,null,null,null,null,null,null,null,"","",null,"",null,null,null,null,null,null,null,null,null,null,null,null,null,null,null,"",null,"","",null,null,"",null,"",""]
[null,null,null,null,null,null,null,null,null,null,null,null,null,null,null,null,null,"","","","",null,"","","",null,"","",null,null,null,"","","","",null,null,null,null,null,null,null,null,null,null,null,null,null,null,null,null,null,null,null,null,null,null,null,null,null,null,null,null,null,null,null,null,null,null,null,null,null,null,"","",null,"",null,null,null,null,null,null,null,null,null,null,null,null,null,null,null,"",null,"","",null,null,"",null,"",""]
[null,null,null,null,null,null,null,null,null,null,null,null,null,null,null,null,null,"","","","",null,"","","",null,"","",null,null,null,"","","","",null,null,null,null,null,null,null,null,null,null,null,null,null,null,null,null,null,null,null,null,null,null,null,null,null,null,null,null,null,null,null,null,null,null,null,null,null,null,"","",null,"",null,null,null,null,null,null,null,null,null,null,null,null,null,null,null,"",null,"","",null,null,"",null,"",""]
[null,null,null,null,null,null,null,null,null,null,null,null,null,null,null,null,null,"","","","",null,"","","",null,"","",null,null,null,"","","","",null,null,null,null,null,null,null,null,null,null,null,null,null,null,null,null,null,null,null,null,null,null,null,null,null,null,null,null,null,null,null,null,null,null,null,null,null,null,"","",null,"",null,null,null,null,null,null,null,null,null,null,null,null,null,null,null,"",null,"","",null,null,"",null,"",""]
[null,null,null,null,null,null,null,null,null,null,null,null,null,null,null,null,null,"","","","",null,"","","",null,"","",null,null,null,"","","","",null,null,null,null,null,null,null,null,null,null,null,null,null,null,null,null,null,null,null,null,null,null,null,null,null,null,null,null,null,null,null,null,null,null,null,null,null,null,"","",null,"",null,null,null,null,null,null,null,null,null,null,null,null,null,null,null,"",null,"","",null,null,"",null,"",""]
[null,null,null,null,null,null,null,null,null,null,null,null,null,null,null,null,null,"","","","",null,"","","",null,"","",null,null,null,"","","","",null,null,null,null,null,null,null,null,null,null,null,null,null,null,null,null,null,null,null,null,null,null,null,null,null,null,null,null,null,null,null,null,null,null,null,null,null,null,"","",null,"",null,null,null,null,null,null,null,null,null,null,null,null,null,null,null,"",null,"","",null,null,"",null,"",""]
[null,null,null,null,null,null,null,null,null,null,null,null,null,null,null,null,null,"","","","",null,"","","",null,"","",null,null,null,"","","","",null,null,null,null,null,null,null,null,null,null,null,null,null,null,null,null,null,null,null,null,null,null,null,null,null,null,null,null,null,null,null,null,null,null,null,null,null,null,"","",null,"",null,null,null,null,null,null,null,null,null,null,null,null,null,null,null,"",null,"","",null,null,"",null,"",""]
[null,null,null,null,null,null,null,null,null,null,null,null,null,null,null,null,null,"","","","",null,"","","",null,"","",null,null,null,"","","","",null,null,null,null,null,null,null,null,null,null,null,null,null,null,null,null,null,null,null,null,null,null,null,null,null,null,null,null,null,null,null,null,null,null,null,null,null,null,"","",null,"",null,null,null,null,null,null,null,null,null,null,null,null,null,null,null,"",null,"","",null,null,"",null,"",""]
[null,null,null,null,null,null,null,null,null,null,null,null,null,null,null,null,null,"","","","",null,"","","",null,"","",null,null,null,"","","","",null,null,null,null,null,null,null,null,null,null,null,null,null,null,null,null,null,null,null,null,null,null,null,null,null,null,null,null,null,null,null,null,null,null,null,null,null,null,"","",null,"",null,null,null,null,null,null,null,null,null,null,null,null,null,null,null,"",null,"","",null,null,"",null,"",""]
[null,null,null,null,null,null,null,null,null,null,null,null,null,null,null,null,null,"","","","",null,"","","",null,"","",null,null,null,"","","","",null,null,null,null,null,null,null,null,null,null,null,null,null,null,null,null,null,null,null,null,null,null,null,null,null,null,null,null,null,null,null,null,null,null,null,null,null,null,"","",null,"",null,null,null,null,null,null,null,null,null,null,null,null,null,null,null,"",null,"","",null,null,"",null,"",""]
[null,null,null,null,null,null,null,null,null,null,null,null,null,null,null,null,null,"","","","",null,"","","",null,"","",null,null,null,"","","","",null,null,null,null,null,null,null,null,null,null,null,null,null,null,null,null,null,null,null,null,null,null,null,null,null,null,null,null,null,null,null,null,null,null,null,null,null,null,"","",null,"",null,null,null,null,null,null,null,null,null,null,null,null,null,null,null,"",null,"","",null,null,"",null,"",""]
[null,null,null,null,null,null,null,null,null,null,null,null,null,null,null,null,null,"","","","",null,"","","",null,"","",null,null,null,"","","","",null,null,null,null,null,null,null,null,null,null,null,null,null,null,null,null,null,null,null,null,null,null,null,null,null,null,null,null,null,null,null,null,null,null,null,null,null,null,"","",null,"",null,null,null,null,null,null,null,null,null,null,null,null,null,null,null,"",null,"","",null,null,"",null,"",""]
[null,null,null,null,null,null,null,null,null,null,null,null,null,null,null,null,null,"","","","",null,"","","",null,"","",null,null,null,"","","","",null,null,null,null,null,null,null,null,null,null,null,null,null,null,null,null,null,null,null,null,null,null,null,null,null,null,null,null,null,null,null,null,null,null,null,null,null,null,"","",null,"",null,null,null,null,null,null,null,null,null,null,null,null,null,null,null,"",null,"","",null,null,"",null,"",""]
[null,null,null,null,null,null,null,null,null,null,null,null,null,null,null,null,null,"","","","",null,"","","",null,"","",null,null,null,"","","","",null,null,null,null,null,null,null,null,null,null,null,null,null,null,null,null,null,null,null,null,null,null,null,null,null,null,null,null,null,null,null,null,null,null,null,null,null,null,"","",null,"",null,null,null,null,null,null,null,null,null,null,null,null,null,null,null,"",null,"","",null,null,"",null,"",""]
[null,null,null,null,null,null,null,null,null,null,null,null,null,null,null,null,null,"","","","",null,"","","",null,"","",null,null,null,"","","","",null,null,null,null,null,null,null,null,null,null,null,null,null,null,null,null,null,null,null,null,null,null,null,null,null,null,null,null,null,null,null,null,null,null,null,null,null,null,"","",null,"",null,null,null,null,null,null,null,null,null,null,null,null,null,null,null,"",null,"","",null,null,"",null,"",""]
[null,null,null,null,null,null,null,null,null,null,null,null,null,null,null,null,null,"","","","",null,"","","",null,"","",null,null,null,"","","","",null,null,null,null,null,null,null,null,null,null,null,null,null,null,null,null,null,null,null,null,null,null,null,null,null,null,null,null,null,null,null,null,null,null,null,null,null,null,"","",null,"",null,null,null,null,null,null,null,null,null,null,null,null,null,null,null,"",null,"","",null,null,"",null,"",""]
[null,null,null,null,null,null,null,null,null,null,null,null,null,null,null,null,null,"","","","",null,"","","",null,"","",null,null,null,"","","","",null,null,null,null,null,null,null,null,null,null,null,null,null,null,null,null,null,null,null,null,null,null,null,null,null,null,null,null,null,null,null,null,null,null,null,null,null,null,"","",null,"",null,null,null,null,null,null,null,null,null,null,null,null,null,null,null,"",null,"","",null,null,"",null,"",""]
[null,null,null,null,null,null,null,null,null,null,null,null,null,null,null,null,null,"","","","",null,"","","",null,"","",null,null,null,"","","","",null,null,null,null,null,null,null,null,null,null,null,null,null,null,null,null,null,null,null,null,null,null,null,null,null,null,null,null,null,null,null,null,null,null,null,null,null,null,"","",null,"",null,null,null,null,null,null,null,null,null,null,null,null,null,null,null,"",null,"","",null,null,"",null,"",""]
[null,null,null,null,null,null,null,null,null,null,null,null,null,null,null,null,null,"","","","",null,"","","",null,"","",null,null,null,"","","","",null,null,null,null,null,null,null,null,null,null,null,null,null,null,null,null,null,null,null,null,null,null,null,null,null,null,null,null,null,null,null,null,null,null,null,null,null,null,"","",null,"",null,null,null,null,null,null,null,null,null,null,null,null,null,null,null,"",null,"","",null,null,"",null,"",""]
[null,null,null,null,null,null,null,null,null,null,null,null,null,null,null,null,null,"","","","",null,"","","",null,"","",null,null,null,"","","","",null,null,null,null,null,null,null,null,null,null,null,null,null,null,null,null,null,null,null,null,null,null,null,null,null,null,null,null,null,null,null,null,null,null,null,null,null,null,"","",null,"",null,null,null,null,null,null,null,null,null,null,null,null,null,null,null,"",null,"","",null,null,"",null,"",""]
[null,null,null,null,null,null,null,null,null,null,null,null,null,null,null,null,null,"","","","",null,"","","",null,"","",null,null,null,"","","","",null,null,null,null,null,null,null,null,null,null,null,null,null,null,null,null,null,null,null,null,null,null,null,null,null,null,null,null,null,null,null,null,null,null,null,null,null,null,"","",null,"",null,null,null,null,null,null,null,null,null,null,null,null,null,null,null,"",null,"","",null,null,"",null,"",""]
[null,null,null,null,null,null,null,null,null,null,null,null,null,null,null,null,null,"","","","",null,"","","",null,"","",null,null,null,"","","","",null,null,null,null,null,null,null,null,null,null,null,null,null,null,null,null,null,null,null,null,null,null,null,null,null,null,null,null,null,null,null,null,null,null,null,null,null,null,"","",null,"",null,null,null,null,null,null,null,null,null,null,null,null,null,null,null,"",null,"","",null,null,"",null,"",""]
[null,null,null,null,null,null,null,null,null,null,null,null,null,null,null,null,null,"","","","",null,"","","",null,"","",null,null,null,"","","","",null,null,null,null,null,null,null,null,null,null,null,null,null,null,null,null,null,null,null,null,null,null,null,null,null,null,null,null,null,null,null,null,null,null,null,null,null,null,"","",null,"",null,null,null,null,null,null,null,null,null,null,null,null,null,null,null,"",null,"","",null,null,"",null,"",""]
[null,null,null,null,null,null,null,null,null,null,null,null,null,null,null,null,null,"","","","",null,"","","",null,"","",null,null,null,"","","","",null,null,null,null,null,null,null,null,null,null,null,null,null,null,null,null,null,null,null,null,null,null,null,null,null,null,null,null,null,null,null,null,null,null,null,null,null,null,"","",null,"",null,null,null,null,null,null,null,null,null,null,null,null,null,null,null,"",null,"","",null,null,"",null,"",""]
[null,null,null,null,null,null,null,null,null,null,null,null,null,null,null,null,null,"","","","",null,"","","",null,"","",null,null,null,"","","","",null,null,null,null,null,null,null,null,null,null,null,null,null,null,null,null,null,null,null,null,null,null,null,null,null,null,null,null,null,null,null,null,null,null,null,null,null,null,"","",null,"",null,null,null,null,null,null,null,null,null,null,null,null,null,null,null,"",null,"","",null,null,"",null,"",""]
[null,null,null,null,null,null,null,null,null,null,null,null,null,null,null,null,null,"","","","",null,"","","",null,"","",null,null,null,"","","","",null,null,null,null,null,null,null,null,null,null,null,null,null,null,null,null,null,null,null,null,null,null,null,null,null,null,null,null,null,null,null,null,null,null,null,null,null,null,"","",null,"",null,null,null,null,null,null,null,null,null,null,null,null,null,null,null,"",null,"","",null,null,"",null,"",""]
[null,null,null,null,null,null,null,null,null,null,null,null,null,null,null,null,null,"","","","",null,"","","",null,"","",null,null,null,"","","","",null,null,null,null,null,null,null,null,null,null,null,null,null,null,null,null,null,null,null,null,null,null,null,null,null,null,null,null,null,null,null,null,null,null,null,null,null,null,"","",null,"",null,null,null,null,null,null,null,null,null,null,null,null,null,null,null,"",null,"","",null,null,"",null,"",""]
[null,null,null,null,null,null,null,null,null,null,null,null,null,null,null,null,null,"","","","",null,"","","",null,"","",null,null,null,"","","","",null,null,null,null,null,null,null,null,null,null,null,null,null,null,null,null,null,null,null,null,null,null,null,null,null,null,null,null,null,null,null,null,null,null,null,null,null,null,"","",null,"",null,null,null,null,null,null,null,null,null,null,null,null,null,null,null,"",null,"","",null,null,"",null,"",""]
[null,null,null,null,null,null,null,null,null,null,null,null,null,null,null,null,null,"","","","",null,"","","",null,"","",null,null,null,"","","","",null,null,null,null,null,null,null,null,null,null,null,null,null,null,null,null,null,null,null,null,null,null,null,null,null,null,null,null,null,null,null,null,null,null,null,null,null,null,"","",null,"",null,null,null,null,null,null,null,null,null,null,null,null,null,null,null,"",null,"","",null,null,"",null,"",""]
[null,null,null,null,null,null,null,null,null,null,null,null,null,null,null,null,null,"","","","",null,"","","",null,"","",null,null,null,"","","","",null,null,null,null,null,null,null,null,null,null,null,null,null,null,null,null,null,null,null,null,null,null,null,null,null,null,null,null,null,null,null,null,null,null,null,null,null,null,"","",null,"",null,null,null,null,null,null,null,null,null,null,null,null,null,null,null,"",null,"","",null,null,"",null,"",""]
[null,null,null,null,null,null,null,null,null,null,null,null,null,null,null,null,null,"","","","",null,"","","",null,"","",null,null,null,"","","","",null,null,null,null,null,null,null,null,null,null,null,null,null,null,null,null,null,null,null,null,null,null,null,null,null,null,null,null,null,null,null,null,null,null,null,null,null,null,"","",null,"",null,null,null,null,null,null,null,null,null,null,null,null,null,null,null,"",null,"","",null,null,"",null,"",""]
[null,null,null,null,null,null,null,null,null,null,null,null,null,null,null,null,null,"","","","",null,"","","",null,"","",null,null,null,"","","","",null,null,null,null,null,null,null,null,null,null,null,null,null,null,null,null,null,null,null,null,null,null,null,null,null,null,null,null,null,null,null,null,null,null,null,null,null,null,"","",null,"",null,null,null,null,null,null,null,null,null,null,null,null,null,null,null,"",null,"","",null,null,"",null,"",""]
[null,null,null,null,null,null,null,null,null,null,null,null,null,null,null,null,null,"","","","",null,"","","",null,"","",null,null,null,"","","","",null,null,null,null,null,null,null,null,null,null,null,null,null,null,null,null,null,null,null,null,null,null,null,null,null,null,null,null,null,null,null,null,null,null,null,null,null,null,"","",null,"",null,null,null,null,null,null,null,null,null,null,null,null,null,null,null,"",null,"","",null,null,"",null,"",""]
[null,null,null,null,null,null,null,null,null,null,null,null,null,null,null,null,null,"","","","",null,"","","",null,"","",null,null,null,"","","","",null,null,null,null,null,null,null,null,null,null,null,null,null,null,null,null,null,null,null,null,null,null,null,null,null,null,null,null,null,null,null,null,null,null,null,null,null,null,"","",null,"",null,null,null,null,null,null,null,null,null,null,null,null,null,null,null,"",null,"","",null,null,"",null,"",""]
[null,null,null,null,null,null,null,null,null,null,null,null,null,null,null,null,null,"","","","",null,"","","",null,"","",null,null,null,"","","","",null,null,null,null,null,null,null,null,null,null,null,null,null,null,null,null,null,null,null,null,null,null,null,null,null,null,null,null,null,null,null,null,null,null,null,null,null,null,"","",null,"",null,null,null,null,null,null,null,null,null,null,null,null,null,null,null,"",null,"","",null,null,"",null,"",""]
[null,null,null,null,null,null,null,null,null,null,null,null,null,null,null,null,null,"","","","",null,"","","",null,"","",null,null,null,"","","","",null,null,null,null,null,null,null,null,null,null,null,null,null,null,null,null,null,null,null,null,null,null,null,null,null,null,null,null,null,null,null,null,null,null,null,null,null,null,"","",null,"",null,null,null,null,null,null,null,null,null,null,null,null,null,null,null,"",null,"","",null,null,"",null,"",""]
[null,null,null,null,null,null,null,null,null,null,null,null,null,null,null,null,null,"","","","",null,"","","",null,"","",null,null,null,"","","","",null,null,null,null,null,null,null,null,null,null,null,null,null,null,null,null,null,null,null,null,null,null,null,null,null,null,null,null,null,null,null,null,null,null,null,null,null,null,"","",null,"",null,null,null,null,null,null,null,null,null,null,null,null,null,null,null,"",null,"","",null,null,"",null,"",""]
[null,null,null,null,null,null,null,null,null,null,null,null,null,null,null,null,null,"","","","",null,"","","",null,"","",null,null,null,"","","","",null,null,null,null,null,null,null,null,null,null,null,null,null,null,null,null,null,null,null,null,null,null,null,null,null,null,null,null,null,null,null,null,null,null,null,null,null,null,"","",null,"",null,null,null,null,null,null,null,null,null,null,null,null,null,null,null,"",null,"","",null,null,"",null,"",""]
[null,null,null,null,null,null,null,null,null,null,null,null,null,null,null,null,null,"","","","",null,"","","",null,"","",null,null,null,"","","","",null,null,null,null,null,null,null,null,null,null,null,null,null,null,null,null,null,null,null,null,null,null,null,null,null,null,null,null,null,null,null,null,null,null,null,null,null,null,"","",null,"",null,null,null,null,null,null,null,null,null,null,null,null,null,null,null,"",null,"","",null,null,"",null,"",""]
[null,null,null,null,null,null,null,null,null,null,null,null,null,null,null,null,null,"","","","",null,"","","",null,"","",null,null,null,"","","","",null,null,null,null,null,null,null,null,null,null,null,null,null,null,null,null,null,null,null,null,null,null,null,null,null,null,null,null,null,null,null,null,null,null,null,null,null,null,"","",null,"",null,null,null,null,null,null,null,null,null,null,null,null,null,null,null,"",null,"","",null,null,"",null,"",""]
[null,null,null,null,null,null,null,null,null,null,null,null,null,null,null,null,null,"","","","",null,"","","",null,"","",null,null,null,"","","","",null,null,null,null,null,null,null,null,null,null,null,null,null,null,null,null,null,null,null,null,null,null,null,null,null,null,null,null,null,null,null,null,null,null,null,null,null,null,"","",null,"",null,null,null,null,null,null,null,null,null,null,null,null,null,null,null,"",null,"","",null,null,"",null,"",""]
[null,null,null,null,null,null,null,null,null,null,null,null,null,null,null,null,null,"","","","",null,"","","",null,"","",null,null,null,"","","","",null,null,null,null,null,null,null,null,null,null,null,null,null,null,null,null,null,null,null,null,null,null,null,null,null,null,null,null,null,null,null,null,null,null,null,null,null,null,"","",null,"",null,null,null,null,null,null,null,null,null,null,null,null,null,null,null,"",null,"","",null,null,"",null,"",""]
[null,null,null,null,null,null,null,null,null,null,null,null,null,null,null,null,null,"","","","",null,"","","",null,"","",null,null,null,"","","","",null,null,null,null,null,null,null,null,null,null,null,null,null,null,null,null,null,null,null,null,null,null,null,null,null,null,null,null,null,null,null,null,null,null,null,null,null,null,"","",null,"",null,null,null,null,null,null,null,null,null,null,null,null,null,null,null,"",null,"","",null,null,"",null,"",""]
[null,null,null,null,null,null,null,null,null,null,null,null,null,null,null,null,null,"","","","",null,"","","",null,"","",null,null,null,"","","","",null,null,null,null,null,null,null,null,null,null,null,null,null,null,null,null,null,null,null,null,null,null,null,null,null,null,null,null,null,null,null,null,null,null,null,null,null,null,"","",null,"",null,null,null,null,null,null,null,null,null,null,null,null,null,null,null,"",null,"","",null,null,"",null,"",""]
[null,null,null,null,null,null,null,null,null,null,null,null,null,null,null,null,null,"","","","",null,"","","",null,"","",null,null,null,"","","","",null,null,null,null,null,null,null,null,null,null,null,null,null,null,null,null,null,null,null,null,null,null,null,null,null,null,null,null,null,null,null,null,null,null,null,null,null,null,"","",null,"",null,null,null,null,null,null,null,null,null,null,null,null,null,null,null,"",null,"","",null,null,"",null,"",""]
[null,null,null,null,null,null,null,null,null,null,null,null,null,null,null,null,null,"","","","",null,"","","",null,"","",null,null,null,"","","","",null,null,null,null,null,null,null,null,null,null,null,null,null,null,null,null,null,null,null,null,null,null,null,null,null,null,null,null,null,null,null,null,null,null,null,null,null,null,"","",null,"",null,null,null,null,null,null,null,null,null,null,null,null,null,null,null,"",null,"","",null,null,"",null,"",""]
[null,null,null,null,null,null,null,null,null,null,null,null,null,null,null,null,null,"","","","",null,"","","",null,"","",null,null,null,"","","","",null,null,null,null,null,null,null,null,null,null,null,null,null,null,null,null,null,null,null,null,null,null,null,null,null,null,null,null,null,null,null,null,null,null,null,null,null,null,"","",null,"",null,null,null,null,null,null,null,null,null,null,null,null,null,null,null,"",null,"","",null,null,"",null,"",""]
[null,null,null,null,null,null,null,null,null,null,null,null,null,null,null,null,null,"","","","",null,"","","",null,"","",null,null,null,"","","","",null,null,null,null,null,null,null,null,null,null,null,null,null,null,null,null,null,null,null,null,null,null,null,null,null,null,null,null,null,null,null,null,null,null,null,null,null,null,"","",null,"",null,null,null,null,null,null,null,null,null,null,null,null,null,null,null,"",null,"","",null,null,"",null,"",""]
[null,null,null,null,null,null,null,null,null,null,null,null,null,null,null,null,null,"","","","",null,"","","",null,"","",null,null,null,"","","","",null,null,null,null,null,null,null,null,null,null,null,null,null,null,null,null,null,null,null,null,null,null,null,null,null,null,null,null,null,null,null,null,null,null,null,null,null,null,"","",null,"",null,null,null,null,null,null,null,null,null,null,null,null,null,null,null,"",null,"","",null,null,"",null,"",""]
[null,null,null,null,null,null,null,null,null,null,null,null,null,null,null,null,null,"","","","",null,"","","",null,"","",null,null,null,"","","","",null,null,null,null,null,null,null,null,null,null,null,null,null,null,null,null,null,null,null,null,null,null,null,null,null,null,null,null,null,null,null,null,null,null,null,null,null,null,"","",null,"",null,null,null,null,null,null,null,null,null,null,null,null,null,null,null,"",null,"","",null,null,"",null,"",""]
[null,null,null,null,null,null,null,null,null,null,null,null,null,null,null,null,null,"","","","",null,"","","",null,"","",null,null,null,"","","","",null,null,null,null,null,null,null,null,null,null,null,null,null,null,null,null,null,null,null,null,null,null,null,null,null,null,null,null,null,null,null,null,null,null,null,null,null,null,"","",null,"",null,null,null,null,null,null,null,null,null,null,null,null,null,null,null,"",null,"","",null,null,"",null,"",""]
[null,null,null,null,null,null,null,null,null,null,null,null,null,null,null,null,null,"","","","",null,"","","",null,"","",null,null,null,"","","","",null,null,null,null,null,null,null,null,null,null,null,null,null,null,null,null,null,null,null,null,null,null,null,null,null,null,null,null,null,null,null,null,null,null,null,null,null,null,"","",null,"",null,null,null,null,null,null,null,null,null,null,null,null,null,null,null,"",null,"","",null,null,"",null,"",""]
[null,null,null,null,null,null,null,null,null,null,null,null,null,null,null,null,null,"","","","",null,"","","",null,"","",null,null,null,"","","","",null,null,null,null,null,null,null,null,null,null,null,null,null,null,null,null,null,null,null,null,null,null,null,null,null,null,null,null,null,null,null,null,null,null,null,null,null,null,"","",null,"",null,null,null,null,null,null,null,null,null,null,null,null,null,null,null,"",null,"","",null,null,"",null,"",""]
[null,null,null,null,null,null,null,null,null,null,null,null,null,null,null,null,null,"","","","",null,"","","",null,"","",null,null,null,"","","","",null,null,null,null,null,null,null,null,null,null,null,null,null,null,null,null,null,null,null,null,null,null,null,null,null,null,null,null,null,null,null,null,null,null,null,null,null,null,"","",null,"",null,null,null,null,null,null,null,null,null,null,null,null,null,null,null,"",null,"","",null,null,"",null,"",""]
[null,null,null,null,null,null,null,null,null,null,null,null,null,null,null,null,null,"","","","",null,"","","",null,"","",null,null,null,"","","","",null,null,null,null,null,null,null,null,null,null,null,null,null,null,null,null,null,null,null,null,null,null,null,null,null,null,null,null,null,null,null,null,null,null,null,null,null,null,"","",null,"",null,null,null,null,null,null,null,null,null,null,null,null,null,null,null,"",null,"","",null,null,"",null,"",""]
[null,null,null,null,null,null,null,null,null,null,null,null,null,null,null,null,null,"","","","",null,"","","",null,"","",null,null,null,"","","","",null,null,null,null,null,null,null,null,null,null,null,null,null,null,null,null,null,null,null,null,null,null,null,null,null,null,null,null,null,null,null,null,null,null,null,null,null,null,"","",null,"",null,null,null,null,null,null,null,null,null,null,null,null,null,null,null,"",null,"","",null,null,"",null,"",""]
[null,null,null,null,null,null,null,null,null,null,null,null,null,null,null,null,null,"","","","",null,"","","",null,"","",null,null,null,"","","","",null,null,null,null,null,null,null,null,null,null,null,null,null,null,null,null,null,null,null,null,null,null,null,null,null,null,null,null,null,null,null,null,null,null,null,null,null,null,"","",null,"",null,null,null,null,null,null,null,null,null,null,null,null,null,null,null,"",null,"","",null,null,"",null,"",""]
[null,null,null,null,null,null,null,null,null,null,null,null,null,null,null,null,null,"","","","",null,"","","",null,"","",null,null,null,"","","","",null,null,null,null,null,null,null,null,null,null,null,null,null,null,null,null,null,null,null,null,null,null,null,null,null,null,null,null,null,null,null,null,null,null,null,null,null,null,"","",null,"",null,null,null,null,null,null,null,null,null,null,null,null,null,null,null,"",null,"","",null,null,"",null,"",""]
[null,null,null,null,null,null,null,null,null,null,null,null,null,null,null,null,null,"","","","",null,"","","",null,"","",null,null,null,"","","","",null,null,null,null,null,null,null,null,null,null,null,null,null,null,null,null,null,null,null,null,null,null,null,null,null,null,null,null,null,null,null,null,null,null,null,null,null,null,"","",null,"",null,null,null,null,null,null,null,null,null,null,null,null,null,null,null,"",null,"","",null,null,"",null,"",""]
[null,null,null,null,null,null,null,null,null,null,null,null,null,null,null,null,null,"","","","",null,"","","",null,"","",null,null,null,"","","","",null,null,null,null,null,null,null,null,null,null,null,null,null,null,null,null,null,null,null,null,null,null,null,null,null,null,null,null,null,null,null,null,null,null,null,null,null,null,"","",null,"",null,null,null,null,null,null,null,null,null,null,null,null,null,null,null,"",null,"","",null,null,"",null,"",""]
[null,null,null,null,null,null,null,null,null,null,null,null,null,null,null,null,null,"","","","",null,"","","",null,"","",null,null,null,"","","","",null,null,null,null,null,null,null,null,null,null,null,null,null,null,null,null,null,null,null,null,null,null,null,null,null,null,null,null,null,null,null,null,null,null,null,null,null,null,"","",null,"",null,null,null,null,null,null,null,null,null,null,null,null,null,null,null,"",null,"","",null,null,"",null,"",""]
[null,null,null,null,null,null,null,null,null,null,null,null,null,null,null,null,null,"","","","",null,"","","",null,"","",null,null,null,"","","","",null,null,null,null,null,null,null,null,null,null,null,null,null,null,null,null,null,null,null,null,null,null,null,null,null,null,null,null,null,null,null,null,null,null,null,null,null,null,"","",null,"",null,null,null,null,null,null,null,null,null,null,null,null,null,null,null,"",null,"","",null,null,"",null,"",""]
[null,null,null,null,null,null,null,null,null,null,null,null,null,null,null,null,null,"","","","",null,"","","",null,"","",null,null,null,"","","","",null,null,null,null,null,null,null,null,null,null,null,null,null,null,null,null,null,null,null,null,null,null,null,null,null,null,null,null,null,null,null,null,null,null,null,null,null,null,"","",null,"",null,null,null,null,null,null,null,null,null,null,null,null,null,null,null,"",null,"","",null,null,"",null,"",""]
[null,null,null,null,null,null,null,null,null,null,null,null,null,null,null,null,null,"","","","",null,"","","",null,"","",null,null,null,"","","","",null,null,null,null,null,null,null,null,null,null,null,null,null,null,null,null,null,null,null,null,null,null,null,null,null,null,null,null,null,null,null,null,null,null,null,null,null,null,"","",null,"",null,null,null,null,null,null,null,null,null,null,null,null,null,null,null,"",null,"","",null,null,"",null,"",""]
[null,null,null,null,null,null,null,null,null,null,null,null,null,null,null,null,null,"","","","",null,"","","",null,"","",null,null,null,"","","","",null,null,null,null,null,null,null,null,null,null,null,null,null,null,null,null,null,null,null,null,null,null,null,null,null,null,null,null,null,null,null,null,null,null,null,null,null,null,"","",null,"",null,null,null,null,null,null,null,null,null,null,null,null,null,null,null,"",null,"","",null,null,"",null,"",""]
[null,null,null,null,null,null,null,null,null,null,null,null,null,null,null,null,null,"","","","",null,"","","",null,"","",null,null,null,"","","","",null,null,null,null,null,null,null,null,null,null,null,null,null,null,null,null,null,null,null,null,null,null,null,null,null,null,null,null,null,null,null,null,null,null,null,null,null,null,"","",null,"",null,null,null,null,null,null,null,null,null,null,null,null,null,null,null,"",null,"","",null,null,"",null,"",""]
[null,null,null,null,null,null,null,null,null,null,null,null,null,null,null,null,null,"","","","",null,"","","",null,"","",null,null,null,"","","","",null,null,null,null,null,null,null,null,null,null,null,null,null,null,null,null,null,null,null,null,null,null,null,null,null,null,null,null,null,null,null,null,null,null,null,null,null,null,"","",null,"",null,null,null,null,null,null,null,null,null,null,null,null,null,null,null,"",null,"","",null,null,"",null,"",""]
[null,null,null,null,null,null,null,null,null,null,null,null,null,null,null,null,null,"","","","",null,"","","",null,"","",null,null,null,"","","","",null,null,null,null,null,null,null,null,null,null,null,null,null,null,null,null,null,null,null,null,null,null,null,null,null,null,null,null,null,null,null,null,null,null,null,null,null,null,"","",null,"",null,null,null,null,null,null,null,null,null,null,null,null,null,null,null,"",null,"","",null,null,"",null,"",""]
[null,null,null,null,null,null,null,null,null,null,null,null,null,null,null,null,null,"","","","",null,"","","",null,"","",null,null,null,"","","","",null,null,null,null,null,null,null,null,null,null,null,null,null,null,null,null,null,null,null,null,null,null,null,null,null,null,null,null,null,null,null,null,null,null,null,null,null,null,"","",null,"",null,null,null,null,null,null,null,null,null,null,null,null,null,null,null,"",null,"","",null,null,"",null,"",""]
[null,null,null,null,null,null,null,null,null,null,null,null,null,null,null,null,null,"","","","",null,"","","",null,"","",null,null,null,"","","","",null,null,null,null,null,null,null,null,null,null,null,null,null,null,null,null,null,null,null,null,null,null,null,null,null,null,null,null,null,null,null,null,null,null,null,null,null,null,"","",null,"",null,null,null,null,null,null,null,null,null,null,null,null,null,null,null,"",null,"","",null,null,"",null,"",""]
[null,null,null,null,null,null,null,null,null,null,null,null,null,null,null,null,null,"","","","",null,"","","",null,"","",null,null,null,"","","","",null,null,null,null,null,null,null,null,null,null,null,null,null,null,null,null,null,null,null,null,null,null,null,null,null,null,null,null,null,null,null,null,null,null,null,null,null,null,"","",null,"",null,null,null,null,null,null,null,null,null,null,null,null,null,null,null,"",null,"","",null,null,"",null,"",""]
[null,null,null,null,null,null,null,null,null,null,null,null,null,null,null,null,null,"","","","",null,"","","",null,"","",null,null,null,"","","","",null,null,null,null,null,null,null,null,null,null,null,null,null,null,null,null,null,null,null,null,null,null,null,null,null,null,null,null,null,null,null,null,null,null,null,null,null,null,"","",null,"",null,null,null,null,null,null,null,null,null,null,null,null,null,null,null,"",null,"","",null,null,"",null,"",""]
[null,null,null,null,null,null,null,null,null,null,null,null,null,null,null,null,null,"","","","",null,"","","",null,"","",null,null,null,"","","","",null,null,null,null,null,null,null,null,null,null,null,null,null,null,null,null,null,null,null,null,null,null,null,null,null,null,null,null,null,null,null,null,null,null,null,null,null,null,"","",null,"",null,null,null,null,null,null,null,null,null,null,null,null,null,null,null,"",null,"","",null,null,"",null,"",""]
[null,null,null,null,null,null,null,null,null,null,null,null,null,null,null,null,null,"","","","",null,"","","",null,"","",null,null,null,"","","","",null,null,null,null,null,null,null,null,null,null,null,null,null,null,null,null,null,null,null,null,null,null,null,null,null,null,null,null,null,null,null,null,null,null,null,null,null,null,"","",null,"",null,null,null,null,null,null,null,null,null,null,null,null,null,null,null,"",null,"","",null,null,"",null,"",""]
[null,null,null,null,null,null,null,null,null,null,null,null,null,null,null,null,null,"","","","",null,"","","",null,"","",null,null,null,"","","","",null,null,null,null,null,null,null,null,null,null,null,null,null,null,null,null,null,null,null,null,null,null,null,null,null,null,null,null,null,null,null,null,null,null,null,null,null,null,"","",null,"",null,null,null,null,null,null,null,null,null,null,null,null,null,null,null,"",null,"","",null,null,"",null,"",""]
[null,null,null,null,null,null,null,null,null,null,null,null,null,null,null,null,null,"","","","",null,"","","",null,"","",null,null,null,"","","","",null,null,null,null,null,null,null,null,null,null,null,null,null,null,null,null,null,null,null,null,null,null,null,null,null,null,null,null,null,null,null,null,null,null,null,null,null,null,"","",null,"",null,null,null,null,null,null,null,null,null,null,null,null,null,null,null,"",null,"","",null,null,"",null,"",""]
[null,null,null,null,null,null,null,null,null,null,null,null,null,null,null,null,null,"","","","",null,"","","",null,"","",null,null,null,"","","","",null,null,null,null,null,null,null,null,null,null,null,null,null,null,null,null,null,null,null,null,null,null,null,null,null,null,null,null,null,null,null,null,null,null,null,null,null,null,"","",null,"",null,null,null,null,null,null,null,null,null,null,null,null,null,null,null,"",null,"","",null,null,"",null,"",""]
[null,null,null,null,null,null,null,null,null,null,null,null,null,null,null,null,null,"","","","",null,"","","",null,"","",null,null,null,"","","","",null,null,null,null,null,null,null,null,null,null,null,null,null,null,null,null,null,null,null,null,null,null,null,null,null,null,null,null,null,null,null,null,null,null,null,null,null,null,"","",null,"",null,null,null,null,null,null,null,null,null,null,null,null,null,null,null,"",null,"","",null,null,"",null,"",""]
[null,null,null,null,null,null,null,null,null,null,null,null,null,null,null,null,null,"","","","",null,"","","",null,"","",null,null,null,"","","","",null,null,null,null,null,null,null,null,null,null,null,null,null,null,null,null,null,null,null,null,null,null,null,null,null,null,null,null,null,null,null,null,null,null,null,null,null,null,"","",null,"",null,null,null,null,null,null,null,null,null,null,null,null,null,null,null,"",null,"","",null,null,"",null,"",""]
[null,null,null,null,null,null,null,null,null,null,null,null,null,null,null,null,null,"","","","",null,"","","",null,"","",null,null,null,"","","","",null,null,null,null,null,null,null,null,null,null,null,null,null,null,null,null,null,null,null,null,null,null,null,null,null,null,null,null,null,null,null,null,null,null,null,null,null,null,"","",null,"",null,null,null,null,null,null,null,null,null,null,null,null,null,null,null,"",null,"","",null,null,"",null,"",""]
[null,null,null,null,null,null,null,null,null,null,null,null,null,null,null,null,null,"","","","",null,"","","",null,"","",null,null,null,"","","","",null,null,null,null,null,null,null,null,null,null,null,null,null,null,null,null,null,null,null,null,null,null,null,null,null,null,null,null,null,null,null,null,null,null,null,null,null,null,"","",null,"",null,null,null,null,null,null,null,null,null,null,null,null,null,null,null,"",null,"","",null,null,"",null,"",""]
[null,null,null,null,null,null,null,null,null,null,null,null,null,null,null,null,null,"","","","",null,"","","",null,"","",null,null,null,"","","","",null,null,null,null,null,null,null,null,null,null,null,null,null,null,null,null,null,null,null,null,null,null,null,null,null,null,null,null,null,null,null,null,null,null,null,null,null,null,"","",null,"",null,null,null,null,null,null,null,null,null,null,null,null,null,null,null,"",null,"","",null,null,"",null,"",""]
[null,null,null,null,null,null,null,null,null,null,null,null,null,null,null,null,null,"","","","",null,"","","",null,"","",null,null,null,"","","","",null,null,null,null,null,null,null,null,null,null,null,null,null,null,null,null,null,null,null,null,null,null,null,null,null,null,null,null,null,null,null,null,null,null,null,null,null,null,"","",null,"",null,null,null,null,null,null,null,null,null,null,null,null,null,null,null,"",null,"","",null,null,"",null,"",""]
[null,null,null,null,null,null,null,null,null,null,null,null,null,null,null,null,null,"","","","",null,"","","",null,"","",null,null,null,"","","","",null,null,null,null,null,null,null,null,null,null,null,null,null,null,null,null,null,null,null,null,null,null,null,null,null,null,null,null,null,null,null,null,null,null,null,null,null,null,"","",null,"",null,null,null,null,null,null,null,null,null,null,null,null,null,null,null,"",null,"","",null,null,"",null,"",""]
[null,null,null,null,null,null,null,null,null,null,null,null,null,null,null,null,null,"","","","",null,"","","",null,"","",null,null,null,"","","","",null,null,null,null,null,null,null,null,null,null,null,null,null,null,null,null,null,null,null,null,null,null,null,null,null,null,null,null,null,null,null,null,null,null,null,null,null,null,"","",null,"",null,null,null,null,null,null,null,null,null,null,null,null,null,null,null,"",null,"","",null,null,"",null,"",""]
[null,null,null,null,null,null,null,null,null,null,null,null,null,null,null,null,null,"","","","",null,"","","",null,"","",null,null,null,"","","","",null,null,null,null,null,null,null,null,null,null,null,null,null,null,null,null,null,null,null,null,null,null,null,null,null,null,null,null,null,null,null,null,null,null,null,null,null,null,"","",null,"",null,null,null,null,null,null,null,null,null,null,null,null,null,null,null,"",null,"","",null,null,"",null,"",""]
[null,null,null,null,null,null,null,null,null,null,null,null,null,null,null,null,null,"","","","",null,"","","",null,"","",null,null,null,"","","","",null,null,null,null,null,null,null,null,null,null,null,null,null,null,null,null,null,null,null,null,null,null,null,null,null,null,null,null,null,null,null,null,null,null,null,null,null,null,"","",null,"",null,null,null,null,null,null,null,null,null,null,null,null,null,null,null,"",null,"","",null,null,"",null,"",""]
[null,null,null,null,null,null,null,null,null,null,null,null,null,null,null,null,null,"","","","",null,"","","",null,"","",null,null,null,"","","","",null,null,null,null,null,null,null,null,null,null,null,null,null,null,null,null,null,null,null,null,null,null,null,null,null,null,null,null,null,null,null,null,null,null,null,null,null,null,"","",null,"",null,null,null,null,null,null,null,null,null,null,null,null,null,null,null,"",null,"","",null,null,"",null,"",""]
[null,null,null,null,null,null,null,null,null,null,null,null,null,null,null,null,null,"","","","",null,"","","",null,"","",null,null,null,"","","","",null,null,null,null,null,null,null,null,null,null,null,null,null,null,null,null,null,null,null,null,null,null,null,null,null,null,null,null,null,null,null,null,null,null,null,null,null,null,"","",null,"",null,null,null,null,null,null,null,null,null,null,null,null,null,null,null,"",null,"","",null,null,"",null,"",""]
[null,null,null,null,null,null,null,null,null,null,null,null,null,null,null,null,null,"","","","",null,"","","",null,"","",null,null,null,"","","","",null,null,null,null,null,null,null,null,null,null,null,null,null,null,null,null,null,null,null,null,null,null,null,null,null,null,null,null,null,null,null,null,null,null,null,null,null,null,"","",null,"",null,null,null,null,null,null,null,null,null,null,null,null,null,null,null,"",null,"","",null,null,"",null,"",""]
[null,null,null,null,null,null,null,null,null,null,null,null,null,null,null,null,null,"","","","",null,"","","",null,"","",null,null,null,"","","","",null,null,null,null,null,null,null,null,null,null,null,null,null,null,null,null,null,null,null,null,null,null,null,null,null,null,null,null,null,null,null,null,null,null,null,null,null,null,"","",null,"",null,null,null,null,null,null,null,null,null,null,null,null,null,null,null,"",null,"","",null,null,"",null,"",""]
[null,null,null,null,null,null,null,null,null,null,null,null,null,null,null,null,null,"","","","",null,"","","",null,"","",null,null,null,"","","","",null,null,null,null,null,null,null,null,null,null,null,null,null,null,null,null,null,null,null,null,null,null,null,null,null,null,null,null,null,null,null,null,null,null,null,null,null,null,"","",null,"",null,null,null,null,null,null,null,null,null,null,null,null,null,null,null,"",null,"","",null,null,"",null,"",""]
[null,null,null,null,null,null,null,null,null,null,null,null,null,null,null,null,null,"","","","",null,"","","",null,"","",null,null,null,"","","","",null,null,null,null,null,null,null,null,null,null,null,null,null,null,null,null,null,null,null,null,null,null,null,null,null,null,null,null,null,null,null,null,null,null,null,null,null,null,"","",null,"",null,null,null,null,null,null,null,null,null,null,null,null,null,null,null,"",null,"","",null,null,"",null,"",""]
[null,null,null,null,null,null,null,null,null,null,null,null,null,null,null,null,null,"","","","",null,"","","",null,"","",null,null,null,"","","","",null,null,null,null,null,null,null,null,null,null,null,null,null,null,null,null,null,null,null,null,null,null,null,null,null,null,null,null,null,null,null,null,null,null,null,null,null,null,"","",null,"",null,null,null,null,null,null,null,null,null,null,null,null,null,null,null,"",null,"","",null,null,"",null,"",""]
[null,null,null,null,null,null,null,null,null,null,null,null,null,null,null,null,null,"","","","",null,"","","",null,"","",null,null,null,"","","","",null,null,null,null,null,null,null,null,null,null,null,null,null,null,null,null,null,null,null,null,null,null,null,null,null,null,null,null,null,null,null,null,null,null,null,null,null,null,"","",null,"",null,null,null,null,null,null,null,null,null,null,null,null,null,null,null,"",null,"","",null,null,"",null,"",""]
[null,null,null,null,null,null,null,null,null,null,null,null,null,null,null,null,null,"","","","",null,"","","",null,"","",null,null,null,"","","","",null,null,null,null,null,null,null,null,null,null,null,null,null,null,null,null,null,null,null,null,null,null,null,null,null,null,null,null,null,null,null,null,null,null,null,null,null,null,"","",null,"",null,null,null,null,null,null,null,null,null,null,null,null,null,null,null,"",null,"","",null,null,"",null,"",""]
[null,null,null,null,null,null,null,null,null,null,null,null,null,null,null,null,null,"","","","",null,"","","",null,"","",null,null,null,"","","","",null,null,null,null,null,null,null,null,null,null,null,null,null,null,null,null,null,null,null,null,null,null,null,null,null,null,null,null,null,null,null,null,null,null,null,null,null,null,"","",null,"",null,null,null,null,null,null,null,null,null,null,null,null,null,null,null,"",null,"","",null,null,"",null,"",""]
[null,null,null,null,null,null,null,null,null,null,null,null,null,null,null,null,null,"","","","",null,"","","",null,"","",null,null,null,"","","","",null,null,null,null,null,null,null,null,null,null,null,null,null,null,null,null,null,null,null,null,null,null,null,null,null,null,null,null,null,null,null,null,null,null,null,null,null,null,"","",null,"",null,null,null,null,null,null,null,null,null,null,null,null,null,null,null,"",null,"","",null,null,"",null,"",""]
[null,null,null,null,null,null,null,null,null,null,null,null,null,null,null,null,null,"","","","",null,"","","",null,"","",null,null,null,"","","","",null,null,null,null,null,null,null,null,null,null,null,null,null,null,null,null,null,null,null,null,null,null,null,null,null,null,null,null,null,null,null,null,null,null,null,null,null,null,"","",null,"",null,null,null,null,null,null,null,null,null,null,null,null,null,null,null,"",null,"","",null,null,"",null,"",""]
[null,null,null,null,null,null,null,null,null,null,null,null,null,null,null,null,null,"","","","",null,"","","",null,"","",null,null,null,"","","","",null,null,null,null,null,null,null,null,null,null,null,null,null,null,null,null,null,null,null,null,null,null,null,null,null,null,null,null,null,null,null,null,null,null,null,null,null,null,"","",null,"",null,null,null,null,null,null,null,null,null,null,null,null,null,null,null,"",null,"","",null,null,"",null,"",""]
[null,null,null,null,null,null,null,null,null,null,null,null,null,null,null,null,null,"","","","",null,"","","",null,"","",null,null,null,"","","","",null,null,null,null,null,null,null,null,null,null,null,null,null,null,null,null,null,null,null,null,null,null,null,null,null,null,null,null,null,null,null,null,null,null,null,null,null,null,"","",null,"",null,null,null,null,null,null,null,null,null,null,null,null,null,null,null,"",null,"","",null,null,"",null,"",""]
[null,null,null,null,null,null,null,null,null,null,null,null,null,null,null,null,null,"","","","",null,"","","",null,"","",null,null,null,"","","","",null,null,null,null,null,null,null,null,null,null,null,null,null,null,null,null,null,null,null,null,null,null,null,null,null,null,null,null,null,null,null,null,null,null,null,null,null,null,"","",null,"",null,null,null,null,null,null,null,null,null,null,null,null,null,null,null,"",null,"","",null,null,"",null,"",""]
[null,null,null,null,null,null,null,null,null,null,null,null,null,null,null,null,null,"","","","",null,"","","",null,"","",null,null,null,"","","","",null,null,null,null,null,null,null,null,null,null,null,null,null,null,null,null,null,null,null,null,null,null,null,null,null,null,null,null,null,null,null,null,null,null,null,null,null,null,"","",null,"",null,null,null,null,null,null,null,null,null,null,null,null,null,null,null,"",null,"","",null,null,"",null,"",""]
[null,null,null,null,null,null,null,null,null,null,null,null,null,null,null,null,null,"","","","",null,"","","",null,"","",null,null,null,"","","","",null,null,null,null,null,null,null,null,null,null,null,null,null,null,null,null,null,null,null,null,null,null,null,null,null,null,null,null,null,null,null,null,null,null,null,null,null,null,"","",null,"",null,null,null,null,null,null,null,null,null,null,null,null,null,null,null,"",null,"","",null,null,"",null,"",""]
[null,null,null,null,null,null,null,null,null,null,null,null,null,null,null,null,null,"","","","",null,"","","",null,"","",null,null,null,"","","","",null,null,null,null,null,null,null,null,null,null,null,null,null,null,null,null,null,null,null,null,null,null,null,null,null,null,null,null,null,null,null,null,null,null,null,null,null,null,"","",null,"",null,null,null,null,null,null,null,null,null,null,null,null,null,null,null,"",null,"","",null,null,"",null,"",""]
[null,null,null,null,null,null,null,null,null,null,null,null,null,null,null,null,null,"","","","",null,"","","",null,"","",null,null,null,"","","","",null,null,null,null,null,null,null,null,null,null,null,null,null,null,null,null,null,null,null,null,null,null,null,null,null,null,null,null,null,null,null,null,null,null,null,null,null,null,"","",null,"",null,null,null,null,null,null,null,null,null,null,null,null,null,null,null,"",null,"","",null,null,"",null,"",""]
[null,null,null,null,null,null,null,null,null,null,null,null,null,null,null,null,null,"","","","",null,"","","",null,"","",null,null,null,"","","","",null,null,null,null,null,null,null,null,null,null,null,null,null,null,null,null,null,null,null,null,null,null,null,null,null,null,null,null,null,null,null,null,null,null,null,null,null,null,"","",null,"",null,null,null,null,null,null,null,null,null,null,null,null,null,null,null,"",null,"","",null,null,"",null,"",""]
[null,null,null,null,null,null,null,null,null,null,null,null,null,null,null,null,null,"","","","",null,"","","",null,"","",null,null,null,"","","","",null,null,null,null,null,null,null,null,null,null,null,null,null,null,null,null,null,null,null,null,null,null,null,null,null,null,null,null,null,null,null,null,null,null,null,null,null,null,"","",null,"",null,null,null,null,null,null,null,null,null,null,null,null,null,null,null,"",null,"","",null,null,"",null,"",""]
[null,null,null,null,null,null,null,null,null,null,null,null,null,null,null,null,null,"","","","",null,"","","",null,"","",null,null,null,"","","","",null,null,null,null,null,null,null,null,null,null,null,null,null,null,null,null,null,null,null,null,null,null,null,null,null,null,null,null,null,null,null,null,null,null,null,null,null,null,"","",null,"",null,null,null,null,null,null,null,null,null,null,null,null,null,null,null,"",null,"","",null,null,"",null,"",""]
[null,null,null,null,null,null,null,null,null,null,null,null,null,null,null,null,null,"","","","",null,"","","",null,"","",null,null,null,"","","","",null,null,null,null,null,null,null,null,null,null,null,null,null,null,null,null,null,null,null,null,null,null,null,null,null,null,null,null,null,null,null,null,null,null,null,null,null,null,"","",null,"",null,null,null,null,null,null,null,null,null,null,null,null,null,null,null,"",null,"","",null,null,"",null,"",""]
[null,null,null,null,null,null,null,null,null,null,null,null,null,null,null,null,null,"","","","",null,"","","",null,"","",null,null,null,"","","","",null,null,null,null,null,null,null,null,null,null,null,null,null,null,null,null,null,null,null,null,null,null,null,null,null,null,null,null,null,null,null,null,null,null,null,null,null,null,"","",null,"",null,null,null,null,null,null,null,null,null,null,null,null,null,null,null,"",null,"","",null,null,"",null,"",""]
[null,null,null,null,null,null,null,null,null,null,null,null,null,null,null,null,null,"","","","",null,"","","",null,"","",null,null,null,"","","","",null,null,null,null,null,null,null,null,null,null,null,null,null,null,null,null,null,null,null,null,null,null,null,null,null,null,null,null,null,null,null,null,null,null,null,null,null,null,"","",null,"",null,null,null,null,null,null,null,null,null,null,null,null,null,null,null,"",null,"","",null,null,"",null,"",""]
[null,null,null,null,null,null,null,null,null,null,null,null,null,null,null,null,null,"","","","",null,"","","",null,"","",null,null,null,"","","","",null,null,null,null,null,null,null,null,null,null,null,null,null,null,null,null,null,null,null,null,null,null,null,null,null,null,null,null,null,null,null,null,null,null,null,null,null,null,"","",null,"",null,null,null,null,null,null,null,null,null,null,null,null,null,null,null,"",null,"","",null,null,"",null,"",""]
[null,null,null,null,null,null,null,null,null,null,null,null,null,null,null,null,null,"","","","",null,"","","",null,"","",null,null,null,"","","","",null,null,null,null,null,null,null,null,null,null,null,null,null,null,null,null,null,null,null,null,null,null,null,null,null,null,null,null,null,null,null,null,null,null,null,null,null,null,"","",null,"",null,null,null,null,null,null,null,null,null,null,null,null,null,null,null,"",null,"","",null,null,"",null,"",""]
[null,null,null,null,null,null,null,null,null,null,null,null,null,null,null,null,null,"","","","",null,"","","",null,"","",null,null,null,"","","","",null,null,null,null,null,null,null,null,null,null,null,null,null,null,null,null,null,null,null,null,null,null,null,null,null,null,null,null,null,null,null,null,null,null,null,null,null,null,"","",null,"",null,null,null,null,null,null,null,null,null,null,null,null,null,null,null,"",null,"","",null,null,"",null,"",""]
[null,null,null,null,null,null,null,null,null,null,null,null,null,null,null,null,null,"","","","",null,"","","",null,"","",null,null,null,"","","","",null,null,null,null,null,null,null,null,null,null,null,null,null,null,null,null,null,null,null,null,null,null,null,null,null,null,null,null,null,null,null,null,null,null,null,null,null,null,"","",null,"",null,null,null,null,null,null,null,null,null,null,null,null,null,null,null,"",null,"","",null,null,"",null,"",""]
[null,null,null,null,null,null,null,null,null,null,null,null,null,null,null,null,null,"","","","",null,"","","",null,"","",null,null,null,"","","","",null,null,null,null,null,null,null,null,null,null,null,null,null,null,null,null,null,null,null,null,null,null,null,null,null,null,null,null,null,null,null,null,null,null,null,null,null,null,"","",null,"",null,null,null,null,null,null,null,null,null,null,null,null,null,null,null,"",null,"","",null,null,"",null,"",""]
[null,null,null,null,null,null,null,null,null,null,null,null,null,null,null,null,null,"","","","",null,"","","",null,"","",null,null,null,"","","","",null,null,null,null,null,null,null,null,null,null,null,null,null,null,null,null,null,null,null,null,null,null,null,null,null,null,null,null,null,null,null,null,null,null,null,null,null,null,"","",null,"",null,null,null,null,null,null,null,null,null,null,null,null,null,null,null,"",null,"","",null,null,"",null,"",""]
[null,null,null,null,null,null,null,null,null,null,null,null,null,null,null,null,null,"","","","",null,"","","",null,"","",null,null,null,"","","","",null,null,null,null,null,null,null,null,null,null,null,null,null,null,null,null,null,null,null,null,null,null,null,null,null,null,null,null,null,null,null,null,null,null,null,null,null,null,"","",null,"",null,null,null,null,null,null,null,null,null,null,null,null,null,null,null,"",null,"","",null,null,"",null,"",""]
[null,null,null,null,null,null,null,null,null,null,null,null,null,null,null,null,null,"","","","",null,"","","",null,"","",null,null,null,"","","","",null,null,null,null,null,null,null,null,null,null,null,null,null,null,null,null,null,null,null,null,null,null,null,null,null,null,null,null,null,null,null,null,null,null,null,null,null,null,"","",null,"",null,null,null,null,null,null,null,null,null,null,null,null,null,null,null,"",null,"","",null,null,"",null,"",""]
[null,null,null,null,null,null,null,null,null,null,null,null,null,null,null,null,null,"","","","",null,"","","",null,"","",null,null,null,"","","","",null,null,null,null,null,null,null,null,null,null,null,null,null,null,null,null,null,null,null,null,null,null,null,null,null,null,null,null,null,null,null,null,null,null,null,null,null,null,"","",null,"",null,null,null,null,null,null,null,null,null,null,null,null,null,null,null,"",null,"","",null,null,"",null,"",""]
[null,null,null,null,null,null,null,null,null,null,null,null,null,null,null,null,null,"","","","",null,"","","",null,"","",null,null,null,"","","","",null,null,null,null,null,null,null,null,null,null,null,null,null,null,null,null,null,null,null,null,null,null,null,null,null,null,null,null,null,null,null,null,null,null,null,null,null,null,"","",null,"",null,null,null,null,null,null,null,null,null,null,null,null,null,null,null,"",null,"","",null,null,"",null,"",""]
[null,null,null,null,null,null,null,null,null,null,null,null,null,null,null,null,null,"","","","",null,"","","",null,"","",null,null,null,"","","","",null,null,null,null,null,null,null,null,null,null,null,null,null,null,null,null,null,null,null,null,null,null,null,null,null,null,null,null,null,null,null,null,null,null,null,null,null,null,"","",null,"",null,null,null,null,null,null,null,null,null,null,null,null,null,null,null,"",null,"","",null,null,"",null,"",""]
[null,null,null,null,null,null,null,null,null,null,null,null,null,null,null,null,null,"","","","",null,"","","",null,"","",null,null,null,"","","","",null,null,null,null,null,null,null,null,null,null,null,null,null,null,null,null,null,null,null,null,null,null,null,null,null,null,null,null,null,null,null,null,null,null,null,null,null,null,"","",null,"",null,null,null,null,null,null,null,null,null,null,null,null,null,null,null,"",null,"","",null,null,"",null,"",""]
[null,null,null,null,null,null,null,null,null,null,null,null,null,null,null,null,null,"","","","",null,"","","",null,"","",null,null,null,"","","","",null,null,null,null,null,null,null,null,null,null,null,null,null,null,null,null,null,null,null,null,null,null,null,null,null,null,null,null,null,null,null,null,null,null,null,null,null,null,"","",null,"",null,null,null,null,null,null,null,null,null,null,null,null,null,null,null,"",null,"","",null,null,"",null,"",""]
[null,null,null,null,null,null,null,null,null,null,null,null,null,null,null,null,null,"","","","",null,"","","",null,"","",null,null,null,"","","","",null,null,null,null,null,null,null,null,null,null,null,null,null,null,null,null,null,null,null,null,null,null,null,null,null,null,null,null,null,null,null,null,null,null,null,null,null,null,"","",null,"",null,null,null,null,null,null,null,null,null,null,null,null,null,null,null,"",null,"","",null,null,"",null,"",""]
[null,null,null,null,null,null,null,null,null,null,null,null,null,null,null,null,null,"","","","",null,"","","",null,"","",null,null,null,"","","","",null,null,null,null,null,null,null,null,null,null,null,null,null,null,null,null,null,null,null,null,null,null,null,null,null,null,null,null,null,null,null,null,null,null,null,null,null,null,"","",null,"",null,null,null,null,null,null,null,null,null,null,null,null,null,null,null,"",null,"","",null,null,"",null,"",""]
[null,null,null,null,null,null,null,null,null,null,null,null,null,null,null,null,null,"","","","",null,"","","",null,"","",null,null,null,"","","","",null,null,null,null,null,null,null,null,null,null,null,null,null,null,null,null,null,null,null,null,null,null,null,null,null,null,null,null,null,null,null,null,null,null,null,null,null,null,"","",null,"",null,null,null,null,null,null,null,null,null,null,null,null,null,null,null,"",null,"","",null,null,"",null,"",""]
[null,null,null,null,null,null,null,null,null,null,null,null,null,null,null,null,null,"","","","",null,"","","",null,"","",null,null,null,"","","","",null,null,null,null,null,null,null,null,null,null,null,null,null,null,null,null,null,null,null,null,null,null,null,null,null,null,null,null,null,null,null,null,null,null,null,null,null,null,"","",null,"",null,null,null,null,null,null,null,null,null,null,null,null,null,null,null,"",null,"","",null,null,"",null,"",""]

{"sheet":"C323","index":5,"n_rows":121,"n_cols":23,"rows_kept":121,"cut":false,"hidden":false,"merged":[[17,6,18,6],[17,8,18,8],[17,9,17,11],[1,8,1,16],[2,8,2,16],[17,12,18,12],[17,13,18,13],[17,7,18,7],[16,9,16,11],[6,5,6,18]]}
[]
[null,null,null,null,null,null,null,null,"CENSO EDUCATIVO 2026"]
[null,null,null,null,null,null,null,null,"MATRÍCULA, DOCENTES Y MATERIALES EDUCATIVOS"]
[]
[]
[]
[null,null,null,null,null,"DOCENTES QUE DOMINAN LENGUA ORIGINARIA  (Solo para II.EE. Públicas)"]
[]
[null,null,null,null,null,null,"DOCENTES QUE DOMINAN LENGUA ORIGINARIA - SÓLO PARA SS.EE. PÚBLICOS"]
["GESTIÓN",null,null,null,null,"324. SEGÚN LO ANOTADO EN LA PREGUNTA 307 ¿CUENTA CON DOCENTE(s) QUE DOMINE(N) UNA LENGUA ORIGINARIA?"]
[{"$f":"IF(OR(UPPER('C100'!K31)=\"X\",UPPER('C100'!Q31)=\"X\"),\"X\",IF(UPPER('C100'!Y31)=\"X\",\"\",\"\"))","v":""}]
[{"$f":"IF(OR(UPPER('C100'!K31)=\"X\",UPPER('C100'!Q31)=\"X\"),1,IF(UPPER('C100'!Y31)=\"X\",3,\"\"))","v":""},null,null,null,null,null,null,"  Sí","¿Cuántos?",null,null,null,null,"Para revisar los docentes que dominan una lengua originaria"]
[]
[null,null,null,null,null,null,null,"  No",null,"Pase a la sección 325.",null,null,null,"hacer click en el botón [Verificar]"]
[]
[]
[null,null,null,null,null,null,null,null,null,"324.1",null,null,"324.2","324.3","324.4","324.5","324.6","324.7"]
["323.3 ¿Cuál fue el tipo de estudios en EIB?",null,null,null,null,null,"Nº","Nº de fila registrado en la Sección 300, pregunta 307","Documento de Identidad","¿Qué nivel de conocimiento tiene respecto a la lengua originaria que domina?",null,null,"¿Cuenta con estudios en Educación Intercultural Bilingüe?","Solo si respondió SÍ en la pregunta 324.2. ¿Cuál fue el tipo de estudios en EIB?","¿Ha recibido capacita- ción en EIB?","¿El docente enseña en lengua originaria?","¿El material recibido coincide con la lengua que enseña?","¿En la actualidad el Docente se encuentra en el Registro de Docentes Bilingües?"]
[null,"Corr","Gest","Fmt",null,null,null,null,null,"Habla","Lee","Escribe",null,null," SI - NO"," SI - NO"," SI - NO","SI - NO"]
["01: Doctorado",1,{"$f":"$A$12","v":""},{"$f":"IF(G20<>\"\",1,0)","v":0},null,null,{"$f":"IF(AND($B20<=$L$12,$C20=1),$B20,\"\")","v":""},null,"","","","","","","","","","","",""]
["02: Maestría",{"$f":"B20+1","v":2},{"$f":"$A$12","v":""},0,null,null,{"$f":"IF(AND($B21<=$L$12,$C21=1),$B21,\"\")","v":""},null,"","","","","","","","","","","",""]
["03: Segunda especialidad",{"$f":"B21+1","v":3},"",0,null,null,{"$f":"IF(AND($B22<=$L$12,$C22=1),$B22,\"\")","v":""},null,"","","","","","","","","","","",""]
["04: Especialización",4,"",0,null,null,"",null,"","","","","","","","","","","",""]
["05: Actualización",5,"",0,null,null,"",null,"","","","","","","","","","","",""]
["06: Otro",6,"",0,null,null,"",null,"","","","","","","","","","","","","","",""]
[null,7,"",0,null,null,"",null,"","","","","","","","","","","","","","",""]
[null,8,"",0,null,null,"",null,"","","","","","","","","","","","","","",""]
["SI",9,"",0,null,null,"",null,"","","","","","","","","","","","","","",""]
["NO",10,"",0,null,null,"",null,"","","","","","","","","","","","","","",""]
[null,11,"",0,null,null,"",null,"","","","","","","","","","","","","","",""]
[null,12,"",0,null,null,"",null,"","","","","","","","","","","","","","",""]
[null,13,"",0,null,null,"",null,"","","","","","","","","","","","","","",""]
[null,14,"",0,null,null,"",null,"","","","","","","","","","","","","","",""]
[null,15,"",0,null,null,"",null,"","","","","","","","","","","","","","",""]
[null,16,"",0,null,null,"",null,"","","","","","","","","","","","","","",""]
[null,17,"",0,null,null,"",null,"","","","","","","","","","","","","","",""]
[null,18,"",0,null,null,"",null,"","","","","","","","","","","","","","",""]
[null,19,"",0,null,null,"",null,"","","","","","","","","","","","","","",""]
[null,20,"",0,null,null,"",null,"","","","","","","","","","","","","","",""]
[null,21,"",0,null,null,"",null,"","","","","","","","","","","","","","",""]
[null,22,"",0,null,null,"",null,"","","","","","","","","","","","","","",""]
[null,23,"",0,null,null,"",null,"","","","","","","","","","","","","","",""]
[null,24,"",0,null,null,"",null,"","","","","","","","","","","","","","",""]
[null,25,"",0,null,null,"",null,"","","","","","","","","","","","","","",""]
[null,26,"",0,null,null,"",null,"","","","","","","","","","","","","","",""]
[null,27,"",0,null,null,"",null,"","","","","","","","","","","","","","",""]
[null,28,"",0,null,null,"",null,"","","","","","","","","","","","","","",""]
[null,29,"",0,null,null,"",null,"","","","","","","","","","","","","","",""]
[null,30,"",0,null,null,"",null,"","","","","","","","","","","","","","",""]
[null,31,"",0,null,null,"",null,"","","","","","","","","","","","","","",""]
[null,32,"",0,null,null,"",null,"","","","","","","","","","","","","","",""]
[null,33,"",{"$f":"IF(G52<>\"\",1,0)","v":0},null,null,"",null,"","","","","","","","","","","","","","",""]
[null,34,"",0,null,null,"",null,"","","","","","","","","","","","","","",""]
[null,35,"",0,null,null,"",null,"","","","","","","","","","","","","","",""]
[null,36,"",0,null,null,"",null,"","","","","","","","","","","","","","",""]
[null,37,"",0,null,null,"",null,"","","","","","","","","","","","","","",""]
[null,38,"",0,null,null,"",null,"","","","","","","","","","","","","","",""]
[null,39,"",0,null,null,"",null,"","","","","","","","","","","","","","",""]
[null,40,"",0,null,null,"",null,"","","","","","","","","","","","","","",""]
[null,41,"",0,null,null,"",null,"","","","","","","","","","","","","","",""]
[null,42,"",0,null,null,"",null,"","","","","","","","","","","","","","",""]
[null,43,"",0,null,null,"",null,"","","","","","","","","","","","","","",""]
[null,44,"",0,null,null,"",null,"","","","","","","","","","","","","","",""]
[null,45,"",0,null,null,"",null,"","","","","","","","","","","","","","",""]
[null,46,"",0,null,null,"",null,"","","","","","","","","","","","","","",""]
[null,47,"",0,null,null,"",null,"","","","","","","","","","","","","","",""]
[null,48,"",0,null,null,"",null,"","","","","","","","","","","","","","",""]
[null,49,"",0,null,null,"",null,"","","","","","","","","","","","","","",""]
[null,50,"",0,null,null,"",null,"","","","","","","","","","","","","","",""]
[null,51,"",0,null,null,"",null,"","","","","","","","","","","","","","",""]
[null,52,"",0,null,null,"",null,"","","","","","","","","","","","","","",""]
[null,53,"",0,null,null,"",null,"","","","","","","","","","","","","","",""]
[null,54,"",0,null,null,"",null,"","","","","","","","","","","","","","",""]
[null,55,"",0,null,null,"",null,"","","","","","","","","","","","","","",""]
[null,56,"",0,null,null,"",null,"","","","","","","","","","","","","","",""]
[null,57,"",0,null,null,"",null,"","","","","","","","","","","","","","",""]
[null,58,"",0,null,null,"",null,"","","","","","","","","","","","","","",""]
[null,59,"",0,null,null,"",null,"","","","","","","","","","","","","","",""]
[null,60,"",0,null,null,"",null,"","","","","","","","","","","","","","",""]
[null,61,"",0,null,null,"",null,"","","","","","","","","","","","","","",""]
[null,62,"",0,null,null,"",null,"","","","","","","","","","","","","","",""]
[null,63,"",0,null,null,"",null,"","","","","","","","","","","","","","",""]
[null,64,"",0,null,null,"",null,"","","","","","","","","","","","","","",""]
[null,65,"",{"$f":"IF(G84<>\"\",1,0)","v":0},null,null,"",null,"","","","","","","","","","","","","","",""]
[null,66,{"$f":"$A$12","v":""},0,null,null,"",null,"","","","","","","","","","","","","","",""]
[null,{"$f":"B85+1","v":67},"",0,null,null,{"$f":"IF(AND($B86<=$L$12,$C86=1),$B86,\"\")","v":""},null,"","","","","","","","","","","","","","",""]
[null,68,"",0,null,null,"",null,"","","","","","","","","","","","","","",""]
[null,69,"",0,null,null,"",null,"","","","","","","","","","","","","","",""]
[null,70,"",0,null,null,"",null,"","","","","","","","","","","","","","",""]
[null,71,"",0,null,null,"",null,"","","","","","","","","","","","","","",""]
[null,72,"",0,null,null,"",null,"","","","","","","","","","","","","","",""]
[null,73,"",0,null,null,"",null,"","","","","","","","","","","","","","",""]
[null,74,"",0,null,null,"",null,"","","","","","","","","","","","","","",""]
[null,75,"",0,null,null,"",null,"","","","","","","","","","","","","","",""]
[null,76,"",0,null,null,"",null,"","","","","","","","","","","","","","",""]
[null,77,"",0,null,null,"",null,"","","","","","","","","","","","","","",""]
[null,78,"",0,null,null,"",null,"","","","","","","","","","","","","","",""]
[null,79,"",0,null,null,"",null,"","","","","","","","","","","","","","",""]
[null,80,"",0,null,null,"",null,"","","","","","","","","","","","","","",""]
[null,81,"",0,null,null,"",null,"","","","","","","","","","","","","","",""]
[null,82,"",0,null,null,"",null,"","","","","","","","","","","","","","",""]
[null,83,"",0,null,null,"",null,"","","","","","","","","","","","","","",""]
[null,84,"",0,null,null,"",null,"","","","","","","","","","","","","","",""]
[null,85,"",0,null,null,"",null,"","","","","","","","","","","","","","",""]
[null,86,"",0,null,null,"",null,"","","","","","","","","",""]
[null,87,"",0,null,null,"",null,"","","","","","","","","",""]
[null,88,"",0,null,null,"",null,"","","","","","","","","",""]
[null,89,"",0,null,null,"",null,"","","","","","","","","",""]
[null,90,"",0,null,null,"",null,"","","","","","","","","",""]
[null,91,"",0,null,null,"",null,"","","","","","","","","",""]
[null,92,"",0,null,null,"",null,"","","","","","","","","",""]
[null,93,"",0,null,null,"",null,"","","","","","","","","",""]
[null,94,"",0,null,null,"",null,"","","","","","","","","",""]
[null,95,"",0,null,null,"",null,"","","","","","","","","",""]
[null,96,"",0,null,null,"",null,"","","","","","","","","",""]
[null,97,"",0,null,null,"",null,"","","","","","","","","",""]
[null,98,"",0,null,null,"",null,"","","","","","","","","",""]
[null,99,"",0,null,null,"",null,"","","","","","","","","",""]
[null,100,"",0,null,null,"",null,"","","","","","","","","","","","","","",""]
[]
[null,null,null,null,null,null,"-----"]

{"sheet":"C400","index":6,"n_rows":110,"n_cols":31,"rows_kept":110,"cut":false,"hidden":false,"merged":[[32,12,32,16],[1,5,1,15],[2,5,2,15],[35,2,35,18],[49,3,50,4],[47,12,48,12],[47,13,47,17],[47,18,48,18],[46,12,46,17],[46,18,46,23],[46,3,46,4],[46,5,46,7],[46,9,47,9],[46,10,47,10],[46,11,47,11],[46,24,46,29],[96,4,98,5],[47,19,47,23],[47,24,48,24],[47,25,47,29],[93,12,93,15],[96,7,97,8],[51,3,51,4],[52,3,53,4],[54,3,56,4]]}
[]
[null,null,null,null,null,"CENSO EDUCATIVO 2026"]
[null,null,null,null,null,"MATRÍCULA, DOCENTES Y MATERIALES EDUCATIVOS"]
[]
[]
[]
[null,null,null,"ARTE Y CULTURA"]
[null,null,null,"325. EN ESTE SERVICIO/NIVEL EDUCATIVO, ¿SE DESARROLLAN LAS COMPETENCIAS",null,null,null,null,null,null,"326. ¿EL SERVICIO/NIVEL EDUCATIVO CUENTA CON PROFESOR DE BANDA?"]
[null,null,null,"DE ARTE Y CULTURA?"]
[null,null,null,null,null,null,null,null,null,null,null,"Sí  ",null,null,null,"No  "]
[null,null,null,"Sí  ",null,null,"No  "]
[]
[]
[null,null,null,"¿Cuántos docentes están asignados"]
[null,null,null,"al dictado de la asignatura?"]
[]
[]
[null,null,null,"¿El desarrollo de las competencias en",null,null,"Sí  "]
[null,null,null,"Arte y Cultura se realizan dentro del"]
[null,null,null,"horario regular?",null,null,"No  "]
[]
[]
[null,null,null,"ÁREA DE PSICOLOGÍA"]
[null,null,"327 EN EL PRESENTE AÑO, ¿SE CUENTA CON ALGÚN PROFESIONAL DE PSICOLOGÍA",null,null,null,null,null,null,null,"  328. ¿A TRAVÉS DE QUÉ MECANISMO SE INCORPORÓ AL PROFESIONAL DE PSICOLOGÍA"]
[null,null,null,"INCORPORADO AL SERVICIO/NIVEL EDUCATIVO?",null,null,null,null,null,null,"EN ESTE SERVICIO/NIVEL EDUCATIVO?"]
[null,null,null,null,null,null,null,null,null,null,"Marque con una “X”, una opcion"]
[]
[null,null,null,null,null,null,null,null,null,null,"Contratación a través de UGEL (alguna intervención o estrategia)"]
[null,null,null,"Sí  ",null,null,null,null,null,null,"Contratación a través de UGEL (identificación de necesidad)"]
[null,null,null,null,null,null,null,null,null,null,"Prácticas profesionales"]
[null,null,null,null,null,null,null,null,null,null,"Servicio Rural y Urbano Marginal de Salud (Serums)"]
[null,null,null,"No  ",null,null,"Pase a la SECCIÓN 400",null,null,null,"Pasantias"]
[null,null,null,null,null,null,null,null,null,null,"Otros"]
[]
[]
["",null,"400. MATERIALES EDUCATIVOS"]
[""]
["GESTIÓN",null,null,"SOLO PARA GESTIÓN PÚBLICA"]
[{"$f":"IF(OR(UPPER('C100'!K31)=\"X\",UPPER('C100'!Q31)=\"X\"),\"X\",IF(UPPER('C100'!Y31)=\"X\",\"\",\"\"))","v":""},null,"401. ¿DURANTE LOS ÚLTIMOS MESES DEL AÑO 2025 O INICIOS DEL AÑO 2025, EL SERVICIO/NIVEL EDUCATIVO RECIBIÓ LA DOTACIÓN DE MATERIALES EDUCATIVOS 2025,"]
[null,null,null,"PROVISTOS POR EL MINISTERIO DE EDUCACIÓN PARA SU USO EN EL PRESENTE AÑO ESCOLAR?"]
[]
[null,null,null," Sí  ",null,"No    ",null,null,"Pase a la pregunta 405"]
[]
[]
[null,null,"402. DETALLE DE CUADERNOS DE TRABAJO Y FICHAS CORRESPONDIENTES A LA DOTACIÓN 2026 POR GRADO DE ESTUDIO"]
[]
[null,null,null,"BENEFICIARIO",null,"MATERIAL EDUCATIVO",null,null,null,"¿Recibió los materiales?","Primera Fecha de Recepción","Última Fecha de Recepción","CANTIDAD DE MATERIAL RECIBIDO",null,null,null,null,null,"CANTIDAD DE MATERIAL SOBRANTE",null,null,null,null,null,"CANTIDAD DE MATERIAL FALTANTE"]
[null,null,null,null,null,null,null,null,{"$f":"COUNTIF(J50:J57,\"NO\")","v":0},null,null,null,"TOTAL RECIBIDO","GRADO DE ESTUDIO",null,null,null,null,"TOTAL SOBRANTE","GRADO DE ESTUDIO",null,null,null,null,"TOTAL FALTANTE","GRADO DE ESTUDIO"]
[null,null,null,null,null,null,null,null,{"$f":"COUNTIF(J50:J57,\"SI\")+COUNTIF(J50:J57,\"NO\")","v":0}," SI - NO","DD/MM/AAAA","DD/MM/AAAA",null,"1º","2º","3º","4º","5º",null,"1º","2º","3º","4º","5º",null,"1º","2º","3º","4º","5º"]
["01",null,{"$f":"COUNTIF(J50:J58,\"NO\")","v":0},"Estudiantes",null,"Fichas de aprendizaje de Comunicación",null,null,null,null,null,null,{"$f":"SUM(N50:R50)","v":0},null,null,null,null,null,{"$f":"SUM(T50:X50)","v":0},null,null,null,null,null,{"$f":"SUM(Z50:AD50)","v":0},null,null,null,null,null,"01"]
["02",null,null,null,null,"Fichas de aprendizaje de Matemática",null,null,null,null,null,null,{"$f":"SUM(N51:R51)","v":0},null,null,null,null,null,{"$f":"SUM(T51:X51)","v":0},null,null,null,null,null,{"$f":"SUM(Z51:AD51)","v":0},null,null,null,null,null,"02"]
["03",null,null,"IIEE Inclusivas",null,"Juegos de cartillas bilingües-Los animales 1-Braille",null,null,null,null,null,null,0,null,null,null,null,null,0,null,null,null,null,null,0,null,null,null,null,null,"03"]
["04",null,null,"Estudiantes EIB",null,"Fichas multinivel de comunicación",null,null,null,null,null,null,0,null,null,null,null,null,0,null,null,null,null,null,0]
["05",null,null,null,null,"Textos de comunicación",null,null,null,null,null,null,0,null,null,null,null,null,0,null,null,null,null,null,0,null,null,null,null,null,"04"]
["06",null,null,"Estudiante de secundaria en ámbito rural (MSE)",null,"El encanto de las palabras - cuaderno de nivelación de Com.",null,null,null,null,null,null,0,null,null,null,null,null,0,null,null,null,null,null,0,null,null,null,null,null,"05"]
["07",null,null,null,null,"Mi desafío matemático - cuaderno de nivelación de Matemática",null,null,null,null,null,null,0,null,null,null,null,null,0,null,null,null,null,null,0,null,null,null,null,null,"06"]
["08",null,null,null,null,"Cuaderno de relación para secundaria en alternancia",null,null,null,null,null,null,0,null,null,null,null,null,0,null,null,null,null,null,0,null,null,null,null,null,"07"]
["09",null,null,null,null,null,null,null,null,null,null,null,{"$f":"SUM(M50:M57)","v":0},null,null,null,null,null,{"$f":"SUM(S50:S57)","v":0},null,null,null,null,null,{"$f":"SUM(Y50:Y57)","v":0},null,null,null,null,null,"10"]
[]
[null,null,"403. EL MATERIAL IMPRESO RECIBIDO, ¿SE ENCUENTRA EN EL AULA?"]
[]
[null,null,null," Sí  ",null,"No    "]
[]
[]
[null,null,null,"SOLO PARA IIEE EIB(Educación Intercultural Bilingüe)"]
[null,null,"404. ¿EL  MATERIAL  EDUCATIVO  RECIBIDO  CORRESPONDIÓ  A  LA  LENGUA DE LOS ESTUDIANTES DE ESTE SERVICIO/NIVEL EDUCATIVO?"]
[]
[null,null,null," Sí  ",null,"No    "]
[]
[]
[null,null,"405. ¿CONOCE EL KIT DE DIVERSIDAD TEXTUAL PROMOVIDO POR EL MINEDU PARA EL FORTALECIMIENTO DE LA COMPRENSIÓN LECTORA DE LOS ESTUDIANTES?"]
[]
[null,null,null," Sí  ",null,"No    ",null," u  Pase a la sección 406"]
[]
[]
[null,null,null,null,"¿Ha utilizado los recursos contenidos en el kit?"]
[null,null,null,null,null,"No aún"]
[null,null,null,null,null,"Pocas veces"]
[null,null,null,null,null,"Cotidianamente"]
[]
[null,null,null,"PARA GESTIÓN PÚBLICA Y PRIVADA"]
[]
[null,null,"406. ¿ESTE SERVICIO/NIVEL EDUCATIVO CUENTA CON BIBLIOTECA?",null,null,null,null,null,null,null,"408. ¿QUIÉN ES LA PERSONA RESPONSABLE DE LA BIBLIOTECA?"]
[]
[null,null,null," Sí  ",null,"No    ",null," u  Pase a la sección 500",null,null,null,"Marque con una \"X\", una opción"]
[]
[null,null,null,null,null,null,null,null,null,null,null,"El bibliotecario/a "]
[null,null,"407. LA BIBLIOTECA, ¿CUENTA CON LIBROS DE DIVERSAS TEMÁTICAS RELACIONADAS",null,null,null,null,null,null,null,null,"El director "]
[null,null,null,"A LAS ÁREAS CURRICULARES?",null,null,null,null,null,null,null,"Un docente "]
[null,null,null,null,null,null,null,null,null,null,null,"Auxiliar de educación"]
[null,null,null," Sí  ",null,"No    ",null,null,null,null,null,"Personal de limpieza"]
[null,null,null,null,null,null,null,null,null,null,null,"Personal de servicio"]
[null,null,null,null,null,null,null,null,null,null,null,"Auxiliar de biblioteca"]
[null,null,null,"Segun su inventario anote la cantidad de libros, de las",null,null,null,null,null,null,null,"Otros"]
[null,null,null,"diversas temáticas, que tiene en su biblioteca"]
[]
[null,null,null,null,"Área Curricular",null,null,"¿Cuenta con libros de diversas temáticas?"]
[]
[null,null,null,null,null,null,{"$f":"COUNTIF(H100:H110,\"SI\")+COUNTIF(H100:H110,\"NO\")","v":0},"SI-NO","Cantidad"]
["01",null,null,"Matemática"]
["02",null,null,"Comunicación"]
["03",null,null,"Personal social / Ciencias Sociales"]
["04",null,null,"Ciencia y Tecnología"]
["05",null,null,"Desarrollo Personal, Ciudadanía y Cívica"]
["06",null,null,"Arte y Cultura"]
["07",null,null,"Educación para el Trabajo"]
["08",null,null,"Educación religiosa"]
["09",null,null,"Educación física"]
["10",null,null,"Otras áreas curriculares"]
["11",null,null,"Otros libros (de ningún área curricular)"]

{"sheet":"C500","index":7,"n_rows":92,"n_cols":21,"rows_kept":92,"cut":false,"hidden":false,"merged":[[78,17,78,21],[5,1,5,22],[58,1,58,22],[37,11,37,13],[37,14,37,15],[37,16,37,18],[38,11,38,13],[38,14,38,15],[38,16,38,18],[33,11,33,13],[33,14,33,15],[33,16,33,18],[36,11,36,13],[36,14,36,15],[34,11,34,13],[34,14,34,15],[34,16,34,18],[35,11,35,13],[35,14,35,15],[35,16,35,18],[36,16,36,18],[25,11,25,13],[25,14,25,15],[25,16,25,18],[31,11,31,13],[31,14,31,15],[31,16,31,18],[26,11,26,13],[26,14,26,15],[30,11,30,13],[30,14,30,15],[30,16,30,18],[29,11,29,13],[29,14,29,15],[29,16,29,18],[26,16,26,18],[28,11,28,13],[28,14,28,15],[28,16,28,18],[32,11,32,13],[32,14,32,15],[32,16,32,18],[9,16,11,18],[14,16,14,18],[15,16,15,18],[24,11,24,13],[24,14,24,15],[24,16,24,18],[23,11,23,13],[23,14,23,15],[23,16,23,18],[14,14,14,15],[15,11,15,13],[19,11,19,13],[20,11,20,13],[18,14,18,15],[17,14,17,15],[16,14,16,15],[12,16,12,18],[13,16,13,18],[13,14,13,15],[12,14,12,15],[12,11,12,13],[13,11,13,13],[14,11,14,13],[21,11,21,13],[22,14,22,15],[9,4,11,9],[9,11,11,13],[9,14,11,15],[18,11,18,13],[22,16,22,18],[22,11,22,13],[21,16,21,18],[15,14,15,15],[16,16,16,18],[17,16,17,18],[19,14,19,15],[20,14,20,15],[19,16,19,18],[20,16,20,18],[18,16,18,18],[21,14,21,15],[16,11,16,13],[17,11,17,13]]}
[null,null,null,null,null,"CENSO EDUCATIVO 2026"]
["Si",null,null,null,null,"MATRÍCULA, DOCENTES Y MATERIALES EDUCATIVOS"]
["No"]
[]
[]
[null,"500. OTROS RECURSOS DISPONIBLES PARA LA ENSEÑANZA"]
[]
[null,null,"501. EQUIPOS Y SERVICIOS QUE DISPONE EL SERVICIO/NIVEL EDUCATIVO - Para II.EE. Públicas y Privadas"]
[]
[null,null,null,null,"EQUIPOS Y SERVICIOS",null,null,null,null,null,null,"¿Cuántos tiene?",null,null,"¿Cuántos estan operativos?",null,"¿Son utilizados para la enseñanza en interacción con los estudiantes?\nSí - No"]
[null,null,null,null,null,null,null,null,null,null," SI - NO"]
[null,null,null,null,null,null,null,null,null,null,{"$f":"COUNTIF(K13:K39,\"SI\")+COUNTIF(K13:K39,\"NO\")","v":0}]
[null,null,null,null,"01","Televisor(es)",null,null,null,null,null,null,null,null,null,null,null,null,null,null,"SI"]
[null,null,null,null,"02","Computadoras (PC de escritorio)",null,null,null,null,null,null,null,null,null,null,null,null,null,null,"NO"]
[null,null,null,null,"03","Laptop convencionales"]
[null,null,null,null,"04","Laptop XO"]
[null,null,null,null,"05","Servidores (exclusivo del nivel)"]
[null,null,null,null,"06","Tablets"]
[null,null,null,null,"07","Proyector"]
[null,null,null,null,"08","Radiograbadora"]
[null,null,null,null,"09","Reproductor de DVD o Blue Ray"]
[null,null,null,null,"10","Impresoras"]
[null,null,null,null,"11","Impresora multifuncional"]
[null,null,null,null,"12","Pizarras digitales"]
[null,null,null,null,"13","Access Point"]
[null,null,null,null,"14","Servicio de Internet"]
[null,null,null,null,"15","Balanza de peso corporal"]
[null,null,null,null,null,"EQUIPOS DE LABORATORIO"]
[null,null,null,null,"16","Balanza"]
[null,null,null,null,"17","Centrífuga"]
[null,null,null,null,"18","Esterilizador"]
[null,null,null,null,"19","Mechero bunsen"]
[null,null,null,null,"20","Destiladora de agua"]
[null,null,null,null,"21","Equipo para baño maría"]
[null,null,null,null,"22","Microscopios binoculares"]
[null,null,null,null,"23","Microscopio digital"]
[null,null,null,null,"24","Maquetas de circuitos eléctricos"]
[null,null,null,null,"25","Impresora 3D"]
[null,null,null,null,"26","Robótica educativa"]
[]
[]
[null,null,"502. INICIATIVA RUTA SOLIDARIA - Para II.EE. Públicas",null,null,null,null,null,null,null,null,{"$f":"IF(OR(UPPER('C100'!K31)=\"X\",UPPER('C100'!Q31)=\"X\"),\"X\",IF(UPPER('C100'!Y31)=\"X\",\"\",\"\"))","v":""}]
[]
[null,null,"502.1. ¿CUÁL ES  EL  MEDIO DE TRANSPORTE MÁS UTILIZADO POR LOS ESTUDIANTES PARA LLEGAR A LA INSTITUCIÓN EDUCATIVA?"]
[null,null,null,"Marque con una “X”, una o más opciones"]
[]
[null,null,null,"Medio de Transporte"]
[]
[null,null,null,null,"A pie"]
[null,null,null,null,"En bicicleta"]
[null,null,null,null,"En bus"]
[null,null,null,null,"En bote o peque peque"]
[null,null,null,null,"Otros"]
[]
[]
[]
[]
[]
[null,"600. EDUCACIÓN FÍSICA Y DEPORTE - Para II.EE. Públicas y Privadas"]
[]
[null,null,"A. SITUACIÓN DEL DEPORTE ESCOLAR"]
[null,null,"601. EN EL AÑO 2025, EN ESTE SERVICIO/NIVEL EDUCATIVO, ¿PARTICIPÓ EN",null,null,null,null,null,null,null,null,null,null,"603. DURANTE EL AÑO ESCOLAR 2026, ¿QUÉ INTERVENCIONES, INICIATIVAS O"]
[null,null,null,"EN LOS JEDPA (JUEGOS ESCOLARES DEPORTIVOS Y PARADEPORTIVOS)?",null,null,null,null,null,null,null,null,null,null,"ACTIVIDADES DE PROMOCIÓN DE UNA VIDA ACTIVA Y SALUDABLE IMPULSADAS"]
[null,null,null,null,null,null,null,null,null,null,null,null,null,null,"POR LA DIRECCIÓN DE EDUCACIÓN FÍSICA Y DEPORTE FUERON IMPLEMENTADAS"]
[null,null,null,null,null,null,null,null,null,null,null,null,null,null,"POR LA INSTITUCIÓN EDUCATIVA, COMO PARTE DE SU GESTIÓN INSTITUCIONAL"]
[null,null,null,null,"Sí  ",null,null,null,"No  ",null,null,null,null,null,"(POR EJEMPLO, EN EL PLAN ANUAL DE TRABAJO U OTROS INSTRUMENTOS)?"]
[]
[null,null,null,null,null,null,null,null,null,null,null,null,null,null,"Marque con una “X”, una o más opciones"]
[null,null,null,null,null,null,null,null,null,null,null,null,null,null,null,"Etapa Institución Educativa de los Juegos escolares Deportivos y …"]
[null,null,"602. EN EL PRESENTE AÑO, ¿ESTE SERVICIO/NIVEL EDUCATIVO HA INCORPORADO",null,null,null,null,null,null,null,null,null,null,null,null,"10 min de actividad física diaria"]
[null,null,null,"EN SU PLAN ANUAL DE TRABAJO ACTIVIDADES ORIENTADAS A LA",null,null,null,null,null,null,null,null,null,null,null,"Pausas activas durante la jornada escolar"]
[null,null,null,"PROMOCIÓN DE UNA VIDA ACTIVA, CREATIVA Y SALUDABLE?",null,null,null,null,null,null,null,null,null,null,null,"Juego, aprendo y me siento saludable"]
[null,null,null,null,null,null,null,null,null,null,null,null,null,null,null,"Actividades familiares de promoción de la actividad física"]
[null,null,null,null,"Sí  ",null,null,null,null,null,null,null,null,null,null,"Iniciativa pedagógica Wiñaq"]
[null,null,null,null,null,null,null,null,null,null,null,null,null,null,null,"Iniciativa pedagógica Orquestando"]
[null,null,null,null,"No  ",null,null,null,"Pase a la SECCIÓN 700",null,null,null,null,null,null,"Iniciativa pedagógica ExpresArte"]
[null,null,null,null,null,null,null,null,null,null,null,null,null,null,null,"Concursos o campañas de promoción de la vida activa y saludable …"]
[null,null,null,null,null,null,null,null,null,null,null,null,null,null,null,"Otra intervención o iniciativa de promoción de vida activa y saludable "]
[null,null,null,null,null,null,null,null,null,null,null,null,null,null,null,"Especifique"]
[null,null,null,null,null,null,null,null,null,null,null,null,null,null,null,"No implementó ninguna de las intervenciones o iniciativas señaladas"]
[]
[]
[null,null,null,null,null,null,null,null,null,null,null,null,null,"604. SI EN LA PREGUNTA ANTERIOR SELECCIONO LA OPCIÓN “10 MINUTOS DE"]
[null,null,null,null,null,null,null,null,null,null,null,null,null,null,"ACTIVIDAD FÍSICA”, ¿CUÁNTOS DÍAS A LA SEMANA DESARROLLA"]
[null,null,null,null,null,null,null,null,null,null,null,null,null,null,"ESTA ACTIVIDAD?"]
[null,null,null,null,null,null,null,null,null,null,null,null,null,null,"Marque con una “X”, una opción"]
[]
[null,null,null,null,null,null,null,null,null,null,null,null,null,null,null,"1 Día"]
[null,null,null,null,null,null,null,null,null,null,null,null,null,null,null,"2 Días"]
[null,null,null,null,null,null,null,null,null,null,null,null,null,null,null,"3 Días"]
[null,null,null,null,null,null,null,null,null,null,null,null,null,null,null,"4 Días"]
[null,null,null,null,null,null,null,null,null,null,null,null,null,null,null,"5 Días"]

{"sheet":"C700","index":8,"n_rows":84,"n_cols":27,"rows_kept":84,"cut":false,"hidden":false,"merged":[[77,20,78,21],[2,7,2,25],[1,7,1,25],[42,22,43,22],[42,23,43,26],[49,25,50,26],[49,20,50,21],[6,2,6,27],[76,7,76,12],[57,20,57,24],[19,7,19,11],[77,25,78,26],[72,23,72,26]]}
[]
[null,null,null,null,null,null,null,"CENSO EDUCATIVO 2026"]
[null,"Si",null,null,null,null,null,"MATRÍCULA, DOCENTES Y MATERIALES EDUCATIVOS"]
[null,"No"]
[]
[]
[null,null,"700. FORTALECIMIENTO DE LA GESTIÓN"]
[]
[null,null,null,"701. ¿CUÁLES SON LOS PRINCIPALES TEMAS QUE REQUIERE COMO CAPACITACIÓN",null,null,null,null,null,null,null,null,null,null,null,null,"703. ESTE SERVICIO/NIVEL EDUCATIVO, ¿COORDINA ALGUNA ACCIÓN CON OTROS ACTORES"]
[null,null,null,null,"PARA MEJORAR SU DESEMPEÑO COMO DIRECTOR(A)? ",null,null,null,null,null,null,null,null,null,null,null,null,"DE LA LOCALIDAD PARA MEJORAR LA PRESTACIÓN DEL SERVICIO EDUCATIVO?"]
[null,null,null,null,"Marque con una “X”, hasta 4 opciones"]
[null,null,null,null,null,null,null,null,null,null,null,null,null,null,null,null,null,"Sí",null,null,null,null,"No  "]
[null,null,null,{"$f":"COUNTIF(E13:E20,\"X\")","v":0},null,"Desarrollo de las competencias de las áreas curriculares"]
[null,null,null,null,null,"Planificación y evaluación",null,null,null,null,null,null,null,null,null,null,null,null,null,null,"Indique a los actores de la localidad"]
[null,null,null,null,null,"Manejo de herramientas TIC y ofimáticas",null,null,null,null,null,null,null,null,null,null,null,null,null,null,"Marque con una “X”, una o más opciones"]
[null,null,null,null,null,"Soporte emocional"]
[null,null,null,null,null,"Participación de padres y madres de familias ",null,null,null,null,null,null,null,null,null,null,null,null,null,null,null,"Municipalidad distrital"]
[null,null,null,null,null,"Relacionamiento institucional y gestión de alianzas ",null,null,null,null,null,null,null,null,null,null,null,null,null,null,null,"Municipalidad provincial"]
[null,null,null,null,null,"Acompañamiento pedagógico",null,null,null,null,null,null,null,null,null,null,null,null,null,null,null,"Gobierno regional"]
[null,null,null,null,null,"Otros",null,null,null,null,null,null,null,null,null,null,null,null,null,null,null,"Empresa privada"]
[null,null,null,null,null,null,null,null,null,null,null,null,null,null,null,null,null,null,null,null,null,"ONG o sociedad civil"]
[]
[null,null,null,"702. DURANTE EL AÑO 2026 Y HASTA LA FECHA DEL CENSO, ¿HA REALIZADO ACCIONES"]
[null,null,null,null,"EN FAVOR DE LOS ESTUDIANTES Y/O DE LOS DOCENTES Y/O FAMILIAS?",null,null,null,null,null,null,null,null,null,null,null,"704. ¿PARA QUÉ ACCEDE PRINCIPALMENTE, AL PORTA WEB DIRECTIVO?"]
[null,null,null,null,null,null,null,null,null,null,null,null,null,null,null,null,null,"HTTPS://DIRECTIVOS.MINEDU.GOB.PE/"]
[null,null,null,null,"Sí",null,null,null,null,"No  ",null,null,null,null,null,null,null,"Marque con una “X”, priorizando hasta dos opciones"]
[]
[null,null,null,null,null,null,null,"¿Qué acciones realizó? ",null,null,null,null,null,null,null,null,null,null,"Revisar información sobre convocatorias formativas dirigidas a directivos"]
[null,null,null,null,null,null,null,"Marque con una “X”, una o más opciones",null,null,null,null,null,null,null,null,null,null,"Revisar información norma va sobre directivos o procesos institucionales"]
[null,null,null,null,null,null,null,null,null,null,null,null,null,null,null,null,null,null,"Revisar información sobre publicaciones, noticias u orientaciones"]
[null,null,null,null,null,"Elaborar un diagnóstico del estado de salud y/o bienestar emocional de estudiantes.",null,null,null,null,null,null,null,null,null,null,null,null,"No acceso al portal web directivo con frecuencia"]
[null,null,null,null,null,"Elaborar un diagnóstico del estado de salud y/o bienestar emocional de docentes."]
[null,null,null,null,null,"Promover espacios específicamente para abordar gestión de emociones con familias"]
[null,null,null,null,null,"Generar espacios de diálogo en la comunidad educativa con docentes y/o familias"]
[]
[]
[]
[]
[null,null,null,"705. ¿CONOCE EL SISTEMA DE CONSULTA DE RESULTADOS DE EVALUACIONES (SICRECE)?",null,null,null,null,null,null,null,null,null,null,null,null,"709. DURANTE EL AÑO 2026 ESTE SERVICIO/NIVEL EDUCATIVO, ¿TUVÓ ALGUNA PLAZA DE"]
[null,null,null,null,null,null,null,null,null,null,null,null,null,null,null,null,null,"PERSONAL ADMINISTRATIVO QUE NO HA LOGRADO CUBRIR?"]
[null,null,null,null,"Sí","",null,null,null,"No  "]
[null,null,null,null,null,null,null,null,null,null,null,null,null,null,null,null,null,null,"Sí"]
[null,null,null,null,null,null,null,"¿Ha utilizado el sistema?",null,null,null,null,null,null,null,null,null,null,"No",null,null,null,"u","Pase a la pregunta 711"]
[null,null,null,null,null,null,null,null,null,null,null,null,null,null,null,null,null,null,"No tuve plaza asignada"]
[null,null,null,null,null,null,null,"","No aún",null,null,null,null,null,null,null,null,{"$f":"CONCATENATE(R44,R43)","v":""}]
[null,null,null,null,null,null,null,"","Pocas veces"]
[null,null,null,null,null,null,null,"","Cotidianamente",null,null,null,null,null,null,null,"710. ¿CUÁNTAS PLAZAS VACANTES SEGÚN CARGO NO SE LOGRÓ CUBRIR?"]
[null,null,null,null,null,null,null,null,null,null,null,null,null,null,null,null,null,"Complete según corresponda"]
[null,null,null,"706. ¿CONOCE LOS RESULTADOS DE LA EVALUACIÓN NACIONAL DE LOGROS DE"]
[null,null,null,null,"APRENDIZAJE ENLA 2025?",null,null,null,null,null,null,null,null,null,null,null,null,null,null,null,"Cargo",null,null,null,null,"Cargo Cantidad de plazas no cubiertas"]
[null,null,null,null,null,null,null,null,null,null,null,null,null,null,null,null,null,null,null,null,null,null,null,null,{"$f":"SUM(AA52:AA58)","v":0}]
[null,null,null,null,"Sí",null,null,null,null,"No  ",null," u   Pase a la pregunta 708.",null,null,null,null,null,1,"Secretario/a"]
[null,null,null,null,null,null,null,null,null,null,null,null,null,null,null,null,null,2,"Oficinista"]
[null,null,null,null,null,null,null,"¿Utiliza los resultados?",null,null,null,null,null,null,null,null,null,3,"Trabajador de servicio que cumple funciones de guardianía"]
[null,null,null,null,null,null,null,null,null,null,null,null,null,null,null,null,null,4,"Trabajador de servicio que cumple funciones de limpieza"]
[null,null,null,null,null,null,null,null,"No aún",null,null,null,null,null,null,null,null,5,"Auxiliar de Biblioteca"]
[null,null,null,null,null,null,null,null,"Pocas veces",null,null,null,null,null,null,null,null,6,"Auxiliar de Laboratorio"]
[null,null,null,null,null,null,null,null,"Cotidianamente",null,null,null,null,null,null,null,null,7,"Otro"]
[]
[null,null,null,"707. ¿PARA QUÉ USA LAS EVIDENCIAS DE LAS EVALUACIONES DE LOGROS DE APRENDIZAJE (ENLA)?",null,null,null,null,null,null,null,null,null,null,null,null,"711. DURANTE EL PRESENTE AÑO Y HASTA LA FECHA DE APLICACIÓN DEL CENSO EDUCATIVO 2026,"]
[null,null,null,null,"Marque con una “X”, una o más opciones",null,null,null,null,null,null,null,null,null,null,null,null,"¿EL EQUIPO DIRECTIVO DE ESTE SERVICIO/NIVEL EDUCATIVO HA GESTIONADO ACCIONES"]
[null,null,null,null,null,null,null,null,null,null,null,null,null,null,null,null,null,"VINCULADAS AL TRABAJO COLABORATIVO CON DOCENTES?"]
[null,null,null,null,null,"Para la elaboración de documentos de gestión (como el PEI, PAT, directivas, entre otros)."]
[null,null,null,null,null,"Para la planificación de aula.",null,null,null,null,null,null,null,null,null,null,null,"Sí",null,null,null,null,"No  "]
[null,null,null,null,null,"Para motivar y propiciar la reflexión en la IE."]
[null,null,null,null,null,"Para informar sobre los logros y desafíos de aprendizaje a las familias",null,null,null,null,null,null,null,null,null,null,null,null,null,null,"¿Qué acciones de trabajo colaborativo ha gestionado el equipo directivo?"]
[null,null,null,null,null,"Para gestionar alianzas con otras instituciones y/o empresas",null,null,null,null,null,null,null,null,null,null,null,null,null,null,"Marque con una “X”, hasta dos opciones priorizadas"]
[]
[null,null,null,"708. ¿A TRAVÉS DE QUÉ CANALES RECIBE INFORMACIÓN DE LAS EVALUACIONES DE",null,null,null,null,null,null,null,null,null,null,null,null,null,null,null,{"$f":"COUNTIF(U69:U72,\"X\")","v":0},null,"Organización de reuniones colegiadas"]
[null,null,null,null,"LOGROS DE APRENDIZAJE?",null,null,null,null,null,null,null,null,null,null,null,null,null,null,null,null,"Implementación de comunidades de aprendizaje profesional"]
[null,null,null,null,"Marque con una “X”, una o más opciones",null,null,null,null,null,null,null,null,null,null,null,null,null,null,null,null,"Conformación de grupos de inter aprendizaje docente"]
[null,null,null,null,null,null,null,null,null,null,null,null,null,null,null,null,null,null,null,null,null,"Desarrollo de espacios colectivos de reflexión pedagógica"]
[null,null,null,null,null,"Redes sociales (Facebook, Youtube, Twitter, Instagram, etc.)",null,null,null,null,null,null,null,null,null,null,null,null,null,null,null,"Otra acción",null,""]
[null,null,null,null,null,"Correo electrónico"]
[null,null,null,null,null,"Mensajes por WhatsApp",null,null,null,null,null,null,null,null,null,null,"712. ¿CUÁLES SON LOS INSTRUMENTOS  DE GESTIÓN  ESCOLAR  CON QUE CUENTA ESTE"]
[null,null,null,null,null,"Eventos y/o espacios formativos (conferencias, webinars, charlas, talleres, etc.)",null,null,null,null,null,null,null,null,null,null,null,"SERVICIO/NIVEL EDUCATIVO?"]
[null,null,null,null,null,"Otro"]
[null,null,null,null,null,null,null,null,null,null,null,null,null,null,null,null,null,null,null,null,"Ámbito",null,null,null,"¿Cuenta?","¿En implementación o uso?"]
[null,null,null,null,null,null,null,null,null,null,null,null,null,null,null,null,null,null,null,null,null,null,null,{"$f":"COUNTIF(Y80:AA83,\"SI\")+COUNTIF(Y80:AA83,\"NO\")","v":0},"SI - NO"]
[null,null,null,null,null,null,null,null,null,null,null,null,null,null,null,null,null,1,"Proyecto Educativo Institucional (PEI)"]
[null,null,null,null,null,null,null,null,null,null,null,null,null,null,null,null,null,2,"Plan Anual de Trabajo (PAT)"]
[null,null,null,null,null,null,null,null,null,null,null,null,null,null,null,null,null,3,"Reglamento Interno (RI)"]
[null,null,null,null,null,null,null,null,null,null,null,null,null,null,null,null,null,4,"Proyecto Currícular Institucional (PCI)"]
[null,null,null,null,null,null,null,null,null,null,null,null,null,null,null,null,null,null,null,null,null,null,null,null,{"$f":"COUNTIF(Y80:Y83,\"SI\")+COUNTIF(Y80:Y83,\"NO\")","v":0},null,{"$f":"COUNTIF(AA80:AA83,\"SI\")+COUNTIF(AA80:AA83,\"NO\")","v":0}]

{"sheet":"C800","index":9,"n_rows":57,"n_cols":24,"rows_kept":57,"cut":false,"hidden":false,"merged":[[47,12,48,12],[6,1,6,27],[18,7,20,9],[18,10,20,12],[47,11,48,11]]}
[]
[null,null,null,null,null,"CENSO EDUCATIVO 2026"]
["Si",null,null,null,null,"MATRÍCULA, DOCENTES Y MATERIALES EDUCATIVOS"]
["No"]
[]
[]
[null,"800. GESTIÓN DEL RIESGO DE DESASTRES"]
[]
[null,null,"801. EN EL PRESENTE AÑO, ESTE SERVICIO/NIVEL EDUCATIVO, ¿HA INCORPORADO LA DEFENSA",null,null,null,null,null,null,null,null,null,null,null,null,"803. EN EL PRESENTE AÑO, ¿ALGÚN FENÓMENO NATURAL O EVENTO CAUSADO POR"]
[null,null,null,"NACIONAL Y GESTIÓN DEL RIESGO DE DESASTRES EN SUS INSTRUMENTOS DE",null,null,null,null,null,null,null,null,null,null,null,null,"LA ACTIVIDAD HUMANA OCASIONÓ LA SUSPENSIÓN DE LAS ACTIVIDADES ACADÉMICAS"]
[null,null,null,"GESTIÓN VIGENTES?",null,null,null,null,null,null,null,null,null,null,null,null,"EN SU SERVICIO/NIVEL EDUCATIVO?"]
[]
[null,null,null,"Sí","",null,null,null,"No  ",null,null,null,null,null,null,null,"Sí","",null,null,null,null,"No  "]
[]
[]
[null,null,null,null,null,null,null,null,null,null,null,null,null,null,null,"804. ESTE SERVICIO/NIVEL EDUCATIVO, ¿CUENTA CON UN PLAN DE GESTIÓN DEL RIESGO"]
[null,null,null,"Precise los documentos de gestión",null,null,null,null,null,null,null,null,null,null,null,null,"DE DESASTRES APROBADO CON RESOLUCIÓN DIRECTORAL?"]
[]
[null,null,null,null,null,null,null,"Gestión del Riesgo de Desastres (GRD)",null,null,"Seguridad y Defensa Nacional (SDN)",null,null,null,null,null,"Sí","",null,null,null,null,"No  "]
[null,null,"Documentos de Gestión"]
[]
[null,null,"Proyecto Educativo Inst. (PEI)",null,null,null,null,"","",null,"","",null,null,null,null,null,"¿Cuenta con acciones de contingencia ante desastres?"]
[null,null,"Plan Anual de Trabajo (PAT)",null,null,null,null,null,"",null,null,"",""]
[null,null,"Proyecto Curricular. Inst. (PCI)",null,null,null,null,"","",null,"","",null,null,null,null,null,null,"Sí","",null,null,"No  ",""]
[null,null,"Reglamento Interno (RI)",null,null,null,null,null,"",null,null,"",""]
[null,null,null,null,null,null,null,"","",null,"",null,""]
[]
[]
[]
[]
[]
[]
[]
[]
[]
[]
[]
[]
[]
[]
[null,null,"802. EN EL PRESENTE AÑO, ESTE SERVICIO/NIVEL EDUCATIVO, ¿CUENTA CON SUS",null,null,null,null,null,null,null,null,null,null,null,null,"805. ¿EN EL PRESENTE AÑO HA CONFORMADO SU BRIGADA DE PROTECCIÓN ESCOLAR BAPE)?"]
[null,null,null,"DISPOSITIVOS DE SEGURIDAD EN FUNCIONAMIENTO?"]
[null,null,null,null,null,null,null,null,null,null,null,null,null,null,null,null,"Sí",""]
[null,null,null,"Sí","",null,null,null,"No  "]
[null,null,null,null,null,null,null,null,null,null,null,null,null,null,null,null,"No  "]
[]
[null,null,null,null,"Marque con una “X” según corresponda"]
[null,null,null,null,"Dispositivos",null,null,null,null,null,null,"¿Tiene?","¿Se encuentra en\nfuncionamiento?",null,null,null,null,"¿Por qué no conformó su BAPE?"]
[null,null,null,null,null,null,null,null,null,null,null,null,null,null,null,null,null,"Marque con una “X”, una o más opciones"]
[null,null,null,null,1,"Botiquín",null,null,null,null,null,null,""]
[null,null,null,null,2,"Extintor",null,null,null,null,null,"","",null,null,null,null,null,null,"La IE no cuenta con APAFA"]
[null,null,null,null,3,"Letreros de señalización",null,null,null,null,null,"","",null,null,null,null,null,null,"No hay participación de los padres"]
[null,null,null,null,4,"Sirena de alarma",null,null,null,null,null,"","",null,null,null,null,null,null,"No lo considera necesario"]
[null,null,null,null,5,"Sistema/panel de alarmas contra incendios",null,null,null,null,null,"","",null,null,null,null,null,null,"No identifican riesgos alrededor de la IE"]
[null,null,null,null,6,"Círculos de seguridad",null,null,null,null,null,"","",null,null,null,null,null,null,"No tiene información de cómo conformarlo"]
[null,null,null,null,null,null,null,null,null,null,""]
[null,null,null,null,null,null,null,null,null,null,""]

{"sheet":"C900","index":10,"n_rows":27,"n_cols":18,"rows_kept":27,"cut":false,"hidden":false,"merged":[[6,1,6,23]]}
[]
[null,null,null,null,null,"CENSO EDUCATIVO 2026"]
["Si",null,null,null,null,"MATRÍCULA, DOCENTES Y MATERIALES EDUCATIVOS"]
["No"]
[]
[]
[null,"900. EDUCACIÓN AMBIENTAL"]
[]
[null,null,"901. EN EL PRESENTE AÑO, ESTE SERVICIO/NIVEL EDUCATIVO, ¿HA ELABORADO SU PROYECTO",null,null,null,null,null,null,null,null,null,null,null,"903. SEÑOR(A) DIRECTOR(A), LA BRIGADA DE EDUCACIÓN AMBIENTAL Y GESTIÓN DEL"]
[null,null,null,"EDUCATIVO AMBIENTAL INTEGRADO (PEAI)?",null,null,null,null,null,null,null,null,null,null,null,"RIESGO DE DESASTRES CONFORMADA, ¿CUENTA CON UN PLAN DE ACCIÓN ELABORADO?"]
[]
[null,null,null,"Sí",null,null,null,null,"No  ",null,null,null,null,null,null,"Sí"]
[]
[]
[null,null,null,null,null,"¿Ha implementado su proyecto educativo ambiental integrado (PEAI):",null,null,null,null,null,null,null,null,null,"No  ",""]
[]
[null,null,null,null,null,"Sí  "]
[null,null,null,null,null,null,null,null,null,null,null,null,null,null,null,null,"¿El plan de acción esta incorporado en el plan anual de trabajo?"]
[null,null,null,null,null,"No  "]
[null,null,null,null,null,null,null,null,null,null,null,null,null,null,null,null,"Sí",""]
[]
[null,null,null,null,null,null,null,null,null,null,null,null,null,null,null,null,"No  ",""]
[]
[null,null,"902. EL SERVICIO/NIVEL EDUCATIVO, ¿CUENTA CON LA BRIGADA DE EDUCACIÓN"]
[null,null,null,"AMBIENTAL Y GESTIÓN DE RIESGO DE DESASTRES?"]
[]
[null,null,null,"Sí",null,null,null,null,"No  ",null," u   Pase a la pregunta 1000."]

{"sheet":"C1000","index":11,"n_rows":226,"n_cols":23,"rows_kept":226,"cut":false,"hidden":false,"merged":[[71,1,71,23],[46,19,46,21],[6,1,6,23],[76,9,76,12],[75,3,75,8],[76,3,76,8],[53,14,55,22],[77,3,77,8],[77,9,77,12],[74,19,74,21],[75,13,75,18],[75,19,75,21],[75,9,75,12],[76,13,76,18],[76,19,76,21],[77,13,77,18],[77,19,77,21]]}
[]
[null,null,null,null,null,"CENSO EDUCATIVO 2026"]
["Si",null,null,null,null,"MATRÍCULA, DOCENTES Y MATERIALES EDUCATIVOS"]
["No"]
[]
[]
[null,"1000. ORIENTACIÓN VOCACIONAL Y CIENCIA TECNOLÓGICA "]
[]
[null,null,"1001. EN LOS ÚLTIMOS 3 AÑOS, ¿HA PARTICIPADO EN LA FERIA ESCOLAR NACIONAL",null,null,null,null,null,null,null,null,null,null,null,"1005. SI LA ORIENTACIÓN VOCACIONAL RECIBIDA FUE POR PARTE DEL"]
[null,null,null,"DE CIENCIA Y TECNOLOGÍA “EUREKA” O “EUREKA VIRTUAL” ?",null,null,null,null,null,null,null,null,null,null,null,"SERVICIO/NIVEL EDUCATIVO?"]
[]
[null,null,null,"Sí","",null,null,"No  ",null,null,null,null,null,null,null,"¿En qué consistió dicha orientación vocacional?"]
[null,null,null,null,null,null,null,null,null,null,null,null,null,null,null,"Marque con una “X”, una o más opciones"]
[]
[null,null,null,null,"¿Hasta qué etapa de la feria EUREKA lograron clasificar?",null,null,null,null,null,null,null,null,null,null,"","Se trató aspectos individuales de los alumnos, como la personalidad …"]
[null,null,null,null,null,null,null,null,null,null,null,null,null,null,null,"","Se informó sobre las alterna vas de carreras y universidades que ofrece el Perú"]
[null,null,null,null,null,"","Primera Etapa (SS.EE.)",null,null,null,null,null,null,null,null,"","Se orientó y asistió a los alumnos para que tome la mejor decisión al momento"]
[null,null,null,null,null,"","Segunda etapa (UGEL)",null,null,null,null,null,null,null,null,"","Hubo dinámicas o sesiones en las aulas para preparar a los alumnos"]
[null,null,null,null,null,"","Tercera etapa (DRE/GRE)",null,null,null,null,null,null,null,null,"","Realizaron simulacros de exámenes de admisión."]
[null,null,null,null,null,"","Cuarta Etapa (Nacional)"]
[]
[null,null,"1002. ESTE SERVICIO/NIVEL EDUCATIVO, ¿CUENTA CON CONVENIOS DE UNIVERSIDADES",null,null,null,null,null,null,null,null,null,null,null,"1006. SI LA ORIENTACIÓN VOCACIONAL RECIBIDA FUE POR PARTE DE LAS"]
[null,null,null,"QUE PERMITA A LOS ESTUDIANTES CON LAS MEJORES CALIFICACIONES OBTENER",null,null,null,null,null,null,null,null,null,null,null,"UNIVERSIDADES, INDICAR LO SIGUIENTE:"]
[null,null,null,"SUBVENCIONES EDUCATIVAS (BECAS Y/O CREDITOS) EN DICHAS CASAS DE ESTUDIO?"]
[null,null,null,null,null,null,null,null,null,null,null,null,null,null,null,"¿En qué consistió dicha orientación vocacional?"]
[null,null,null,"Sí",null,null,null,"No  ",null,null,null,null,null,null,null,"Marque con una “X”, una o más opciones"]
[]
[null,null,null,null,null,null,null,null,null,null,null,null,null,null,null,"","Se explicaron los aspectos misionales, la visión y los objetivos de las univ."]
[null,null,null,null,null,"¿Cuántas universidades?",null,null,null,null,null,null,null,null,null,"","Realizaron simulacros de exámenes de admisión para la universidad."]
[null,null,null,null,null,null,null,null,null,null,null,null,null,null,null,"","Se presentaron las carreras disponibles de las universidades participantes …"]
[null,null,null,null,null,null,null,null,null,null,null,null,null,null,null,"","Se explicó el aspecto económico de las carreras."]
[null,null,"1003. DURANTE EL AÑO 2025, ¿SE HA IMPLEMENTADO ACCIONES PARA PROMOVER EL",null,null,null,null,null,null,null,null,null,null,null,null,"","Se explicó sobre las modalidades de admisión."]
[null,null,null,"PROYECTO DE VIDA Y ORIENTACIÓN VOCACIONAL ENTRE SUS ESTUDIANTES?"]
[null,null,null,null,null,null,null,null,null,null,null,null,null,null,"1007. DURANTE EL AÑO 2025, ¿ESTE SERVICIO/NIVEL EDUCATIVO PROMOCIONÓ ALGUNA"]
[null,null,null,"Sí","",null,null,"No  ",null,null,null,null,null,null,null,"PLATAFORMA DE INFORMACIÓN VOCACIONAL Y/O LABORAL A LOS ESTUDIANTES,"]
[null,null,null,null,null,null,null,null,null,null,null,null,null,null,null,"COD EL FIN DE FACILITAR UN ACCESO PERTINENTE A LA EDUCACIÓN UNIVERSITARIA?"]
[]
[null,null,"1004. DURANTE EL AÑO 2025, ¿SE LES OFRECIÓ A LOS ESTUDIANTES ALGÚN PROGRAMA,",null,null,null,null,null,null,null,null,null,null,null,null,"Sí",null,null,null,"No  ",""]
[null,null,null,"SESIÓN O FERIA DE ORIENTACIÓN VOCACIONAL PARA POSTULAR A ALGUNA CARRERA"]
[null,null,null,"DE ALGUNA UNIVERSIDAD?"]
[null,null,null,null,null,null,null,null,null,null,null,null,null,null,null,null,"¿Qué plataforma(s) utilizó?"]
[null,null,null,"Sí","",null,null,"No  ",null," u   Pase a la pregunta 1007.",null,null,null,null,null,null,"Marque con una “X”, una o más opciones"]
[]
[null,null,null,null,null,null,null,null,null,null,null,null,null,null,null,null,null,"Portal Ponte en Carrera"]
[null,null,null,"¿Recibió la orientación vocacional de parte de?",null,null,null,null,null,null,null,null,null,null,null,null,null,"Portal TUNI"]
[null,null,null,"Marque con una “X”, una o más opciones",null,null,null,null,null,null,null,null,null,null,null,null,null,"La página web del colegio"]
[null,null,null,null,null,null,null,null,null,null,null,null,null,null,null,null,null,"Otros",null,""]
[null,null,null,"","Servicio/Nivel educativo"]
[null,null,null,"","Las universidades",null,null,"-------------------",null,"Pase a la pregunta 1006"]
[null,null,null,"","Otras",null,null,"-------------------",null,"Pase a la pregunta 1007",null,null,null,null,"ANOTACIONES COMPLEMENTARIAS QUE CONSIDERE NECESARIO AGREGAR"]
[]
[null,null,null,null,null,null,null,null,null,null,null,null,null,null,"longitud máxima 200 caracteres",null,null,null,null,null,null,null,{"$f":"LEN(TRIM(O54))","v":0}]
[]
[]
[]
[]
[]
[]
[]
[]
[]
[]
[]
[]
[]
[]
[]
[]
[]
[]
[]
[null,"DATOS DEL DIRECTOR(A) Y/O RESPONSABLE (S) DEL LLENADO DE LA CÉDULA"]
[]
[]
[null,null,null,null,"NOMBRES Y APELLIDOS",null,null,null,null,"CARGO",null,null,null,"CORREO ELECTRÓNICO",null,null,null,null,null,"TELÉFONO"]
[]
[]
[]
[]
[]
[]
[]
[]
["DIRECTOR(A)"]
["SUB DIRECTOR(A)"]
["DOCENTE"]
["COORDINADOR(A)"]
["ASESOR"]
["ADMINISTRATIVO"]
["ASISTENTE"]
["AUXILIAR"]
["SECRETARIA(O)"]
["ESTADÍSTICO"]
["ESPECIALISTA"]
["BIBLIOTECARIO"]
["CARE"]
["COMANDANTE PNP"]
["CONTADOR"]
["DAIP"]
["DIGITADOR(A)"]
["GERENTE"]
["JEFE ACADÉMICO"]
["JEFE ADMINISTRATIVO"]
["JEFE DE AREA"]
["JEFE DE LABORATORIO"]
["JEFE DE PERSONAL"]
["JEFE DE SEDE"]
["JEFE UNIDAD"]
["OFICINISTA"]
["OPERADOR DE SISTEMAS"]
["PERSONAL DE SERVICIO"]
["PROGRAMADOR"]
["PROMOTOR(A)"]
["PSICOLOGO"]
["REGISTRADOR(A)"]
["REPRESENTANTE LEGAL"]
["SOPORTE TECNOLOGICO"]
["TÉCNICO ADMINISTRATIVO"]
["TESORERO(A)"]
["TRABAJADOR SOCIAL"]
["TUTOR"]
["OTROS"]
["DOCENTE COORDINADOR(A)"]
["PEC"]
[]
[]
["001: Universidad Mayor de San Marcos"]
["002: Universidad San Cristóbal de Huamanga"]
["003: Universidad San Antonio Abad del Cusco"]
["004: Universidad de Trujillo"]
["005: Universidad San Agustín"]
["006: Universidad Ciro Alegría"]
["007: Universidad de Ingeniería"]
["008: Universidad Agraria La Molina"]
["009: Universidad San Luis Gonzaga"]
["010: Universidad del Centro del Perú"]
["011: Universidad de la Amazonía Peruana"]
["012: Universidad del Altiplano"]
["013: Universidad de Piura"]
["014: Universidad de Cajamarca"]
["015: Universidad Federico Villarreal"]
["016: Universidad Agraria de la Selva"]
["017: Universidad Hermilio Valdizán"]
["018: Universidad de Educación Enrique Guzmán y Valle"]
["019: Universidad Daniel Alcides Carrión"]
["020: Universidad del Callao"]
["021: Universidad José Faustino Sánchez Carrión"]
["022: Universidad Pedro Ruíz Gallo"]
["023: Universidad Jorge Basadre Grohmann"]
["024: Universidad Santiago Antúnez de Mayolo"]
["025: Universidad de San Martín"]
["026: Universidad de Ucayali"]
["027: Universidad de Tumbes"]
["028: Universidad del Santa"]
["029: Universidad de Huancavelica"]
["030: Universidad Amazónica de Madre de Dios"]
["031: Universidad Toribio Rodríguez de Mendoza de Amazonas"]
["032: Universidad Micaela Bastidas de Apurímac"]
["033: Universidad Intercultural de la Amazonía"]
["034: Universidad Tecnológica de Lima Sur"]
["035: Universidad José María Arguedas"]
["036: Universidad de Moquegua"]
["037: Universidad de Juliaca"]
["038: Universidad de Jaén"]
["039: Universidad de Frontera"]
["040: Universidad Autónoma de Chota"]
["041: Universidad de Barranca"]
["042: Universidad de Cañete"]
["043: Universidad Intercultural Fabiola Salazar Leguía de Bagua"]
["044: Universidad Intercultural de la Selva Central Juan Santos Atahualpa"]
["045: Universidad Intercultural de Quillabamba"]
["046: Universidad Autónoma de Alto Amazonas"]
["047: Universidad Autónoma Altoandina de Tarma"]
["048: Universidad Autónoma de Huanta"]
["049: Universidad Autónoma de Tayacaja Daniel Hernández Morillo"]
["050: Pontificia Universidad Católica del Perú"]
["051: Universidad Peruana Cayetano Heredia"]
["052: Universidad Católica de Santa María"]
["053: Universidad del Pacífico"]
["054: Universidad de Lima"]
["055: Universidad de San Martín de Porres"]
["056: Universidad Femenina del Sagrado Corazón"]
["057: Universidad de Piura"]
["058: Universidad Ricardo Palma"]
["059: Universidad Peruana Los Andes"]
["060: Universidad Peruana Unión"]
["061: Universidad Andina del Cusco"]
["062: Universidad Tecnológica de los Andes"]
["063: Universidad Privada de Tacna"]
["064: Universidad Privada Antenor Orrego"]
["065: Universidad de Huánuco"]
["066: Universidad Marcelino Champagnat"]
["067: Universidad César Vallejo"]
["068: Universidad Peruana de Ciencias Aplicadas"]
["069: Universidad Privada del Norte"]
["070: Universidad San Ignacio de Loyola"]
["071: Universidad Norbert Wiener"]
["072: Universidad Católica San Pablo"]
["073: Universidad Privada San Juan Bautista"]
["074: Universidad Tecnológica del Perú"]
["075: Universidad Continental"]
["076: Universidad Científica del Sur"]
["077: Universidad Católica Santo Toribio de Mogrovejo"]
["078: Universidad Católica Sedes Sapientiae"]
["079: Universidad Señor de Sipán"]
["080: Universidad Católica de Trujillo Benedicto XVI"]
["081: Universidad ESAN"]
["082: Universidad Antonio Ruiz de Montoya"]
["083: Universidad para el Desarrollo Andino"]
["084: Universidad Autónoma de Ica"]
["085: Universidad Autónoma del Perú"]
["086: Universidad de Ciencias y Humanidades"]
["087: Universidad Jaime Bausate y Meza"]
["088: Universidad Le Cordon Bleu"]
["089: Universidad Privada de Huancayo Franklin Roosevelt"]
["090: Universidad de Ciencias y Artes de América Latina"]
["091: Universidad de Ingeniería y Tecnología"]
["092: Universidad La Salle"]
["093: Universidad María Auxiliadora"]
["094: Universidad privada peruano alemana"]
["095: Facultad de Teología Pontificia y Civil de Lima"]
["096: Universidad Privada de Trujillo"]
["097: Universidad Peruana del Centro"]
["098: Universidad Politécnica del Perú"]
["099: Escuela de Postgrado Gerens"]
["100: Escuela de Posgrado Newman"]

{"sheet":"Enviar","index":12,"n_rows":9,"n_cols":3,"rows_kept":9,"cut":false,"hidden":false,"merged":[[0,0,0,3],[1,0,1,3]]}
["CENSO EDUCATIVO 2026"]
["MATRÍCULA, DOCENTES Y MATERIALES EDUCATIVOS"]
[]
[]
[null,"Paso 1:","Realice el ENVÍO con su clave EOL."]
[]
[null,"Paso 2:","Una vez realizado el ENVÍO,  Revise su constancia de envio."]
[]
[null,"  ADVERTENCIA","ASEGÚRESE DE REGISTRAR TODA LA INFORMACIÓN DEL NIVEL INFORMANTE"]